{"text_format":"1","workbook":"xlsx","n_sheets":4,"sheets":["高速コマ入力処理実行ボタン","入力","インターフェース画面設定","呼出ファイル"],"not_rendered":{"charts":0,"images":0,"macros":1,"external_links":0,"defined_names":0,"comments":0,"pivot_tables":0},"unopened":[],"bounds":{"document_bytes":16777216,"sheet_cells":100000,"rows_first":2000,"rows_last":500,"rows_between":2000,"halvings":0,"cell_chars":16384,"cell_head_chars":4096},"cells_cut":0,"cells_raw":0,"read":"whole","date_system":"1900"}

{"sheet":"高速コマ入力処理実行ボタン","index":0,"n_rows":101,"n_cols":5,"rows_kept":101,"cut":false,"hidden":false,"merged":[]}
[]
[]
[]
[]
[]
[]
[]
[]
[]
[]
[]
[]
[]
[]
[]
[]
[]
[]
[]
[]
[]
[]
[]
[]
[]
[]
[]
[]
[]
[]
[]
[]
[]
[]
[]
[]
[]
[]
[]
[]
[]
[]
[]
[]
[]
[]
[]
[]
[]
[]
[]
[]
[]
[]
[]
[]
[]
[]
[]
[]
[]
[]
[]
[]
[]
[]
[]
[]
[]
[]
[]
[]
[]
[]
[]
[]
[]
[]
[]
[]
[]
[]
[]
[]
[]
[]
[]
[]
[]
[]
[]
[]
[]
[]
[]
[]
[]
[]
[]
[]
[null,null,"E4903057189AF4BA多田記一",1,"79ninn30kurasukomanyuuryokusisutemu1daitourokuver1.xlsm"]

{"sheet":"入力","index":1,"n_rows":1094,"n_cols":42,"rows_kept":1094,"cut":false,"hidden":false,"merged":[]}
[null,null,"時間割入力テーブル"]
[null,null,"未入力セルの総計",null,null,{"$f":"AC848","v":500},{"$f":"TODAY()","v":"2022-08-24"}]
["NO","教科","担当１","単位数","時数","科目","担当2","C1","C2","C3","C4","C5","C6","C7","C8","C9","C10","C11","C12","C13","C14","C15","C16","C17","C18","C19","C20","入力数","未入力"]
[null,null,null,null,null,null,null,null,null,null,null,null,null,null,null,null,null,null,null,null,null,null,null,null,null,null,null,{"$f":"COUNTA(H4:AA4)","v":0}]
[1,null,{"$f":"IF(G862=\"\",\"\",G862)","v":"小杉"},4,{"$f":"IF(COUNTA(H5:AA5)=0,\"\",COUNTA(H5:AA5))","v":12},"国Ⅰ","小杉",12,12,12,12,14,14,14,14,17,17,17,17,null,null,null,null,null,null,null,null,12,{"$f":"AB5-AB4","v":12}]
[null,null,null,null,null,null,null,null,null,null,null,null,null,null,null,null,null,null,null,null,null,null,null,null,null,null,null,0]
[1,null,null,null,{"$f":"IF(COUNTA(H7:AA7)=0,\"\",COUNTA(H7:AA7))","v":""},null,null,null,null,null,null,null,null,null,null,null,null,null,null,null,null,null,null,null,null,null,null,0,{"$f":"AB7-AB6","v":0}]
[null,null,null,null,null,null,null,null,null,null,null,null,null,null,null,null,null,null,null,null,null,null,null,null,null,null,null,0]
[1,null,null,null,{"$f":"IF(COUNTA(H9:AA9)=0,\"\",COUNTA(H9:AA9))","v":""},null,null,null,null,null,null,null,null,null,null,null,null,null,null,null,null,null,null,null,null,null,null,0,{"$f":"AB9-AB8","v":0}]
[null,null,null,null,null,null,null,null,null,null,null,null,null,null,null,null,null,null,null,null,null,null,null,null,null,null,null,0]
[1,null,null,null,{"$f":"IF(COUNTA(H11:AA11)=0,\"\",COUNTA(H11:AA11))","v":""},null,null,null,null,null,null,null,null,null,null,null,null,null,null,null,null,null,null,null,null,null,null,0,{"$f":"AB11-AB10","v":0}]
[null,null,null,null,null,null,null,null,null,null,null,null,null,null,null,null,null,null,null,null,null,null,null,null,null,null,null,0]
[1,null,null,null,{"$f":"IF(COUNTA(H13:AA13)=0,\"\",COUNTA(H13:AA13))","v":""},null,null,null,null,null,null,null,null,null,null,null,null,null,null,null,null,null,null,null,null,null,null,0,{"$f":"AB13-AB12","v":0}]
[null,null,null,null,null,null,null,null,null,null,null,null,null,null,null,null,null,null,null,null,null,null,null,null,null,null,null,0]
[2,null,{"$f":"IF(G864=\"\",\"\",G864)","v":"桜井"},4,{"$f":"IF(COUNTA(H15:AA15)=0,\"\",COUNTA(H15:AA15))","v":12},"国Ⅰ","桜井",11,11,11,11,15,15,15,15,16,16,16,16,null,null,null,null,null,null,null,null,12,{"$f":"AB15-AB14","v":12}]
[null,null,null,null,null,null,null,null,null,null,null,null,null,null,null,null,null,null,null,null,null,null,null,null,null,null,null,0]
[2," ",null,3,{"$f":"IF(COUNTA(H17:AA17)=0,\"\",COUNTA(H17:AA17))","v":3},"現文","桜井",34,34,34,null,null,null,null,null,null,null,null,null,null,null,null,null,null,null,null,null,3,{"$f":"AB17-AB16","v":3}]
[null,null,null,null,null,null,null,null,null,null,null,null,null,null,null,null,null,null,null,null,null,null,null,null,null,null,null,0]
[2,null,null,null,{"$f":"IF(COUNTA(H19:AA19)=0,\"\",COUNTA(H19:AA19))","v":""},null,null,null,null,null,null,null,null,null,null,null,null,null,null,null,null,null,null,null,null,null,null,0,{"$f":"AB19-AB18","v":0}]
[null,null,null,null,null,null,null,null,null,null,null,null,null,null,null,null,null,null,null,null,null,null,null,null,null,null,null,0]
[2,null,null,null,{"$f":"IF(COUNTA(H21:AA21)=0,\"\",COUNTA(H21:AA21))","v":""},null,null,null,null,null,null,null,null,null,null,null,null,null,null,null,null,null,null,null,null,null,null,0,{"$f":"AB21-AB20","v":0}]
[null,null,null,null,null,null,null,46,null,null,null,null,null,null,null,null,null,null,null,null,null,null,null,null,null,null,null,1]
[2,null,null,null,{"$f":"IF(COUNTA(H23:AA23)=0,\"\",COUNTA(H23:AA23))","v":1},"LHR","桜井",16,null,null,null,null,null,null,null,null,null,null,null,null,null,null,null,null,null,null,null,1,{"$f":"AB23-AB22","v":0}]
[null,null,null,null,null,null,null,null,null,null,null,null,null,null,null,null,null,null,null,null,null,null,null,null,null,null,null,0]
[3,"国",{"$f":"IF(G866=\"\",\"\",G866)","v":"小野島"},4,{"$f":"IF(COUNTA(H25:AA25)=0,\"\",COUNTA(H25:AA25))","v":8},"国Ⅰ","小野島",13,13,13,13,18,18,18,18,null,null,null,null,null,null,null,null,null,null,null,null,8,{"$f":"AB25-AB24","v":8}]
[null,null,null,null,null,null,null,null,null,null,null,null,null,null,null,null,null,null,null,null,null,null,null,null,null,null,null,0]
[3,null,null,4,{"$f":"IF(COUNTA(H27:AA27)=0,\"\",COUNTA(H27:AA27))","v":8},"国Ⅱ","小野島",27,27,27,27,28,28,28,28,null,null,null,null,null,null,null,null,null,null,null,null,8,{"$f":"AB27-AB26","v":8}]
[null,null,null,null,null,null,null,null,null,null,null,null,null,null,null,null,null,null,null,null,null,null,null,null,null,null,null,0]
[3,null,null,null,{"$f":"IF(COUNTA(H29:AA29)=0,\"\",COUNTA(H29:AA29))","v":""},null,null,null,null,null,null,null,null,null,null,null,null,null,null,null,null,null,null,null,null,null,null,0,{"$f":"AB29-AB28","v":0}]
[null,null,null,null,null,null,null,null,null,null,null,null,null,null,null,null,null,null,null,null,null,null,null,null,null,null,null,0]
[3,null,null,null,{"$f":"IF(COUNTA(H31:AA31)=0,\"\",COUNTA(H31:AA31))","v":""},null,null,null,null,null,null,null,null,null,null,null,null,null,null,null,null,null,null,null,null,null,null,0,{"$f":"AB31-AB30","v":0}]
[null,null,null,null,null,null,null,null,null,null,null,null,null,null,null,null,null,null,null,null,null,null,null,null,null,null,null,0]
[3,null,null,null,{"$f":"IF(COUNTA(H33:AA33)=0,\"\",COUNTA(H33:AA33))","v":""},null,null,null,null,null,null,null,null,null,null,null,null,null,null,null,null,null,null,null,null,null,null,0,{"$f":"AB33-AB32","v":0}]
[null,null,null,null,null,null,null,null,null,null,null,null,null,null,null,null,null,null,null,null,null,null,null,null,null,null,null,0]
[4,null,{"$f":"IF(G868=\"\",\"\",G868)","v":"榎本"},4,{"$f":"IF(COUNTA(H35:AA35)=0,\"\",COUNTA(H35:AA35))","v":12},"国Ⅱ","榎本",23,23,23,23,24,24,24,24,25,25,25,25,null,null,null,null,null,null,null,null,12,{"$f":"AB35-AB34","v":12}]
[null,null,null,null,null,null,null,null,null,null,null,null,null,null,null,null,null,null,null,null,null,null,null,null,null,null,null,0]
[4,null,null,2,{"$f":"IF(COUNTA(H37:AA37)=0,\"\",COUNTA(H37:AA37))","v":2},"国Ⅱ","榎本",37,37,null,null,null,null,null,null,null,null,null,null,null,null,null,null,null,null,null,null,2,{"$f":"AB37-AB36","v":2}]
[null,null,null,null,null,null,null,null,null,null,null,null,null,null,null,null,null,null,null,null,null,null,null,null,null,null,null,0]
[4,null,null,null,{"$f":"IF(COUNTA(H39:AA39)=0,\"\",COUNTA(H39:AA39))","v":""},null,null,null,null,null,null,null,null,null,null,null,null,null,null,null,null,null,null,null,null,null,null,0,{"$f":"AB39-AB38","v":0}]
[null,null,null,null,null,null,null,null,null,null,null,null,null,null,null,null,null,null,null,null,null,null,null,null,null,null,null,0]
[4,null,null,null,{"$f":"IF(COUNTA(H41:AA41)=0,\"\",COUNTA(H41:AA41))","v":""},null,null,null,null,null,null,null,null,null,null,null,null,null,null,null,null,null,null,null,null,null,null,0,{"$f":"AB41-AB40","v":0}]
[null,null,null,null,null,null,null,46,null,null,null,null,null,null,null,null,null,null,null,null,null,null,null,null,null,null,null,1]
[4,null,null,null,{"$f":"IF(COUNTA(H43:AA43)=0,\"\",COUNTA(H43:AA43))","v":1},"LHR","榎本",25,null,null,null,null,null,null,null,null,null,null,null,null,null,null,null,null,null,null,null,1,{"$f":"AB43-AB42","v":0}]
[null,null,null,null,null,null,null,null,null,null,null,null,null,null,null,null,null,null,null,null,null,null,null,null,null,null,null,0]
[5,null,{"$f":"IF(G870=\"\",\"\",G870)","v":"矢島"},4,{"$f":"IF(COUNTA(H45:AA45)=0,\"\",COUNTA(H45:AA45))","v":8},"国Ⅱ","矢島",21,21,21,21,22,22,22,22,null,null,null,null,null,null,null,null,null,null,null,null,8,{"$f":"AB45-AB44","v":8}]
[null,null,null,null,null,null,null,null,null,null,null,null,null,null,null,null,null,null,null,null,null,null,null,null,null,null,null,0]
[5,null,null,2,{"$f":"IF(COUNTA(H47:AA47)=0,\"\",COUNTA(H47:AA47))","v":2},"古典","矢島",36,36,null,null,null,null,null,null,null,null,null,null,null,null,null,null,null,null,null,null,2,{"$f":"AB47-AB46","v":2}]
[null,null,null,null,null,null,null,null,null,null,null,null,null,null,null,null,null,null,null,null,null,null,null,null,null,null,null,0]
[5,null,null,null,{"$f":"IF(COUNTA(H49:AA49)=0,\"\",COUNTA(H49:AA49))","v":""},null,null,null,null,null,null,null,null,null,null,null,null,null,null,null,null,null,null,null,null,null,null,0,{"$f":"AB49-AB48","v":0}]
[null,null,null,null,null,null,null,null,null,null,null,null,null,null,null,null,null,null,null,null,null,null,null,null,null,null,null,0]
[5,null,null,null,{"$f":"IF(COUNTA(H51:AA51)=0,\"\",COUNTA(H51:AA51))","v":""},null,null,null,null,null,null,null,null,null,null,null,null,null,null,null,null,null,null,null,null,null,null,0,{"$f":"AB51-AB50","v":0}]
[null,null,null,null,null,null,null,null,null,null,null,null,null,null,null,null,null,null,null,null,null,null,null,null,null,null,null,0]
[5,null,null,null,{"$f":"IF(COUNTA(H53:AA53)=0,\"\",COUNTA(H53:AA53))","v":""},null,null,null,null,null,null,null,null,null,null,null,null,null,null,null,null,null,null,null,null,null,null,0,{"$f":"AB53-AB52","v":0}]
[null,null,null,null,null,null,null,null,null,null,null,null,null,null,null,null,null,null,null,null,null,null,null,null,null,null,null,0]
[6,null,{"$f":"IF(G872=\"\",\"\",G872)","v":"関根"},3,{"$f":"IF(COUNTA(H55:AA55)=0,\"\",COUNTA(H55:AA55))","v":9},"現文","関根",32,32,32,35,35,35,37,37,37,null,null,null,null,null,null,null,null,null,null,null,9,{"$f":"AB55-AB54","v":9}]
[null,null,null,null,null,null,null,null,null,null,null,null,null,null,null,null,null,null,null,null,null,null,null,null,null,null,null,0]
[6,null,null,4,{"$f":"IF(COUNTA(H57:AA57)=0,\"\",COUNTA(H57:AA57))","v":4},"古典","関根",31,31,31,31,null,null,null,null,null,null,null,null,null,null,null,null,null,null,null,null,4,{"$f":"AB57-AB56","v":4}]
[null,null,null,null,null,null,null,24,43,null,null,null,null,null,null,null,null,null,null,null,null,null,null,null,null,null,null,2]
[6,null,null,null,{"$f":"IF(COUNTA(H59:AA59)=0,\"\",COUNTA(H59:AA59))","v":2},"表現","関根  山田",38,38,null,null,null,null,null,null,null,null,null,null,null,null,null,null,null,null,null,null,2,{"$f":"AB59-AB58","v":0}]
[null,null,null,null,null,null,null,null,null,null,null,null,null,null,null,null,null,null,null,null,null,null,null,null,null,null,null,0]
[6,null,null,null,{"$f":"IF(COUNTA(H61:AA61)=0,\"\",COUNTA(H61:AA61))","v":""},null,null,null,null,null,null,null,null,null,null,null,null,null,null,null,null,null,null,null,null,null,null,0,{"$f":"AB61-AB60","v":0}]
[null,null,null,null,null,null,null,46,null,null,null,null,null,null,null,null,null,null,null,null,null,null,null,null,null,null,null,1]
[6,null,null,null,{"$f":"IF(COUNTA(H63:AA63)=0,\"\",COUNTA(H63:AA63))","v":1},"LHR","関根",35,null,null,null,null,null,null,null,null,null,null,null,null,null,null,null,null,null,null,null,1,{"$f":"AB63-AB62","v":0}]
[null,null,null,null,null,null,null,null,null,null,null,null,null,null,null,null,null,null,null,null,null,null,null,null,null,null,null,0]
[7," ",{"$f":"IF(G874=\"\",\"\",G874)","v":"松本ﾔ"},4,{"$f":"IF(COUNTA(H65:AA65)=0,\"\",COUNTA(H65:AA65))","v":4},"国Ⅱ","松本ﾔ",26,26,26,26,null,null,null,null,null,null,null,null,null,null,null,null,null,null,null,null,4,{"$f":"AB65-AB64","v":4}]
[null,null,null,null,null,null,null,null,null,null,null,null,null,null,null,null,null,null,null,null,null,null,null,null,null,null,null,0]
[7," ",null,3,{"$f":"IF(COUNTA(H67:AA67)=0,\"\",COUNTA(H67:AA67))","v":6},"現文","松本ﾔ",36,36,36,38,38,38,null,null,null,null,null,null,null,null,null,null,null,null,null,null,6,{"$f":"AB67-AB66","v":6}]
[null,null,null,null,null,null,null,23,44,null,null,null,null,null,null,null,null,null,null,null,null,null,null,null,null,null,null,{"$f":"COUNTA(H68:AA68)","v":2}]
[7,null,null,null,{"$f":"IF(COUNTA(H69:AA69)=0,\"\",COUNTA(H69:AA69))","v":2},"表現","松本ﾔ 山田",33,33,null,null,null,null,null,null,null,null,null,null,null,null,null,null,null,null,null,null,2,{"$f":"AB69-AB68","v":0}]
[null,null,null,null,null,null,null,null,null,null,null,null,null,null,null,null,null,null,null,null,null,null,null,null,null,null,null,0]
[7,null,null,null,{"$f":"IF(COUNTA(H71:AA71)=0,\"\",COUNTA(H71:AA71))","v":""},null,null,null,null,null,null,null,null,null,null,null,null,null,null,null,null,null,null,null,null,null,null,0,{"$f":"AB71-AB70","v":0}]
[null,null,null,null,null,null,null,null,null,null,null,null,null,null,null,null,null,null,null,null,null,null,null,null,null,null,null,0]
[7,null,null,null,{"$f":"IF(COUNTA(H73:AA73)=0,\"\",COUNTA(H73:AA73))","v":""},null,null,null,null,null,null,null,null,null,null,null,null,null,null,null,null,null,null,null,null,null,null,0,{"$f":"AB73-AB72","v":0}]
[null,null,null,null,null,null,null,23,41,53,24,42,52,null,null,null,null,null,null,null,null,null,null,null,null,null,null,6]
[8,null,{"$f":"IF(G876=\"\",\"\",G876)","v":"千田"},null,{"$f":"IF(COUNTA(H75:AA75)=0,\"\",COUNTA(H75:AA75))","v":6},"現文","千田",31,31,31,33,33,33,null,null,null,null,null,null,null,null,null,null,null,null,null,null,6,{"$f":"AB75-AB74","v":0}]
[null,null,null,null,null,null,null,null,null,null,null,null,null,null,null,null,null,null,null,null,null,null,null,null,null,null,null,0]
[8,null,null,null,{"$f":"IF(COUNTA(H77:AA77)=0,\"\",COUNTA(H77:AA77))","v":""},null,null,null,null,null,null,null,null,null,null,null,null,null,null,null,null,null,null,null,null,null,null,0,{"$f":"AB77-AB76","v":0}]
[null,null,null,null,null,null,null,null,null,null,null,null,null,null,null,null,null,null,null,null,null,null,null,null,null,null,null,0]
[8,null,null,null,{"$f":"IF(COUNTA(H79:AA79)=0,\"\",COUNTA(H79:AA79))","v":""},null,null,null,null,null,null,null,null,null,null,null,null,null,null,null,null,null,null,null,null,null,null,0,{"$f":"AB79-AB78","v":0}]
[null,null,null,null,null,null,null,null,null,null,null,null,null,null,null,null,null,null,null,null,null,null,null,null,null,null,null,0]
[8," ",null,null,{"$f":"IF(COUNTA(H81:AA81)=0,\"\",COUNTA(H81:AA81))","v":""},null,null,null,null,null,null,null,null,null,null,null,null,null,null,null,null,null,null,null,null,null,null,0,{"$f":"AB81-AB80","v":0}]
[null,null,null,null,null,null,null,null,null,null,null,null,null,null,null,null,null,null,null,null,null,null,null,null,null,null,null,0]
[8," ",null,null,{"$f":"IF(COUNTA(H83:AA83)=0,\"\",COUNTA(H83:AA83))","v":""},null,null,null,null,null,null,null,null,null,null,null,null,null,null,null,null,null,null,null,null,null,null,0,{"$f":"AB83-AB82","v":0}]
[null,null,null,null,null,null,null,24,43,null,null,null,null,null,null,null,null,null,null,null,null,null,null,null,null,null,null,2]
[9,null,{"$f":"IF(G878=\"\",\"\",G878)","v":"山田"},null,{"$f":"IF(COUNTA(H85:AA85)=0,\"\",COUNTA(H85:AA85))","v":2},"表現","関根  山田",38,38,null,null,null,null,null,null,null,null,null,null,null,null,null,null,null,null,null,null,2,{"$f":"AB85-AB84","v":0}]
[null,null,null,null,null,null,null,23,44,null,null,null,null,null,null,null,null,null,null,null,null,null,null,null,null,null,null,2]
[9,null,null,null,{"$f":"IF(COUNTA(H87:AA87)=0,\"\",COUNTA(H87:AA87))","v":2},"表現","松本ﾔ 山田",33,33,null,null,null,null,null,null,null,null,null,null,null,null,null,null,null,null,null,null,2,{"$f":"AB87-AB86","v":0}]
[null,null,null,null,null,null,null,null,null,null,null,null,null,null,null,null,null,null,null,null,null,null,null,null,null,null,null,0]
[9,null,null,null,{"$f":"IF(COUNTA(H89:AA89)=0,\"\",COUNTA(H89:AA89))","v":""},null,null,null,null,null,null,null,null,null,null,null,null,null,null,null,null,null,null,null,null,null,null,0,{"$f":"AB89-AB88","v":0}]
[null,null,null,null,null,null,null,null,null,null,null,null,null,null,null,null,null,null,null,null,null,null,null,null,null,null,null,0]
[9,null,null,null,{"$f":"IF(COUNTA(H91:AA91)=0,\"\",COUNTA(H91:AA91))","v":""},null,null,null,null,null,null,null,null,null,null,null,null,null,null,null,null,null,null,null,null,null,null,0,{"$f":"AB91-AB90","v":0}]
[null,null,null,null,null,null,null,null,null,null,null,null,null,null,null,null,null,null,null,null,null,null,null,null,null,null,null,0]
[9,null,null,null,{"$f":"IF(COUNTA(H93:AA93)=0,\"\",COUNTA(H93:AA93))","v":""},null,null,null,null,null,null,null,null,null,null,null,null,null,null,null,null,null,null,null,null,null,null,0,{"$f":"AB93-AB92","v":0}]
[null,null,null,null,null,null,null,null,null,null,null,null,null,null,null,null,null,null,null,null,null,null,null,null,null,null,null,0]
[10,null,{"$f":"IF(G880=\"\",\"\",G880)","v":""},null,{"$f":"IF(COUNTA(H95:AA95)=0,\"\",COUNTA(H95:AA95))","v":""},null,null,null,null,null,null,null,null,null,null,null,null,null,null,null,null,null,null,null,null,null,null,0,{"$f":"AB95-AB94","v":0}]
[null,null,null,null,null,null,null,null,null,null,null,null,null,null,null,null,null,null,null,null,null,null,null,null,null,null,null,0]
[10,null,null,null,{"$f":"IF(COUNTA(H97:AA97)=0,\"\",COUNTA(H97:AA97))","v":""},null,null,null,null,null,null,null,null,null,null,null,null,null,null,null,null,null,null,null,null,null,null,0,{"$f":"AB97-AB96","v":0}]
[null,null,null,null,null,null,null,null,null,null,null,null,null,null,null,null,null,null,null,null,null,null,null,null,null,null,null,0]
[10,null,null,null,{"$f":"IF(COUNTA(H99:AA99)=0,\"\",COUNTA(H99:AA99))","v":""},null,null,null,null,null,null,null,null,null,null,null,null,null,null,null,null,null,null,null,null,null,null,0,{"$f":"AB99-AB98","v":0}]
[null,null,null,null,null,null,null,null,null,null,null,null,null,null,null,null,null,null,null,null,null,null,null,null,null,null,null,0]
[10,null,null,null,{"$f":"IF(COUNTA(H101:AA101)=0,\"\",COUNTA(H101:AA101))","v":""},null,null,null,null,null,null,null,null,null,null,null,null,null,null,null,null,null,null,null,null,null,null,0,{"$f":"AB101-AB100","v":0}]
[null,null,null,null,null,null,null,null,null,null,null,null,null,null,null,null,null,null,null,null,null,null,null,null,null,null,null,0]
[10,"語",null,null,{"$f":"IF(COUNTA(H103:AA103)=0,\"\",COUNTA(H103:AA103))","v":""},null,null,null,null,null,null,null,null,null,null,null,null,null,null,null,null,null,null,null,null,null,null,0,{"$f":"AB103-AB102","v":0}]
[null,null,null,null,null,null,null,null,null,null,null,null,null,null,null,null,null,null,null,null,null,null,null,null,null,null,null,0]
[11,null,{"$f":"IF(G882=\"\",\"\",G882)","v":""},null,{"$f":"IF(COUNTA(H105:AA105)=0,\"\",COUNTA(H105:AA105))","v":""},null,null,null,null,null,null,null,null,null,null,null,null,null,null,null,null,null,null,null,null,null,null,0,{"$f":"AB105-AB104","v":0}]
[null,null,null,null,null,null,null,null,null,null,null,null,null,null,null,null,null,null,null,null,null,null,null,null,null,null,null,0]
[11," ",null,null,{"$f":"IF(COUNTA(H107:AA107)=0,\"\",COUNTA(H107:AA107))","v":""},null,null,null,null,null,null,null,null,null,null,null,null,null,null,null,null,null,null,null,null,null,null,0,{"$f":"AB107-AB106","v":0}]
[null,null,null,null,null,null,null,null,null,null,null,null,null,null,null,null,null,null,null,null,null,null,null,null,null,null,null,0]
[11,null,null,null,{"$f":"IF(COUNTA(H109:AA109)=0,\"\",COUNTA(H109:AA109))","v":""},null,null,null,null,null,null,null,null,null,null,null,null,null,null,null,null,null,null,null,null,null,null,0,{"$f":"AB109-AB108","v":0}]
[null,null,null,null,null,null,null,null,null,null,null,null,null,null,null,null,null,null,null,null,null,null,null,null,null,null,null,0]
[11,null,null,null,{"$f":"IF(COUNTA(H111:AA111)=0,\"\",COUNTA(H111:AA111))","v":""},null,null,null,null,null,null,null,null,null,null,null,null,null,null,null,null,null,null,null,null,null,null,0,{"$f":"AB111-AB110","v":0}]
[null,null,null,null,null,null,null,null,null,null,null,null,null,null,null,null,null,null,null,null,null,null,null,null,null,null,null,0]
[11,null,null,null,{"$f":"IF(COUNTA(H113:AA113)=0,\"\",COUNTA(H113:AA113))","v":""},null,null,null,null,null,null,null,null,null,null,null,null,null,null,null,null,null,null,null,null,null,null,0,{"$f":"AB113-AB112","v":0}]
[null,null,null,null,null,null,null,null,null,null,null,null,null,null,null,null,null,null,null,null,null,null,null,null,null,null,null,0]
[12,null,{"$f":"IF(G884=\"\",\"\",G884)","v":""},null,{"$f":"IF(COUNTA(H115:AA115)=0,\"\",COUNTA(H115:AA115))","v":""},null,null,null,null,null,null,null,null,null,null,null,null,null,null,null,null,null,null,null,null,null,null,0,{"$f":"AB115-AB114","v":0}]
[null,null,null,null,null,null,null,null,null,null,null,null,null,null,null,null,null,null,null,null,null,null,null,null,null,null,null,0]
[12," ",null,null,{"$f":"IF(COUNTA(H117:AA117)=0,\"\",COUNTA(H117:AA117))","v":""},null,null,null,null,null,null,null,null,null,null,null,null,null,null,null,null,null,null,null,null,null,null,0,{"$f":"AB117-AB116","v":0}]
[null,null,null,null,null,null,null,null,null,null,null,null,null,null,null,null,null,null,null,null,null,null,null,null,null,null,null,0]
[12,null,null,null,{"$f":"IF(COUNTA(H119:AA119)=0,\"\",COUNTA(H119:AA119))","v":""},null,null,null,null,null,null,null,null,null,null,null,null,null,null,null,null,null,null,null,null,null,null,0,{"$f":"AB119-AB118","v":0}]
[null,null,null,null,null,null,null,null,null,null,null,null,null,null,null,null,null,null,null,null,null,null,null,null,null,null,null,0]
[12,null,null,null,{"$f":"IF(COUNTA(H121:AA121)=0,\"\",COUNTA(H121:AA121))","v":""},null,null,null,null,null,null,null,null,null,null,null,null,null,null,null,null,null,null,null,null,null,null,0,{"$f":"AB121-AB120","v":0}]
[null,null,null,null,null,null,null,null,null,null,null,null,null,null,null,null,null,null,null,null,null,null,null,null,null,null,null,0]
[12," ",null,null,{"$f":"IF(COUNTA(H123:AA123)=0,\"\",COUNTA(H123:AA123))","v":""},null,null,null,null,null,null,null,null,null,null,null,null,null,null,null,null,null,null,null,null,null,null,0,{"$f":"AB123-AB122","v":0}]
[null,null,null,null,null,null,null,null,null,null,null,null,null,null,null,null,null,null,null,null,null,null,null,null,null,null,null,0]
[13," ",{"$f":"IF(G886=\"\",\"\",G886)","v":"新井"},2,{"$f":"IF(COUNTA(H125:AA125)=0,\"\",COUNTA(H125:AA125))","v":4},"地理","新井",11,11,12,12,null,null,null,null,null,null,null,null,null,null,null,null,null,null,null,null,4,{"$f":"AB125-AB124","v":4}]
[null,null,null,null,null,null,null,null,null,null,null,null,null,null,null,null,null,null,null,null,null,null,null,null,null,null,null,0]
[13," ",null,4,{"$f":"IF(COUNTA(H127:AA127)=0,\"\",COUNTA(H127:AA127))","v":12},"日史","新井",31,31,31,31,32,32,32,32,33,33,33,33,null,null,null,null,null,null,null,null,12,{"$f":"AB127-AB126","v":12}]
[null,null,null,null,null,null,null,null,null,null,null,null,null,null,null,null,null,null,null,null,null,null,null,null,null,null,null,0]
[13,null,null,null,{"$f":"IF(COUNTA(H129:AA129)=0,\"\",COUNTA(H129:AA129))","v":""},null,null,null,null,null,null,null,null,null,null,null,null,null,null,null,null,null,null,null,null,null,null,0,{"$f":"AB129-AB128","v":0}]
[null,null,null,null,null,null,null,null,null,null,null,null,null,null,null,null,null,null,null,null,null,null,null,null,null,null,null,0]
[13,null,null,null,{"$f":"IF(COUNTA(H131:AA131)=0,\"\",COUNTA(H131:AA131))","v":""},null,null,null,null,null,null,null,null,null,null,null,null,null,null,null,null,null,null,null,null,null,null,0,{"$f":"AB131-AB130","v":0}]
[null,null,null,null,null,null,null,46,null,null,null,null,null,null,null,null,null,null,null,null,null,null,null,null,null,null,null,{"$f":"COUNTA(H132:AA132)","v":1}]
[13,null,null,null,{"$f":"IF(COUNTA(H133:AA133)=0,\"\",COUNTA(H133:AA133))","v":1},"LHR","新井",12,null,null,null,null,null,null,null,null,null,null,null,null,null,null,null,null,null,null,null,1,{"$f":"AB133-AB132","v":0}]
[null,null,null,null,null,null,null,null,null,null,null,null,null,null,null,null,null,null,null,null,null,null,null,null,null,null,null,0]
[14,"地",{"$f":"IF(G888=\"\",\"\",G888)","v":"福田"},2,{"$f":"IF(COUNTA(H135:AA135)=0,\"\",COUNTA(H135:AA135))","v":8},"地理","福田",13,13,15,15,16,16,18,18,null,null,null,null,null,null,null,null,null,null,null,null,8,{"$f":"AB135-AB134","v":8}]
[null,null,null,null,null,null,null,null,null,null,null,null,null,null,null,null,null,null,null,null,null,null,null,null,null,null,null,0]
[14," ",null,4,{"$f":"IF(COUNTA(H137:AA137)=0,\"\",COUNTA(H137:AA137))","v":8},"世史","福田",21,21,21,21,22,22,22,22,null,null,null,null,null,null,null,null,null,null,null,null,8,{"$f":"AB137-AB136","v":8}]
[null,null,null,null,null,null,null,null,null,null,null,null,null,null,null,null,null,null,null,null,null,null,null,null,null,null,null,0]
[14,null,null,null,{"$f":"IF(COUNTA(H139:AA139)=0,\"\",COUNTA(H139:AA139))","v":""},null,null,null,null,null,null,null,null,null,null,null,null,null,null,null,null,null,null,null,null,null,null,0,{"$f":"AB139-AB138","v":0}]
[null,null,null,null,null,null,null,null,null,null,null,null,null,null,null,null,null,null,null,null,null,null,null,null,null,null,null,0]
[14,null,null,null,{"$f":"IF(COUNTA(H141:AA141)=0,\"\",COUNTA(H141:AA141))","v":""},null,null,null,null,null,null,null,null,null,null,null,null,null,null,null,null,null,null,null,null,null,null,0,{"$f":"AB141-AB140","v":0}]
[null,null,null,null,null,null,null,46,null,null,null,null,null,null,null,null,null,null,null,null,null,null,null,null,null,null,null,1]
[14," ",null,null,{"$f":"IF(COUNTA(H143:AA143)=0,\"\",COUNTA(H143:AA143))","v":1},"LHR","福田",15,null,null,null,null,null,null,null,null,null,null,null,null,null,null,null,null,null,null,null,1,{"$f":"AB143-AB142","v":0}]
[null,null,null,null,null,null,null,null,null,null,null,null,null,null,null,null,null,null,null,null,null,null,null,null,null,null,null,0]
[15,null,{"$f":"IF(G890=\"\",\"\",G890)","v":"鶴巻"},2,{"$f":"IF(COUNTA(H145:AA145)=0,\"\",COUNTA(H145:AA145))","v":4},"地理","鶴巻",14,14,17,17,null,null,null,null,null,null,null,null,null,null,null,null,null,null,null,null,4,{"$f":"AB145-AB144","v":4}]
[null,null,null,null,null,null,null,null,null,null,null,null,null,null,null,null,null,null,null,null,null,null,null,null,null,null,null,0]
[15," ",null,2,{"$f":"IF(COUNTA(H147:AA147)=0,\"\",COUNTA(H147:AA147))","v":12},"倫理","鶴巻",21,21,22,22,25,25,26,26,27,27,28,28,null,null,null,null,null,null,null,null,12,{"$f":"AB147-AB146","v":12}]
[null,null,null,null,null,null,null,null,null,null,null,null,null,null,null,null,null,null,null,null,null,null,null,null,null,null,null,0]
[15,null,null,null,{"$f":"IF(COUNTA(H149:AA149)=0,\"\",COUNTA(H149:AA149))","v":""},null,null,null,null,null,null,null,null,null,null,null,null,null,null,null,null,null,null,null,null,null,null,0,{"$f":"AB149-AB148","v":0}]
[null,null,null,null,null,null,null,null,null,null,null,null,null,null,null,null,null,null,null,null,null,null,null,null,null,null,null,0]
[15," ",null,null,{"$f":"IF(COUNTA(H151:AA151)=0,\"\",COUNTA(H151:AA151))","v":""},null,null,null,null,null,null,null,null,null,null,null,null,null,null,null,null,null,null,null,null,null,null,0,{"$f":"AB151-AB150","v":0}]
[null,null,null,null,null,null,null,null,null,null,null,null,null,null,null,null,null,null,null,null,null,null,null,null,null,null,null,0]
[15,null,null,null,{"$f":"IF(COUNTA(H153:AA153)=0,\"\",COUNTA(H153:AA153))","v":""},null,null,null,null,null,null,null,null,null,null,null,null,null,null,null,null,null,null,null,null,null,null,0,{"$f":"AB153-AB152","v":0}]
[null,null,null,null,null,null,null,null,null,null,null,null,null,null,null,null,null,null,null,null,null,null,null,null,null,null,null,0]
[16,"歴",{"$f":"IF(G892=\"\",\"\",G892)","v":"小栗"},4,{"$f":"IF(COUNTA(H155:AA155)=0,\"\",COUNTA(H155:AA155))","v":8},"日史","小栗",35,35,35,35,36,36,36,36,null,null,null,null,null,null,null,null,null,null,null,null,8,{"$f":"AB155-AB154","v":8}]
[null,null,null,null,null,null,null,null,null,null,null,null,null,null,null,null,null,null,null,null,null,null,null,null,null,null,null,0]
[16,null,null,2,{"$f":"IF(COUNTA(H157:AA157)=0,\"\",COUNTA(H157:AA157))","v":4},"倫理","小栗",23,23,24,24,null,null,null,null,null,null,null,null,null,null,null,null,null,null,null,null,4,{"$f":"AB157-AB156","v":4}]
[null,null,null,null,null,null,null,null,null,null,null,null,null,null,null,null,null,null,null,null,null,null,null,null,null,null,null,0]
[16,null,null,2,{"$f":"IF(COUNTA(H159:AA159)=0,\"\",COUNTA(H159:AA159))","v":2},"選日","小栗",32,32,null,null,null,null,null,null,null,null,null,null,null,null,null,null,null,null,null,null,2,{"$f":"AB159-AB158","v":2}]
[null,null,null,null,null,null,null,null,null,null,null,null,null,null,null,null,null,null,null,null,null,null,null,null,null,null,null,0]
[16,null,null,null,{"$f":"IF(COUNTA(H161:AA161)=0,\"\",COUNTA(H161:AA161))","v":""},null,null,null,null,null,null,null,null,null,null,null,null,null,null,null,null,null,null,null,null,null,null,0,{"$f":"AB161-AB160","v":0}]
[null,null,null,null,null,null,null,46,null,null,null,null,null,null,null,null,null,null,null,null,null,null,null,null,null,null,null,1]
[16,null,null,null,{"$f":"IF(COUNTA(H163:AA163)=0,\"\",COUNTA(H163:AA163))","v":1},"LHR","小栗",24,null,null,null,null,null,null,null,null,null,null,null,null,null,null,null,null,null,null,null,1,{"$f":"AB163-AB162","v":0}]
[null,null,null,null,null,null,null,null,null,null,null,null,null,null,null,null,null,null,null,null,null,null,null,null,null,null,null,0]
[17," ",{"$f":"IF(G894=\"\",\"\",G894)","v":"程田"},4,{"$f":"IF(COUNTA(H165:AA165)=0,\"\",COUNTA(H165:AA165))","v":12},"世史","程田",26,26,26,26,27,27,27,27,28,28,28,28,null,null,null,null,null,null,null,null,12,{"$f":"AB165-AB164","v":12}]
[null,null,null,null,null,null,null,null,null,null,null,null,null,null,null,null,null,null,null,null,null,null,null,null,null,null,null,0]
[17,null,null,2,{"$f":"IF(COUNTA(H167:AA167)=0,\"\",COUNTA(H167:AA167))","v":4},"政経","程田",31,31,32,32,null,null,null,null,null,null,null,null,null,null,null,null,null,null,null,null,4,{"$f":"AB167-AB166","v":4}]
[null,null,null,null,null,null,null,null,null,null,null,null,null,null,null,null,null,null,null,null,null,null,null,null,null,null,null,0]
[17,null,null,null,{"$f":"IF(COUNTA(H169:AA169)=0,\"\",COUNTA(H169:AA169))","v":""},null,null,null,null,null,null,null,null,null,null,null,null,null,null,null,null,null,null,null,null,null,null,0,{"$f":"AB169-AB168","v":0}]
[null,null,null,null,null,null,null,null,null,null,null,null,null,null,null,null,null,null,null,null,null,null,null,null,null,null,null,0]
[17," ",null,null,{"$f":"IF(COUNTA(H171:AA171)=0,\"\",COUNTA(H171:AA171))","v":""},null,null,null,null,null,null,null,null,null,null,null,null,null,null,null,null,null,null,null,null,null,null,0,{"$f":"AB171-AB170","v":0}]
[null,null,null,null,null,null,null,null,null,null,null,null,null,null,null,null,null,null,null,null,null,null,null,null,null,null,null,0]
[17,null,null,null,{"$f":"IF(COUNTA(H173:AA173)=0,\"\",COUNTA(H173:AA173))","v":""},null,null,null,null,null,null,null,null,null,null,null,null,null,null,null,null,null,null,null,null,null,null,0,{"$f":"AB173-AB172","v":0}]
[null,null,null,null,null,null,null,null,null,null,null,null,null,null,null,null,null,null,null,null,null,null,null,null,null,null,null,0]
[18," ",{"$f":"IF(G896=\"\",\"\",G896)","v":"長澤"},4,{"$f":"IF(COUNTA(H175:AA175)=0,\"\",COUNTA(H175:AA175))","v":12},"日史","長澤",34,34,34,34,37,37,37,37,38,38,38,38,null,null,null,null,null,null,null,null,12,{"$f":"AB175-AB174","v":12}]
[null,null,null,null,null,null,null,null,null,null,null,null,null,null,null,null,null,null,null,null,null,null,null,null,null,null,null,0]
[18,null,null,null,{"$f":"IF(COUNTA(H177:AA177)=0,\"\",COUNTA(H177:AA177))","v":""},null,null,null,null,null,null,null,null,null,null,null,null,null,null,null,null,null,null,null,null,null,null,0,{"$f":"AB177-AB176","v":0}]
[null,null,null,null,null,null,null,null,null,null,null,null,null,null,null,null,null,null,null,null,null,null,null,null,null,null,null,0]
[18,"・",null,null,{"$f":"IF(COUNTA(H179:AA179)=0,\"\",COUNTA(H179:AA179))","v":""},null,null,null,null,null,null,null,null,null,null,null,null,null,null,null,null,null,null,null,null,null,null,0,{"$f":"AB179-AB178","v":0}]
[null,null,null,null,null,null,null,null,null,null,null,null,null,null,null,null,null,null,null,null,null,null,null,null,null,null,null,0]
[18,null,null,null,{"$f":"IF(COUNTA(H181:AA181)=0,\"\",COUNTA(H181:AA181))","v":""},null,null,null,null,null,null,null,null,null,null,null,null,null,null,null,null,null,null,null,null,null,null,0,{"$f":"AB181-AB180","v":0}]
[null,null,null,null,null,null,null,null,null,null,null,null,null,null,null,null,null,null,null,null,null,null,null,null,null,null,null,0]
[18," ",null,null,{"$f":"IF(COUNTA(H183:AA183)=0,\"\",COUNTA(H183:AA183))","v":""},null,null,null,null,null,null,null,null,null,null,null,null,null,null,null,null,null,null,null,null,null,null,0,{"$f":"AB183-AB182","v":0}]
[null,null,null,null,null,null,null,null,null,null,null,null,null,null,null,null,null,null,null,null,null,null,null,null,null,null,null,0]
[19,null,{"$f":"IF(G898=\"\",\"\",G898)","v":"松本ﾀ"},2,{"$f":"IF(COUNTA(H185:AA185)=0,\"\",COUNTA(H185:AA185))","v":2},"選日","松本ﾀ",31,31,null,null,null,null,null,null,null,null,null,null,null,null,null,null,null,null,null,null,2,{"$f":"AB185-AB184","v":2}]
[null,null,null,null,null,null,null,null,null,null,null,null,null,null,null,null,null,null,null,null,null,null,null,null,null,null,null,0]
[19,null,null,2,{"$f":"IF(COUNTA(H187:AA187)=0,\"\",COUNTA(H187:AA187))","v":12},"政経","松本ﾀ",33,33,34,34,35,35,36,36,37,37,38,38,null,null,null,null,null,null,null,null,12,{"$f":"AB187-AB186","v":12}]
[null,null,null,null,null,null,null,null,null,null,null,null,null,null,null,null,null,null,null,null,null,null,null,null,null,null,null,0]
[19,null,null,null,{"$f":"IF(COUNTA(H189:AA189)=0,\"\",COUNTA(H189:AA189))","v":""},null,null,null,null,null,null,null,null,null,null,null,null,null,null,null,null,null,null,null,null,null,null,0,{"$f":"AB189-AB188","v":0}]
[null,null,null,null,null,null,null,null,null,null,null,null,null,null,null,null,null,null,null,null,null,null,null,null,null,null,null,0]
[19,null,null,null,{"$f":"IF(COUNTA(H191:AA191)=0,\"\",COUNTA(H191:AA191))","v":""},null,null,null,null,null,null,null,null,null,null,null,null,null,null,null,null,null,null,null,null,null,null,0,{"$f":"AB191-AB190","v":0}]
[null,null,null,null,null,null,null,null,null,null,null,null,null,null,null,null,null,null,null,null,null,null,null,null,null,null,null,0]
[19,null,null,null,{"$f":"IF(COUNTA(H193:AA193)=0,\"\",COUNTA(H193:AA193))","v":""},null,null,null,null,null,null,null,null,null,null,null,null,null,null,null,null,null,null,null,null,null,null,0,{"$f":"AB193-AB192","v":0}]
[null,null,null,null,null,null,null,null,null,null,null,null,null,null,null,null,null,null,null,null,null,null,null,null,null,null,null,0]
[20," ",{"$f":"IF(G900=\"\",\"\",G900)","v":"高橋"},4,{"$f":"IF(COUNTA(H195:AA195)=0,\"\",COUNTA(H195:AA195))","v":12},"世史","高橋",23,23,23,23,24,24,24,24,25,25,25,25,null,null,null,null,null,null,null,null,12,{"$f":"AB195-AB194","v":12}]
[null,null,null,null,null,null,null,null,null,null,null,null,null,null,null,null,null,null,null,null,null,null,null,null,null,null,null,{"$f":"COUNTA(H196:AA196)","v":0}]
[20," ",null,null,{"$f":"IF(COUNTA(H197:AA197)=0,\"\",COUNTA(H197:AA197))","v":""},null,null,null,null,null,null,null,null,null,null,null,null,null,null,null,null,null,null,null,null,null,null,0,{"$f":"AB197-AB196","v":0}]
[null,null,null,null,null,null,null,null,null,null,null,null,null,null,null,null,null,null,null,null,null,null,null,null,null,null,null,0]
[20,null,null,null,{"$f":"IF(COUNTA(H199:AA199)=0,\"\",COUNTA(H199:AA199))","v":""},null,null,null,null,null,null,null,null,null,null,null,null,null,null,null,null,null,null,null,null,null,null,0,{"$f":"AB199-AB198","v":0}]
[null,null,null,null,null,null,null,null,null,null,null,null,null,null,null,null,null,null,null,null,null,null,null,null,null,null,null,0]
[20,null,null,null,{"$f":"IF(COUNTA(H201:AA201)=0,\"\",COUNTA(H201:AA201))","v":""},null,null,null,null,null,null,null,null,null,null,null,null,null,null,null,null,null,null,null,null,null,null,0,{"$f":"AB201-AB200","v":0}]
[null,null,null,null,null,null,null,null,null,null,null,null,null,null,null,null,null,null,null,null,null,null,null,null,null,null,null,0]
[20,"公",null,null,{"$f":"IF(COUNTA(H203:AA203)=0,\"\",COUNTA(H203:AA203))","v":""},null,null,null,null,null,null,null,null,null,null,null,null,null,null,null,null,null,null,null,null,null,null,0,{"$f":"AB203-AB202","v":0}]
[null,null,null,null,null,null,null,null,null,null,null,null,null,null,null,null,null,null,null,null,null,null,null,null,null,null,null,0]
[21,null,{"$f":"IF(G902=\"\",\"\",G902)","v":""},null,{"$f":"IF(COUNTA(H205:AA205)=0,\"\",COUNTA(H205:AA205))","v":""},null,null,null,null,null,null,null,null,null,null,null,null,null,null,null,null,null,null,null,null,null,null,0,{"$f":"AB205-AB204","v":0}]
[null,null,null,null,null,null,null,null,null,null,null,null,null,null,null,null,null,null,null,null,null,null,null,null,null,null,null,0]
[21,null,null,null,{"$f":"IF(COUNTA(H207:AA207)=0,\"\",COUNTA(H207:AA207))","v":""},null,null,null,null,null,null,null,null,null,null,null,null,null,null,null,null,null,null,null,null,null,null,0,{"$f":"AB207-AB206","v":0}]
[null,null,null,null,null,null,null,null,null,null,null,null,null,null,null,null,null,null,null,null,null,null,null,null,null,null,null,0]
[21,null,null,null,{"$f":"IF(COUNTA(H209:AA209)=0,\"\",COUNTA(H209:AA209))","v":""},null,null,null,null,null,null,null,null,null,null,null,null,null,null,null,null,null,null,null,null,null,null,0,{"$f":"AB209-AB208","v":0}]
[null,null,null,null,null,null,null,null,null,null,null,null,null,null,null,null,null,null,null,null,null,null,null,null,null,null,null,0]
[21,null,null,null,{"$f":"IF(COUNTA(H211:AA211)=0,\"\",COUNTA(H211:AA211))","v":""},null,null,null,null,null,null,null,null,null,null,null,null,null,null,null,null,null,null,null,null,null,null,0,{"$f":"AB211-AB210","v":0}]
[null,null,null,null,null,null,null,null,null,null,null,null,null,null,null,null,null,null,null,null,null,null,null,null,null,null,null,0]
[21,null,null,null,{"$f":"IF(COUNTA(H213:AA213)=0,\"\",COUNTA(H213:AA213))","v":""},null,null,null,null,null,null,null,null,null,null,null,null,null,null,null,null,null,null,null,null,null,null,0,{"$f":"AB213-AB212","v":0}]
[null,null,null,null,null,null,null,null,null,null,null,null,null,null,null,null,null,null,null,null,null,null,null,null,null,null,null,0]
[22," ",{"$f":"IF(G904=\"\",\"\",G904)","v":""},null,{"$f":"IF(COUNTA(H215:AA215)=0,\"\",COUNTA(H215:AA215))","v":""},null,null,null,null,null,null,null,null,null,null,null,null,null,null,null,null,null,null,null,null,null,null,0,{"$f":"AB215-AB214","v":0}]
[null,null,null,null,null,null,null,null,null,null,null,null,null,null,null,null,null,null,null,null,null,null,null,null,null,null,null,0]
[22,null,null,null,{"$f":"IF(COUNTA(H217:AA217)=0,\"\",COUNTA(H217:AA217))","v":""},null,null,null,null,null,null,null,null,null,null,null,null,null,null,null,null,null,null,null,null,null,null,0,{"$f":"AB217-AB216","v":0}]
[null,null,null,null,null,null,null,null,null,null,null,null,null,null,null,null,null,null,null,null,null,null,null,null,null,null,null,0]
[22," ",null,null,{"$f":"IF(COUNTA(H219:AA219)=0,\"\",COUNTA(H219:AA219))","v":""},null,null,null,null,null,null,null,null,null,null,null,null,null,null,null,null,null,null,null,null,null,null,0,{"$f":"AB219-AB218","v":0}]
[null,null,null,null,null,null,null,null,null,null,null,null,null,null,null,null,null,null,null,null,null,null,null,null,null,null,null,0]
[22,null,null,null,{"$f":"IF(COUNTA(H221:AA221)=0,\"\",COUNTA(H221:AA221))","v":""},null,null,null,null,null,null,null,null,null,null,null,null,null,null,null,null,null,null,null,null,null,null,0,{"$f":"AB221-AB220","v":0}]
[null,null,null,null,null,null,null,null,null,null,null,null,null,null,null,null,null,null,null,null,null,null,null,null,null,null,null,0]
[22,"民",null,null,{"$f":"IF(COUNTA(H223:AA223)=0,\"\",COUNTA(H223:AA223))","v":""},null,null,null,null,null,null,null,null,null,null,null,null,null,null,null,null,null,null,null,null,null,null,0,{"$f":"AB223-AB222","v":0}]
[null,null,null,null,null,null,null,null,null,null,null,null,null,null,null,null,null,null,null,null,null,null,null,null,null,null,null,0]
[23," ",{"$f":"IF(G906=\"\",\"\",G906)","v":""},null,{"$f":"IF(COUNTA(H225:AA225)=0,\"\",COUNTA(H225:AA225))","v":""},null,null,null,null,null,null,null,null,null,null,null,null,null,null,null,null,null,null,null,null,null,null,0,{"$f":"AB225-AB224","v":0}]
[null,null,null,null,null,null,null,null,null,null,null,null,null,null,null,null,null,null,null,null,null,null,null,null,null,null,null,0]
[23,null,null,null,{"$f":"IF(COUNTA(H227:AA227)=0,\"\",COUNTA(H227:AA227))","v":""},null,null,null,null,null,null,null,null,null,null,null,null,null,null,null,null,null,null,null,null,null,null,0,{"$f":"AB227-AB226","v":0}]
[null,null,null,null,null,null,null,null,null,null,null,null,null,null,null,null,null,null,null,null,null,null,null,null,null,null,null,0]
[23," ",null,null,{"$f":"IF(COUNTA(H229:AA229)=0,\"\",COUNTA(H229:AA229))","v":""},null,null,null,null,null,null,null,null,null,null,null,null,null,null,null,null,null,null,null,null,null,null,0,{"$f":"AB229-AB228","v":0}]
[null,null,null,null,null,null,null,null,null,null,null,null,null,null,null,null,null,null,null,null,null,null,null,null,null,null,null,0]
[23,null,null,null,{"$f":"IF(COUNTA(H231:AA231)=0,\"\",COUNTA(H231:AA231))","v":""},null,null,null,null,null,null,null,null,null,null,null,null,null,null,null,null,null,null,null,null,null,null,0,{"$f":"AB231-AB230","v":0}]
[null,null,null,null,null,null,null,null,null,null,null,null,null,null,null,null,null,null,null,null,null,null,null,null,null,null,null,0]
[23,null,null,null,{"$f":"IF(COUNTA(H233:AA233)=0,\"\",COUNTA(H233:AA233))","v":""},null,null,null,null,null,null,null,null,null,null,null,null,null,null,null,null,null,null,null,null,null,null,0,{"$f":"AB233-AB232","v":0}]
[null,null,null,null,null,null,null,null,null,null,null,null,null,null,null,null,null,null,null,null,null,null,null,null,null,null,null,0]
[24,null,{"$f":"IF(G908=\"\",\"\",G908)","v":""},null,{"$f":"IF(COUNTA(H235:AA235)=0,\"\",COUNTA(H235:AA235))","v":""},null,null,null,null,null,null,null,null,null,null,null,null,null,null,null,null,null,null,null,null,null,null,0,{"$f":"AB235-AB234","v":0}]
[null,null,null,null,null,null,null,null,null,null,null,null,null,null,null,null,null,null,null,null,null,null,null,null,null,null,null,0]
[24,null,null,null,{"$f":"IF(COUNTA(H237:AA237)=0,\"\",COUNTA(H237:AA237))","v":""},null,null,null,null,null,null,null,null,null,null,null,null,null,null,null,null,null,null,null,null,null,null,0,{"$f":"AB237-AB236","v":0}]
[null,null,null,null,null,null,null,null,null,null,null,null,null,null,null,null,null,null,null,null,null,null,null,null,null,null,null,0]
[24,null,null,null,{"$f":"IF(COUNTA(H239:AA239)=0,\"\",COUNTA(H239:AA239))","v":""},null,null,null,null,null,null,null,null,null,null,null,null,null,null,null,null,null,null,null,null,null,null,0,{"$f":"AB239-AB238","v":0}]
[null,null,null,null,null,null,null,null,null,null,null,null,null,null,null,null,null,null,null,null,null,null,null,null,null,null,null,0]
[24," ",null,null,{"$f":"IF(COUNTA(H241:AA241)=0,\"\",COUNTA(H241:AA241))","v":""},null,null,null,null,null,null,null,null,null,null,null,null,null,null,null,null,null,null,null,null,null,null,0,{"$f":"AB241-AB240","v":0}]
[null,null,null,null,null,null,null,null,null,null,null,null,null,null,null,null,null,null,null,null,null,null,null,null,null,null,null,0]
[24,null,null,null,{"$f":"IF(COUNTA(H243:AA243)=0,\"\",COUNTA(H243:AA243))","v":""},null,null,null,null,null,null,null,null,null,null,null,null,null,null,null,null,null,null,null,null,null,null,0,{"$f":"AB243-AB242","v":0}]
[null,null,null,null,null,null,null,null,null,null,null,null,null,null,null,null,null,null,null,null,null,null,null,null,null,null,null,0]
[25,null,{"$f":"IF(G910=\"\",\"\",G910)","v":"金子"},4,{"$f":"IF(COUNTA(H245:AA245)=0,\"\",COUNTA(H245:AA245))","v":16},"数Ⅰ","金子",15,15,15,15,16,16,16,16,17,17,17,17,18,18,18,18,null,null,null,null,16,{"$f":"AB245-AB244","v":16}]
[null,null,null,null,null,null,null,null,null,null,null,null,null,null,null,null,null,null,null,null,null,null,null,null,null,null,null,0]
[25,null,null,null,{"$f":"IF(COUNTA(H247:AA247)=0,\"\",COUNTA(H247:AA247))","v":""},null,null,null,null,null,null,null,null,null,null,null,null,null,null,null,null,null,null,null,null,null,null,0,{"$f":"AB247-AB246","v":0}]
[null,null,null,null,null,null,null,null,null,null,null,null,null,null,null,null,null,null,null,null,null,null,null,null,null,null,null,0]
[25,null,null,null,{"$f":"IF(COUNTA(H249:AA249)=0,\"\",COUNTA(H249:AA249))","v":""},null,null,null,null,null,null,null,null,null,null,null,null,null,null,null,null,null,null,null,null,null,null,0,{"$f":"AB249-AB248","v":0}]
[null,null,null,null,null,null,null,null,null,null,null,null,null,null,null,null,null,null,null,null,null,null,null,null,null,null,null,0]
[25,null,null,null,{"$f":"IF(COUNTA(H251:AA251)=0,\"\",COUNTA(H251:AA251))","v":""},null,null,null,null,null,null,null,null,null,null,null,null,null,null,null,null,null,null,null,null,null,null,0,{"$f":"AB251-AB250","v":0}]
[null,null,null,null,null,null,null,46,null,null,null,null,null,null,null,null,null,null,null,null,null,null,null,null,null,null,null,1]
[25,null,null,null,{"$f":"IF(COUNTA(H253:AA253)=0,\"\",COUNTA(H253:AA253))","v":1},"LHR","金子",18,null,null,null,null,null,null,null,null,null,null,null,null,null,null,null,null,null,null,null,1,{"$f":"AB253-AB252","v":0}]
[null,null,null,null,null,null,null,null,null,null,null,null,null,null,null,null,null,null,null,null,null,null,null,null,null,null,null,0]
[26,null,{"$f":"IF(G912=\"\",\"\",G912)","v":"山根ﾀ"},4,{"$f":"IF(COUNTA(H255:AA255)=0,\"\",COUNTA(H255:AA255))","v":8},"数Ⅰ","山根",12,12,12,12,13,13,13,13,null,null,null,null,null,null,null,null,null,null,null,null,8,{"$f":"AB255-AB254","v":8}]
[null,null,null,null,null,null,null,null,null,null,null,null,null,null,null,null,null,null,null,null,null,null,null,null,null,null,null,0]
[26,null,null,4,{"$f":"IF(COUNTA(H257:AA257)=0,\"\",COUNTA(H257:AA257))","v":8},"数Ⅱ","山根",21,21,21,21,25,25,25,25,null,null,null,null,null,null,null,null,null,null,null,null,8,{"$f":"AB257-AB256","v":8}]
[null,null,null,null,null,null,null,null,null,null,null,null,null,null,null,null,null,null,null,null,null,null,null,null,null,null,null,0]
[26,null,null,null,{"$f":"IF(COUNTA(H259:AA259)=0,\"\",COUNTA(H259:AA259))","v":""},null,null,null,null,null,null,null,null,null,null,null,null,null,null,null,null,null,null,null,null,null,null,0,{"$f":"AB259-AB258","v":0}]
[null,null,null,null,null,null,null,null,null,null,null,null,null,null,null,null,null,null,null,null,null,null,null,null,null,null,null,{"$f":"COUNTA(H260:AA260)","v":0}]
[26,null,null,null,{"$f":"IF(COUNTA(H261:AA261)=0,\"\",COUNTA(H261:AA261))","v":""},null,null,null,null,null,null,null,null,null,null,null,null,null,null,null,null,null,null,null,null,null,null,0,{"$f":"AB261-AB260","v":0}]
[null,null,null,null,null,null,null,null,null,null,null,null,null,null,null,null,null,null,null,null,null,null,null,null,null,null,null,0]
[26,null,null,null,{"$f":"IF(COUNTA(H263:AA263)=0,\"\",COUNTA(H263:AA263))","v":""},null,null,null,null,null,null,null,null,null,null,null,null,null,null,null,null,null,null,null,null,null,null,0,{"$f":"AB263-AB262","v":0}]
[null,null,null,null,null,null,null,null,null,null,null,null,null,null,null,null,null,null,null,null,null,null,null,null,null,null,null,0]
[27,"数",{"$f":"IF(G914=\"\",\"\",G914)","v":"斉藤ﾄ"},4,{"$f":"IF(COUNTA(H265:AA265)=0,\"\",COUNTA(H265:AA265))","v":4},"数Ⅰ","斉藤ﾄ",14,14,14,14,null,null,null,null,null,null,null,null,null,null,null,null,null,null,null,null,4,{"$f":"AB265-AB264","v":4}]
[null,null,null,null,null,null,null,null,null,null,null,null,null,null,null,null,null,null,null,null,null,null,null,null,null,null,null,0]
[27," ",null,4,{"$f":"IF(COUNTA(H267:AA267)=0,\"\",COUNTA(H267:AA267))","v":12},"数Ⅱ","斉藤ﾄ",22,22,22,22,23,23,23,23,24,24,24,24,null,null,null,null,null,null,null,null,12,{"$f":"AB267-AB266","v":12}]
[null,null,null,null,null,null,null,null,null,null,null,null,null,null,null,null,null,null,null,null,null,null,null,null,null,null,null,0]
[27,null,null,null,{"$f":"IF(COUNTA(H269:AA269)=0,\"\",COUNTA(H269:AA269))","v":""},null,null,null,null,null,null,null,null,null,null,null,null,null,null,null,null,null,null,null,null,null,null,0,{"$f":"AB269-AB268","v":0}]
[null,null,null,null,null,null,null,null,null,null,null,null,null,null,null,null,null,null,null,null,null,null,null,null,null,null,null,0]
[27,null,null,null,{"$f":"IF(COUNTA(H271:AA271)=0,\"\",COUNTA(H271:AA271))","v":""},null,null,null,null,null,null,null,null,null,null,null,null,null,null,null,null,null,null,null,null,null,null,0,{"$f":"AB271-AB270","v":0}]
[null,null,null,null,null,null,null,46,null,null,null,null,null,null,null,null,null,null,null,null,null,null,null,null,null,null,null,1]
[27,null,null,null,{"$f":"IF(COUNTA(H273:AA273)=0,\"\",COUNTA(H273:AA273))","v":1},"LHR","斉藤ﾄ",23,null,null,null,null,null,null,null,null,null,null,null,null,null,null,null,null,null,null,null,1,{"$f":"AB273-AB272","v":0}]
[null,null,null,null,null,null,null,null,null,null,null,null,null,null,null,null,null,null,null,null,null,null,null,null,null,null,null,0]
[28,null,{"$f":"IF(G916=\"\",\"\",G916)","v":"市ノ川"},4,{"$f":"IF(COUNTA(H275:AA275)=0,\"\",COUNTA(H275:AA275))","v":4},"数Ⅰ","市ノ川",11,11,11,11,null,null,null,null,null,null,null,null,null,null,null,null,null,null,null,null,4,{"$f":"AB275-AB274","v":4}]
[null,null,null,null,null,null,null,null,null,null,null,null,null,null,null,null,null,null,null,null,null,null,null,null,null,null,null,0]
[28,null,null,4,{"$f":"IF(COUNTA(H277:AA277)=0,\"\",COUNTA(H277:AA277))","v":12},"数Ⅱ","市ノ川",26,26,26,26,27,27,27,27,28,28,28,28,null,null,null,null,null,null,null,null,12,{"$f":"AB277-AB276","v":12}]
[null,null,null,null,null,null,null,null,null,null,null,null,null,null,null,null,null,null,null,null,null,null,null,null,null,null,null,0]
[28,null,null,null,{"$f":"IF(COUNTA(H279:AA279)=0,\"\",COUNTA(H279:AA279))","v":""},null,null,null,null,null,null,null,null,null,null,null,null,null,null,null,null,null,null,null,null,null,null,0,{"$f":"AB279-AB278","v":0}]
[null,null,null,null,null,null,null,null,null,null,null,null,null,null,null,null,null,null,null,null,null,null,null,null,null,null,null,0]
[28,null,null,null,{"$f":"IF(COUNTA(H281:AA281)=0,\"\",COUNTA(H281:AA281))","v":""},null,null,null,null,null,null,null,null,null,null,null,null,null,null,null,null,null,null,null,null,null,null,0,{"$f":"AB281-AB280","v":0}]
[null,null,null,null,null,null,null,46,null,null,null,null,null,null,null,null,null,null,null,null,null,null,null,null,null,null,null,1]
[28," ",null,null,{"$f":"IF(COUNTA(H283:AA283)=0,\"\",COUNTA(H283:AA283))","v":1},"LHR","市ノ川",28,null,null,null,null,null,null,null,null,null,null,null,null,null,null,null,null,null,null,null,1,{"$f":"AB283-AB282","v":0}]
[null,null,null,null,null,null,null,null,null,null,null,null,null,null,null,null,null,null,null,null,null,null,null,null,null,null,null,0]
[29,null,{"$f":"IF(G918=\"\",\"\",G918)","v":"多田"},2,{"$f":"IF(COUNTA(H285:AA285)=0,\"\",COUNTA(H285:AA285))","v":8},"数Ⅱ","多田",31,31,32,32,33,33,34,34,null,null,null,null,null,null,null,null,null,null,null,null,8,{"$f":"AB285-AB284","v":8}]
[null,null,null,null,null,null,null,null,null,null,null,null,null,null,null,null,null,null,null,null,null,null,null,null,null,null,null,0]
[29,null,null,4,{"$f":"IF(COUNTA(H287:AA287)=0,\"\",COUNTA(H287:AA287))","v":4},"数Ⅲ","多田",35,35,35,35,null,null,null,null,null,null,null,null,null,null,null,null,null,null,null,null,4,{"$f":"AB287-AB286","v":4}]
[null,null,null,null,null,null,null,12,43,null,null,null,null,null,null,null,null,null,null,null,null,null,null,null,null,null,null,2]
[29,null,null,null,{"$f":"IF(COUNTA(H289:AA289)=0,\"\",COUNTA(H289:AA289))","v":2},"数Ｃ","菊川  多田",34,34,null,null,null,null,null,null,null,null,null,null,null,null,null,null,null,null,null,null,2,{"$f":"AB289-AB288","v":0}]
[null,null,null,null,null,null,null,null,null,null,null,null,null,null,null,null,null,null,null,null,null,null,null,null,null,null,null,0]
[29,null,null,null,{"$f":"IF(COUNTA(H291:AA291)=0,\"\",COUNTA(H291:AA291))","v":""},null,null,null,null,null,null,null,null,null,null,null,null,null,null,null,null,null,null,null,null,null,null,0,{"$f":"AB291-AB290","v":0}]
[null,null,null,null,null,null,null,46,null,null,null,null,null,null,null,null,null,null,null,null,null,null,null,null,null,null,null,1]
[29,null,null,null,{"$f":"IF(COUNTA(H293:AA293)=0,\"\",COUNTA(H293:AA293))","v":1},"LHR","多田",34,null,null,null,null,null,null,null,null,null,null,null,null,null,null,null,null,null,null,null,1,{"$f":"AB293-AB292","v":0}]
[null,null,null,null,null,null,null,null,null,null,null,null,null,null,null,null,null,null,null,null,null,null,null,null,null,null,null,0]
[30,null,{"$f":"IF(G920=\"\",\"\",G920)","v":"菊川"},2,{"$f":"IF(COUNTA(H295:AA295)=0,\"\",COUNTA(H295:AA295))","v":6},"数Ⅱ","菊川",36,36,37,37,38,38,null,null,null,null,null,null,null,null,null,null,null,null,null,null,6,{"$f":"AB295-AB294","v":6}]
[null,null,null,null,null,null,null,null,null,null,null,null,null,null,null,null,null,null,null,null,null,null,null,null,null,null,null,0]
[30," ",null,2,{"$f":"IF(COUNTA(H297:AA297)=0,\"\",COUNTA(H297:AA297))","v":2},"数Ｂ","菊川",35,35,null,null,null,null,null,null,null,null,null,null,null,null,null,null,null,null,null,null,2,{"$f":"AB297-AB296","v":2}]
[null,null,null,null,null,null,null,12,43,null,null,null,null,null,null,null,null,null,null,null,null,null,null,null,null,null,null,2]
[30,null,null,null,{"$f":"IF(COUNTA(H299:AA299)=0,\"\",COUNTA(H299:AA299))","v":2},"数Ｃ","菊川  多田",34,34,null,null,null,null,null,null,null,null,null,null,null,null,null,null,null,null,null,null,2,{"$f":"AB299-AB298","v":0}]
[null,null,null,null,null,null,null,null,null,null,null,null,null,null,null,null,null,null,null,null,null,null,null,null,null,null,null,0]
[30,null,null,null,{"$f":"IF(COUNTA(H301:AA301)=0,\"\",COUNTA(H301:AA301))","v":""},null,null,null,null,null,null,null,null,null,null,null,null,null,null,null,null,null,null,null,null,null,null,0,{"$f":"AB301-AB300","v":0}]
[null,null,null,null,null,null,null,null,null,null,null,null,null,null,null,null,null,null,null,null,null,null,null,null,null,null,null,0]
[30,null,null,null,{"$f":"IF(COUNTA(H303:AA303)=0,\"\",COUNTA(H303:AA303))","v":""},null,null,null,null,null,null,null,null,null,null,null,null,null,null,null,null,null,null,null,null,null,null,0,{"$f":"AB303-AB302","v":0}]
[null,null,null,null,null,null,null,null,null,null,null,null,null,null,null,null,null,null,null,null,null,null,null,null,null,null,null,0]
[31,null,{"$f":"IF(G922=\"\",\"\",G920)","v":""},null,{"$f":"IF(COUNTA(H305:AA305)=0,\"\",COUNTA(H305:AA305))","v":""},null,null,null,null,null,null,null,null,null,null,null,null,null,null,null,null,null,null,null,null,null,null,0,{"$f":"AB305-AB304","v":0}]
[null,null,null,null,null,null,null,null,null,null,null,null,null,null,null,null,null,null,null,null,null,null,null,null,null,null,null,0]
[31,null,null,null,{"$f":"IF(COUNTA(H307:AA307)=0,\"\",COUNTA(H307:AA307))","v":""},null,null,null,null,null,null,null,null,null,null,null,null,null,null,null,null,null,null,null,null,null,null,0,{"$f":"AB307-AB306","v":0}]
[null,null,null,null,null,null,null,null,null,null,null,null,null,null,null,null,null,null,null,null,null,null,null,null,null,null,null,0]
[31,null,null,null,{"$f":"IF(COUNTA(H309:AA309)=0,\"\",COUNTA(H309:AA309))","v":""},null,null,null,null,null,null,null,null,null,null,null,null,null,null,null,null,null,null,null,null,null,null,0,{"$f":"AB309-AB308","v":0}]
[null,null,null,null,null,null,null,null,null,null,null,null,null,null,null,null,null,null,null,null,null,null,null,null,null,null,null,0]
[31,null,null,null,{"$f":"IF(COUNTA(H311:AA311)=0,\"\",COUNTA(H311:AA311))","v":""},null,null,null,null,null,null,null,null,null,null,null,null,null,null,null,null,null,null,null,null,null,null,0,{"$f":"AB311-AB310","v":0}]
[null,null,null,null,null,null,null,null,null,null,null,null,null,null,null,null,null,null,null,null,null,null,null,null,null,null,null,0]
[31,null,null,null,{"$f":"IF(COUNTA(H313:AA313)=0,\"\",COUNTA(H313:AA313))","v":""},null,null,null,null,null,null,null,null,null,null,null,null,null,null,null,null,null,null,null,null,null,null,0,{"$f":"AB313-AB312","v":0}]
[null,null,null,null,null,null,null,null,null,null,null,null,null,null,null,null,null,null,null,null,null,null,null,null,null,null,null,0]
[32,null,{"$f":"IF(G924=\"\",\"\",G924)","v":""},null,{"$f":"IF(COUNTA(H315:AA315)=0,\"\",COUNTA(H315:AA315))","v":""},null,null,null,null,null,null,null,null,null,null,null,null,null,null,null,null,null,null,null,null,null,null,0,{"$f":"AB315-AB314","v":0}]
[null,null,null,null,null,null,null,null,null,null,null,null,null,null,null,null,null,null,null,null,null,null,null,null,null,null,null,0]
[32,null,null,null,{"$f":"IF(COUNTA(H317:AA317)=0,\"\",COUNTA(H317:AA317))","v":""},null,null,null,null,null,null,null,null,null,null,null,null,null,null,null,null,null,null,null,null,null,null,0,{"$f":"AB317-AB316","v":0}]
[null,null,null,null,null,null,null,null,null,null,null,null,null,null,null,null,null,null,null,null,null,null,null,null,null,null,null,0]
[32,null,null,null,{"$f":"IF(COUNTA(H319:AA319)=0,\"\",COUNTA(H319:AA319))","v":""},null,null,null,null,null,null,null,null,null,null,null,null,null,null,null,null,null,null,null,null,null,null,0,{"$f":"AB319-AB318","v":0}]
[null,null,null,null,null,null,null,null,null,null,null,null,null,null,null,null,null,null,null,null,null,null,null,null,null,null,null,0]
[32," ",null,null,{"$f":"IF(COUNTA(H321:AA321)=0,\"\",COUNTA(H321:AA321))","v":""},null,null,null,null,null,null,null,null,null,null,null,null,null,null,null,null,null,null,null,null,null,null,0,{"$f":"AB321-AB320","v":0}]
[null,null,null,null,null,null,null,null,null,null,null,null,null,null,null,null,null,null,null,null,null,null,null,null,null,null,null,0]
[32,null,null,null,{"$f":"IF(COUNTA(H323:AA323)=0,\"\",COUNTA(H323:AA323))","v":""},null,null,null,null,null,null,null,null,null,null,null,null,null,null,null,null,null,null,null,null,null,null,0,{"$f":"AB323-AB322","v":0}]
[null,null,null,null,null,null,null,null,null,null,null,null,null,null,null,null,null,null,null,null,null,null,null,null,null,null,null,{"$f":"COUNTA(H324:AA324)","v":0}]
[33," ",{"$f":"IF(G926=\"\",\"\",G926)","v":""},null,{"$f":"IF(COUNTA(H325:AA325)=0,\"\",COUNTA(H325:AA325))","v":""},null,null,null,null,null,null,null,null,null,null,null,null,null,null,null,null,null,null,null,null,null,null,0,{"$f":"AB325-AB324","v":0}]
[null,null,null,null,null,null,null,null,null,null,null,null,null,null,null,null,null,null,null,null,null,null,null,null,null,null,null,0]
[33,null,null,null,{"$f":"IF(COUNTA(H327:AA327)=0,\"\",COUNTA(H327:AA327))","v":""},null,null,null,null,null,null,null,null,null,null,null,null,null,null,null,null,null,null,null,null,null,null,0,{"$f":"AB327-AB326","v":0}]
[null,null,null,null,null,null,null,null,null,null,null,null,null,null,null,null,null,null,null,null,null,null,null,null,null,null,null,0]
[33,null,null,null,{"$f":"IF(COUNTA(H329:AA329)=0,\"\",COUNTA(H329:AA329))","v":""},null,null,null,null,null,null,null,null,null,null,null,null,null,null,null,null,null,null,null,null,null,null,0,{"$f":"AB329-AB328","v":0}]
[null,null,null,null,null,null,null,null,null,null,null,null,null,null,null,null,null,null,null,null,null,null,null,null,null,null,null,0]
[33,null,null,null,{"$f":"IF(COUNTA(H331:AA331)=0,\"\",COUNTA(H331:AA331))","v":""},null,null,null,null,null,null,null,null,null,null,null,null,null,null,null,null,null,null,null,null,null,null,0,{"$f":"AB331-AB330","v":0}]
[null,null,null,null,null,null,null,null,null,null,null,null,null,null,null,null,null,null,null,null,null,null,null,null,null,null,null,0]
[33,null,null,null,{"$f":"IF(COUNTA(H333:AA333)=0,\"\",COUNTA(H333:AA333))","v":""},null,null,null,null,null,null,null,null,null,null,null,null,null,null,null,null,null,null,null,null,null,null,0,{"$f":"AB333-AB332","v":0}]
[null,null,null,null,null,null,null,null,null,null,null,null,null,null,null,null,null,null,null,null,null,null,null,null,null,null,null,0]
[34,null,{"$f":"IF(G928=\"\",\"\",G928)","v":""},null,{"$f":"IF(COUNTA(H335:AA335)=0,\"\",COUNTA(H335:AA335))","v":""},null,null,null,null,null,null,null,null,null,null,null,null,null,null,null,null,null,null,null,null,null,null,0,{"$f":"AB335-AB334","v":0}]
[null,null,null,null,null,null,null,null,null,null,null,null,null,null,null,null,null,null,null,null,null,null,null,null,null,null,null,0]
[34,null,null,null,{"$f":"IF(COUNTA(H337:AA337)=0,\"\",COUNTA(H337:AA337))","v":""},null,null,null,null,null,null,null,null,null,null,null,null,null,null,null,null,null,null,null,null,null,null,0,{"$f":"AB337-AB336","v":0}]
[null,null,null,null,null,null,null,null,null,null,null,null,null,null,null,null,null,null,null,null,null,null,null,null,null,null,null,0]
[34,null,null,null,{"$f":"IF(COUNTA(H339:AA339)=0,\"\",COUNTA(H339:AA339))","v":""},null,null,null,null,null,null,null,null,null,null,null,null,null,null,null,null,null,null,null,null,null,null,0,{"$f":"AB339-AB338","v":0}]
[null,null,null,null,null,null,null,null,null,null,null,null,null,null,null,null,null,null,null,null,null,null,null,null,null,null,null,0]
[34,null,null,null,{"$f":"IF(COUNTA(H341:AA341)=0,\"\",COUNTA(H341:AA341))","v":""},null,null,null,null,null,null,null,null,null,null,null,null,null,null,null,null,null,null,null,null,null,null,0,{"$f":"AB341-AB340","v":0}]
[null,null,null,null,null,null,null,null,null,null,null,null,null,null,null,null,null,null,null,null,null,null,null,null,null,null,null,0]
[34,"学",null,null,{"$f":"IF(COUNTA(H343:AA343)=0,\"\",COUNTA(H343:AA343))","v":""},null,null,null,null,null,null,null,null,null,null,null,null,null,null,null,null,null,null,null,null,null,null,0,{"$f":"AB343-AB342","v":0}]
[null,null,null,null,null,null,null,null,null,null,null,null,null,null,null,null,null,null,null,null,null,null,null,null,null,null,null,0]
[35,null,{"$f":"IF(G930=\"\",\"\",G930)","v":""},null,{"$f":"IF(COUNTA(H345:AA345)=0,\"\",COUNTA(H345:AA345))","v":""},null,null,null,null,null,null,null,null,null,null,null,null,null,null,null,null,null,null,null,null,null,null,0,{"$f":"AB345-AB344","v":0}]
[null,null,null,null,null,null,null,null,null,null,null,null,null,null,null,null,null,null,null,null,null,null,null,null,null,null,null,0]
[35,null,null,null,{"$f":"IF(COUNTA(H347:AA347)=0,\"\",COUNTA(H347:AA347))","v":""},null,null,null,null,null,null,null,null,null,null,null,null,null,null,null,null,null,null,null,null,null,null,0,{"$f":"AB347-AB346","v":0}]
[null,null,null,null,null,null,null,null,null,null,null,null,null,null,null,null,null,null,null,null,null,null,null,null,null,null,null,0]
[35,null,null,null,{"$f":"IF(COUNTA(H349:AA349)=0,\"\",COUNTA(H349:AA349))","v":""},null,null,null,null,null,null,null,null,null,null,null,null,null,null,null,null,null,null,null,null,null,null,0,{"$f":"AB349-AB348","v":0}]
[null,null,null,null,null,null,null,null,null,null,null,null,null,null,null,null,null,null,null,null,null,null,null,null,null,null,null,0]
[35,null,null,null,{"$f":"IF(COUNTA(H351:AA351)=0,\"\",COUNTA(H351:AA351))","v":""},null,null,null,null,null,null,null,null,null,null,null,null,null,null,null,null,null,null,null,null,null,null,0,{"$f":"AB351-AB350","v":0}]
[null,null,null,null,null,null,null,null,null,null,null,null,null,null,null,null,null,null,null,null,null,null,null,null,null,null,null,0]
[35,null,null,null,{"$f":"IF(COUNTA(H353:AA353)=0,\"\",COUNTA(H353:AA353))","v":""},null,null,null,null,null,null,null,null,null,null,null,null,null,null,null,null,null,null,null,null,null,null,0,{"$f":"AB353-AB352","v":0}]
[null,null,null,null,null,null,null,null,null,null,null,null,null,null,null,null,null,null,null,null,null,null,null,null,null,null,null,0]
[36,null,{"$f":"IF(G932=\"\",\"\",G932)","v":""},null,{"$f":"IF(COUNTA(H355:AA355)=0,\"\",COUNTA(H355:AA355))","v":""},null,null,null,null,null,null,null,null,null,null,null,null,null,null,null,null,null,null,null,null,null,null,0,{"$f":"AB355-AB354","v":0}]
[null,null,null,null,null,null,null,null,null,null,null,null,null,null,null,null,null,null,null,null,null,null,null,null,null,null,null,0]
[36,null,null,null,{"$f":"IF(COUNTA(H357:AA357)=0,\"\",COUNTA(H357:AA357))","v":""},null,null,null,null,null,null,null,null,null,null,null,null,null,null,null,null,null,null,null,null,null,null,0,{"$f":"AB357-AB356","v":0}]
[null,null,null,null,null,null,null,null,null,null,null,null,null,null,null,null,null,null,null,null,null,null,null,null,null,null,null,0]
[36,null,null,null,{"$f":"IF(COUNTA(H359:AA359)=0,\"\",COUNTA(H359:AA359))","v":""},null,null,null,null,null,null,null,null,null,null,null,null,null,null,null,null,null,null,null,null,null,null,0,{"$f":"AB359-AB358","v":0}]
[null,null,null,null,null,null,null,null,null,null,null,null,null,null,null,null,null,null,null,null,null,null,null,null,null,null,null,0]
[36,null,null,null,{"$f":"IF(COUNTA(H361:AA361)=0,\"\",COUNTA(H361:AA361))","v":""},null,null,null,null,null,null,null,null,null,null,null,null,null,null,null,null,null,null,null,null,null,null,0,{"$f":"AB361-AB360","v":0}]
[null,null,null,null,null,null,null,null,null,null,null,null,null,null,null,null,null,null,null,null,null,null,null,null,null,null,null,0]
[36,null,null,null,{"$f":"IF(COUNTA(H363:AA363)=0,\"\",COUNTA(H363:AA363))","v":""},null,null,null,null,null,null,null,null,null,null,null,null,null,null,null,null,null,null,null,null,null,null,0,{"$f":"AB363-AB362","v":0}]
[null,null,null,null,null,null,null,null,null,null,null,null,null,null,null,null,null,null,null,null,null,null,null,null,null,null,null,0]
[37,null,{"$f":"IF(G934=\"\",\"\",G934)","v":"関"},4,{"$f":"IF(COUNTA(H365:AA365)=0,\"\",COUNTA(H365:AA365))","v":12},"化Ｂ","関",11,11,11,11,12,12,12,12,13,13,13,13,null,null,null,null,null,null,null,null,12,{"$f":"AB365-AB364","v":12}]
[null,null,null,null,null,null,null,34,61,null,null,null,null,null,null,null,null,null,null,null,null,null,null,null,null,null,null,2]
[37,null,null,null,{"$f":"IF(COUNTA(H367:AA367)=0,\"\",COUNTA(H367:AA367))","v":2},"物化","関  斉藤ｻ",35,35,null,null,null,null,null,null,null,null,null,null,null,null,null,null,null,null,null,null,2,{"$f":"AB367-AB366","v":0}]
[null,null,null,null,null,null,null,null,null,null,null,null,null,null,null,null,null,null,null,null,null,null,null,null,null,null,null,0]
[37,null,null,null,{"$f":"IF(COUNTA(H369:AA369)=0,\"\",COUNTA(H369:AA369))","v":""},null,null,null,null,null,null,null,null,null,null,null,null,null,null,null,null,null,null,null,null,null,null,0,{"$f":"AB369-AB368","v":0}]
[null,null,null,null,null,null,null,null,null,null,null,null,null,null,null,null,null,null,null,null,null,null,null,null,null,null,null,0]
[37,null,null,null,{"$f":"IF(COUNTA(H371:AA371)=0,\"\",COUNTA(H371:AA371))","v":""},null,null,null,null,null,null,null,null,null,null,null,null,null,null,null,null,null,null,null,null,null,null,0,{"$f":"AB371-AB370","v":0}]
[null,null,null,null,null,null,null,46,null,null,null,null,null,null,null,null,null,null,null,null,null,null,null,null,null,null,null,1]
[37,null,null,null,{"$f":"IF(COUNTA(H373:AA373)=0,\"\",COUNTA(H373:AA373))","v":1},"LHR","関",11,null,null,null,null,null,null,null,null,null,null,null,null,null,null,null,null,null,null,null,1,{"$f":"AB373-AB372","v":0}]
[null,null,null,null,null,null,null,null,null,null,null,null,null,null,null,null,null,null,null,null,null,null,null,null,null,null,null,0]
[38,null,{"$f":"IF(G936=\"\",\"\",G936)","v":"上村"},2,{"$f":"IF(COUNTA(H375:AA375)=0,\"\",COUNTA(H375:AA375))","v":10},"物Ｄ","上村",21,21,22,22,23,23,24,24,25,25,null,null,null,null,null,null,null,null,null,null,10,{"$f":"AB375-AB374","v":10}]
[null,null,null,null,null,null,null,null,null,null,null,null,null,null,null,null,null,null,null,null,null,null,null,null,null,null,null,0]
[38,null,null,2,{"$f":"IF(COUNTA(H377:AA377)=0,\"\",COUNTA(H377:AA377))","v":6},"地学","上村",32,32,34,34,37,37,null,null,null,null,null,null,null,null,null,null,null,null,null,null,6,{"$f":"AB377-AB376","v":6}]
[null,null,null,null,null,null,null,null,null,null,null,null,null,null,null,null,null,null,null,null,null,null,null,null,null,null,null,0]
[38,null,null,null,{"$f":"IF(COUNTA(H379:AA379)=0,\"\",COUNTA(H379:AA379))","v":""},null,null,null,null,null,null,null,null,null,null,null,null,null,null,null,null,null,null,null,null,null,null,0,{"$f":"AB379-AB378","v":0}]
[null,null,null,null,null,null,null,null,null,null,null,null,null,null,null,null,null,null,null,null,null,null,null,null,null,null,null,0]
[38,null,null,null,{"$f":"IF(COUNTA(H381:AA381)=0,\"\",COUNTA(H381:AA381))","v":""},null,null,null,null,null,null,null,null,null,null,null,null,null,null,null,null,null,null,null,null,null,null,0,{"$f":"AB381-AB380","v":0}]
[null,null,null,null,null,null,null,46,null,null,null,null,null,null,null,null,null,null,null,null,null,null,null,null,null,null,null,1]
[38," ",null,null,{"$f":"IF(COUNTA(H383:AA383)=0,\"\",COUNTA(H383:AA383))","v":1},"LUR","上村",22,null,null,null,null,null,null,null,null,null,null,null,null,null,null,null,null,null,null,null,1,{"$f":"AB383-AB382","v":0}]
[null,null,null,null,null,null,null,null,null,null,null,null,null,null,null,null,null,null,null,null,null,null,null,null,null,null,null,0]
[39,"理",{"$f":"IF(G938=\"\",\"\",G938)","v":"中田"},4,{"$f":"IF(COUNTA(H385:AA385)=0,\"\",COUNTA(H385:AA385))","v":8},"化Ｂ","中田",17,17,17,17,18,18,18,18,null,null,null,null,null,null,null,null,null,null,null,null,8,{"$f":"AB385-AB384","v":8}]
[null,null,null,null,null,null,null,null,null,null,null,null,null,null,null,null,null,null,null,null,null,null,null,null,null,null,null,0]
[39,null,null,2,{"$f":"IF(COUNTA(H387:AA387)=0,\"\",COUNTA(H387:AA387))","v":6},"物Ｃ","中田",26,26,27,27,28,28,null,null,null,null,null,null,null,null,null,null,null,null,null,null,6,{"$f":"AB387-AB386","v":6}]
[null,null,null,null,null,null,null,null,null,null,null,null,null,null,null,null,null,null,null,null,null,null,null,null,null,null,null,{"$f":"COUNTA(H388:AA388)","v":0}]
[39,null,null,null,{"$f":"IF(COUNTA(H389:AA389)=0,\"\",COUNTA(H389:AA389))","v":""},null,null,null,null,null,null,null,null,null,null,null,null,null,null,null,null,null,null,null,null,null,null,0,{"$f":"AB389-AB388","v":0}]
[null,null,null,null,null,null,null,null,null,null,null,null,null,null,null,null,null,null,null,null,null,null,null,null,null,null,null,0]
[39,null,null,null,{"$f":"IF(COUNTA(H391:AA391)=0,\"\",COUNTA(H391:AA391))","v":""},null,null,null,null,null,null,null,null,null,null,null,null,null,null,null,null,null,null,null,null,null,null,0,{"$f":"AB391-AB390","v":0}]
[null,null,null,null,null,null,null,46,null,null,null,null,null,null,null,null,null,null,null,null,null,null,null,null,null,null,null,1]
[39,null,null,null,{"$f":"IF(COUNTA(H393:AA393)=0,\"\",COUNTA(H393:AA393))","v":1},"LHR","中田",26,null,null,null,null,null,null,null,null,null,null,null,null,null,null,null,null,null,null,null,1,{"$f":"AB393-AB392","v":0}]
[null,null,null,null,null,null,null,null,null,null,null,null,null,null,null,null,null,null,null,null,null,null,null,null,null,null,null,0]
[40,null,{"$f":"IF(G940=\"\",\"\",G940)","v":"金室"},2,{"$f":"IF(COUNTA(H395:AA395)=0,\"\",COUNTA(H395:AA395))","v":10},"物Ｃ","金室",21,21,22,22,23,23,24,24,25,25,null,null,null,null,null,null,null,null,null,null,10,{"$f":"AB395-AB394","v":10}]
[null,null,null,null,null,null,null,null,null,null,null,null,null,null,null,null,null,null,null,null,null,null,null,null,null,null,null,0]
[40,null,null,2,{"$f":"IF(COUNTA(H397:AA397)=0,\"\",COUNTA(H397:AA397))","v":6},"物Ｄ","金室",26,26,27,27,28,28,null,null,null,null,null,null,null,null,null,null,null,null,null,null,6,{"$f":"AB397-AB396","v":6}]
[null,null,null,null,null,null,null,null,null,null,null,null,null,null,null,null,null,null,null,null,null,null,null,null,null,null,null,0]
[40,null,null,null,{"$f":"IF(COUNTA(H399:AA399)=0,\"\",COUNTA(H399:AA399))","v":""},null,null,null,null,null,null,null,null,null,null,null,null,null,null,null,null,null,null,null,null,null,null,0,{"$f":"AB399-AB398","v":0}]
[null,null,null,null,null,null,null,null,null,null,null,null,null,null,null,null,null,null,null,null,null,null,null,null,null,null,null,0]
[40,null,null,null,{"$f":"IF(COUNTA(H401:AA401)=0,\"\",COUNTA(H401:AA401))","v":""},null,null,null,null,null,null,null,null,null,null,null,null,null,null,null,null,null,null,null,null,null,null,0,{"$f":"AB401-AB400","v":0}]
[null,null,null,null,null,null,null,null,null,null,null,null,null,null,null,null,null,null,null,null,null,null,null,null,null,null,null,0]
[40,null,null,null,{"$f":"IF(COUNTA(H403:AA403)=0,\"\",COUNTA(H403:AA403))","v":""},null,null,null,null,null,null,null,null,null,null,null,null,null,null,null,null,null,null,null,null,null,null,0,{"$f":"AB403-AB402","v":0}]
[null,null,null,null,null,null,null,null,null,null,null,null,null,null,null,null,null,null,null,null,null,null,null,null,null,null,null,0]
[41,null,{"$f":"IF(G942=\"\",\"\",G942)","v":"成谷"},4,{"$f":"IF(COUNTA(H405:AA405)=0,\"\",COUNTA(H405:AA405))","v":16},"生物","成谷",35,35,35,35,36,36,36,36,37,37,37,37,38,38,38,38,null,null,null,null,16,{"$f":"AB405-AB404","v":16}]
[null,null,null,null,null,null,null,null,null,null,null,null,null,null,null,null,null,null,null,null,null,null,null,null,null,null,null,0]
[41,null,null,null,{"$f":"IF(COUNTA(H407:AA407)=0,\"\",COUNTA(H407:AA407))","v":""},null,null,null,null,null,null,null,null,null,null,null,null,null,null,null,null,null,null,null,null,null,null,0,{"$f":"AB407-AB406","v":0}]
[null,null,null,null,null,null,null,null,null,null,null,null,null,null,null,null,null,null,null,null,null,null,null,null,null,null,null,0]
[41,null,null,null,{"$f":"IF(COUNTA(H409:AA409)=0,\"\",COUNTA(H409:AA409))","v":""},null,null,null,null,null,null,null,null,null,null,null,null,null,null,null,null,null,null,null,null,null,null,0,{"$f":"AB409-AB408","v":0}]
[null,null,null,null,null,null,null,null,null,null,null,null,null,null,null,null,null,null,null,null,null,null,null,null,null,null,null,0]
[41,null,null,null,{"$f":"IF(COUNTA(H411:AA411)=0,\"\",COUNTA(H411:AA411))","v":""},null,null,null,null,null,null,null,null,null,null,null,null,null,null,null,null,null,null,null,null,null,null,0,{"$f":"AB411-AB410","v":0}]
[null,null,null,null,null,null,null,46,null,null,null,null,null,null,null,null,null,null,null,null,null,null,null,null,null,null,null,1]
[41," ",null,null,{"$f":"IF(COUNTA(H413:AA413)=0,\"\",COUNTA(H413:AA413))","v":1},"LHR","成谷",38,null,null,null,null,null,null,null,null,null,null,null,null,null,null,null,null,null,null,null,1,{"$f":"AB413-AB412","v":0}]
[null,null,null,null,null,null,null,null,null,null,null,null,null,null,null,null,null,null,null,null,null,null,null,null,null,null,null,0]
[42,null,{"$f":"IF(G944=\"\",\"\",G944)","v":"斉藤ｻ"},4,{"$f":"IF(COUNTA(H415:AA415)=0,\"\",COUNTA(H415:AA415))","v":12},"化Ｂ","斉藤ｻ",14,14,14,14,15,15,15,15,16,16,16,16,null,null,null,null,null,null,null,null,12,{"$f":"AB415-AB414","v":12}]
[null,null,null,null,null,null,null,34,61,null,null,null,null,null,null,null,null,null,null,null,null,null,null,null,null,null,null,2]
[42," ",null,null,{"$f":"IF(COUNTA(H417:AA417)=0,\"\",COUNTA(H417:AA417))","v":2},"物化","関  斉藤ｻ",35,35,null,null,null,null,null,null,null,null,null,null,null,null,null,null,null,null,null,null,2,{"$f":"AB417-AB416","v":0}]
[null,null,null,null,null,null,null,null,null,null,null,null,null,null,null,null,null,null,null,null,null,null,null,null,null,null,null,0]
[42,null,null,null,{"$f":"IF(COUNTA(H419:AA419)=0,\"\",COUNTA(H419:AA419))","v":""},null,null,null,null,null,null,null,null,null,null,null,null,null,null,null,null,null,null,null,null,null,null,0,{"$f":"AB419-AB418","v":0}]
[null,null,null,null,null,null,null,null,null,null,null,null,null,null,null,null,null,null,null,null,null,null,null,null,null,null,null,0]
[42," ",null,null,{"$f":"IF(COUNTA(H421:AA421)=0,\"\",COUNTA(H421:AA421))","v":""},null,null,null,null,null,null,null,null,null,null,null,null,null,null,null,null,null,null,null,null,null,null,0,{"$f":"AB421-AB420","v":0}]
[null,null,null,null,null,null,null,null,null,null,null,null,null,null,null,null,null,null,null,null,null,null,null,null,null,null,null,0]
[42,null,null,null,{"$f":"IF(COUNTA(H423:AA423)=0,\"\",COUNTA(H423:AA423))","v":""},null,null,null,null,null,null,null,null,null,null,null,null,null,null,null,null,null,null,null,null,null,null,0,{"$f":"AB423-AB422","v":0}]
[null,null,null,null,null,null,null,null,null,null,null,null,null,null,null,null,null,null,null,null,null,null,null,null,null,null,null,0]
[43,null,{"$f":"IF(G946=\"\",\"\",G946)","v":"涌井"},4,{"$f":"IF(COUNTA(H425:AA425)=0,\"\",COUNTA(H425:AA425))","v":16},"生物","涌井",31,31,31,31,32,32,32,32,33,33,33,33,34,34,34,34,null,null,null,null,16,{"$f":"AB425-AB424","v":16}]
[null,null,null,null,null,null,null,null,null,null,null,null,null,null,null,null,null,null,null,null,null,null,null,null,null,null,null,0]
[43,null,null,null,{"$f":"IF(COUNTA(H427:AA427)=0,\"\",COUNTA(H427:AA427))","v":""},null,null,null,null,null,null,null,null,null,null,null,null,null,null,null,null,null,null,null,null,null,null,0,{"$f":"AB427-AB426","v":0}]
[null,null,null,null,null,null,null,null,null,null,null,null,null,null,null,null,null,null,null,null,null,null,null,null,null,null,null,0]
[43,null,null,null,{"$f":"IF(COUNTA(H429:AA429)=0,\"\",COUNTA(H429:AA429))","v":""},null,null,null,null,null,null,null,null,null,null,null,null,null,null,null,null,null,null,null,null,null,null,0,{"$f":"AB429-AB428","v":0}]
[null,null,null,null,null,null,null,null,null,null,null,null,null,null,null,null,null,null,null,null,null,null,null,null,null,null,null,0]
[43,null,null,null,{"$f":"IF(COUNTA(H431:AA431)=0,\"\",COUNTA(H431:AA431))","v":""},null,null,null,null,null,null,null,null,null,null,null,null,null,null,null,null,null,null,null,null,null,null,0,{"$f":"AB431-AB430","v":0}]
[null,null,null,null,null,null,null,null,null,null,null,null,null,null,null,null,null,null,null,null,null,null,null,null,null,null,null,0]
[43,null,null,null,{"$f":"IF(COUNTA(H433:AA433)=0,\"\",COUNTA(H433:AA433))","v":""},null,null,null,null,null,null,null,null,null,null,null,null,null,null,null,null,null,null,null,null,null,null,0,{"$f":"AB433-AB432","v":0}]
[null,null,null,null,null,null,null,null,null,null,null,null,null,null,null,null,null,null,null,null,null,null,null,null,null,null,null,0]
[44,null,{"$f":"IF(G948=\"\",\"\",G948)","v":""},null,{"$f":"IF(COUNTA(H435:AA435)=0,\"\",COUNTA(H435:AA435))","v":""},null,null,null,null,null,null,null,null,null,null,null,null,null,null,null,null,null,null,null,null,null,null,0,{"$f":"AB435-AB434","v":0}]
[null,null,null,null,null,null,null,null,null,null,null,null,null,null,null,null,null,null,null,null,null,null,null,null,null,null,null,0]
[44,null,null,null,{"$f":"IF(COUNTA(H437:AA437)=0,\"\",COUNTA(H437:AA437))","v":""},null,null,null,null,null,null,null,null,null,null,null,null,null,null,null,null,null,null,null,null,null,null,0,{"$f":"AB437-AB436","v":0}]
[null,null,null,null,null,null,null,null,null,null,null,null,null,null,null,null,null,null,null,null,null,null,null,null,null,null,null,0]
[44,null,null,null,{"$f":"IF(COUNTA(H439:AA439)=0,\"\",COUNTA(H439:AA439))","v":""},null,null,null,null,null,null,null,null,null,null,null,null,null,null,null,null,null,null,null,null,null,null,0,{"$f":"AB439-AB438","v":0}]
[null,null,null,null,null,null,null,null,null,null,null,null,null,null,null,null,null,null,null,null,null,null,null,null,null,null,null,0]
[44,null,null,null,{"$f":"IF(COUNTA(H441:AA441)=0,\"\",COUNTA(H441:AA441))","v":""},null,null,null,null,null,null,null,null,null,null,null,null,null,null,null,null,null,null,null,null,null,null,0,{"$f":"AB441-AB440","v":0}]
[null,null,null,null,null,null,null,null,null,null,null,null,null,null,null,null,null,null,null,null,null,null,null,null,null,null,null,0]
[44,null,null,null,{"$f":"IF(COUNTA(H443:AA443)=0,\"\",COUNTA(H443:AA443))","v":""},null,null,null,null,null,null,null,null,null,null,null,null,null,null,null,null,null,null,null,null,null,null,0,{"$f":"AB443-AB442","v":0}]
[null,null,null,null,null,null,null,null,null,null,null,null,null,null,null,null,null,null,null,null,null,null,null,null,null,null,null,0]
[45,null,{"$f":"IF(G950=\"\",\"\",G950)","v":""},null,{"$f":"IF(COUNTA(H445:AA445)=0,\"\",COUNTA(H445:AA445))","v":""},null,null,null,null,null,null,null,null,null,null,null,null,null,null,null,null,null,null,null,null,null,null,0,{"$f":"AB445-AB444","v":0}]
[null,null,null,null,null,null,null,null,null,null,null,null,null,null,null,null,null,null,null,null,null,null,null,null,null,null,null,0]
[45,null,null,null,{"$f":"IF(COUNTA(H447:AA447)=0,\"\",COUNTA(H447:AA447))","v":""},null,null,null,null,null,null,null,null,null,null,null,null,null,null,null,null,null,null,null,null,null,null,0,{"$f":"AB447-AB446","v":0}]
[null,null,null,null,null,null,null,null,null,null,null,null,null,null,null,null,null,null,null,null,null,null,null,null,null,null,null,0]
[45,null,null,null,{"$f":"IF(COUNTA(H449:AA449)=0,\"\",COUNTA(H449:AA449))","v":""},null,null,null,null,null,null,null,null,null,null,null,null,null,null,null,null,null,null,null,null,null,null,0,{"$f":"AB449-AB448","v":0}]
[null,null,null,null,null,null,null,null,null,null,null,null,null,null,null,null,null,null,null,null,null,null,null,null,null,null,null,0]
[45,null,null,null,{"$f":"IF(COUNTA(H451:AA451)=0,\"\",COUNTA(H451:AA451))","v":""},null,null,null,null,null,null,null,null,null,null,null,null,null,null,null,null,null,null,null,null,null,null,0,{"$f":"AB451-AB450","v":0}]
[null,null,null,null,null,null,null,null,null,null,null,null,null,null,null,null,null,null,null,null,null,null,null,null,null,null,null,{"$f":"COUNTA(H452:AA452)","v":0}]
[45,null,null,null,{"$f":"IF(COUNTA(H453:AA453)=0,\"\",COUNTA(H453:AA453))","v":""},null,null,null,null,null,null,null,null,null,null,null,null,null,null,null,null,null,null,null,null,null,null,0,{"$f":"AB453-AB452","v":0}]
[null,null,null,null,null,null,null,null,null,null,null,null,null,null,null,null,null,null,null,null,null,null,null,null,null,null,null,0]
[46,null,{"$f":"IF(G952=\"\",\"\",G952)","v":""},null,{"$f":"IF(COUNTA(H455:AA455)=0,\"\",COUNTA(H455:AA455))","v":""},null,null,null,null,null,null,null,null,null,null,null,null,null,null,null,null,null,null,null,null,null,null,0,{"$f":"AB455-AB454","v":0}]
[null,null,null,null,null,null,null,null,null,null,null,null,null,null,null,null,null,null,null,null,null,null,null,null,null,null,null,0]
[46,null,null,null,{"$f":"IF(COUNTA(H457:AA457)=0,\"\",COUNTA(H457:AA457))","v":""},null,null,null,null,null,null,null,null,null,null,null,null,null,null,null,null,null,null,null,null,null,null,0,{"$f":"AB457-AB456","v":0}]
[null,null,null,null,null,null,null,null,null,null,null,null,null,null,null,null,null,null,null,null,null,null,null,null,null,null,null,0]
[46,null,null,null,{"$f":"IF(COUNTA(H459:AA459)=0,\"\",COUNTA(H459:AA459))","v":""},null,null,null,null,null,null,null,null,null,null,null,null,null,null,null,null,null,null,null,null,null,null,0,{"$f":"AB459-AB458","v":0}]
[null,null,null,null,null,null,null,null,null,null,null,null,null,null,null,null,null,null,null,null,null,null,null,null,null,null,null,0]
[46,null,null,null,{"$f":"IF(COUNTA(H461:AA461)=0,\"\",COUNTA(H461:AA461))","v":""},null,null,null,null,null,null,null,null,null,null,null,null,null,null,null,null,null,null,null,null,null,null,0,{"$f":"AB461-AB460","v":0}]
[null,null,null,null,null,null,null,null,null,null,null,null,null,null,null,null,null,null,null,null,null,null,null,null,null,null,null,0]
[46,"科",null,null,{"$f":"IF(COUNTA(H463:AA463)=0,\"\",COUNTA(H463:AA463))","v":""},null,null,null,null,null,null,null,null,null,null,null,null,null,null,null,null,null,null,null,null,null,null,0,{"$f":"AB463-AB462","v":0}]
[null,null,null,null,null,null,null,null,null,null,null,null,null,null,null,null,null,null,null,null,null,null,null,null,null,null,null,0]
[47,null,{"$f":"IF(G954=\"\",\"\",G954)","v":""},null,{"$f":"IF(COUNTA(H465:AA465)=0,\"\",COUNTA(H465:AA465))","v":""},null,null,null,null,null,null,null,null,null,null,null,null,null,null,null,null,null,null,null,null,null,null,0,{"$f":"AB465-AB464","v":0}]
[null,null,null,null,null,null,null,null,null,null,null,null,null,null,null,null,null,null,null,null,null,null,null,null,null,null,null,0]
[47,null,null,null,{"$f":"IF(COUNTA(H467:AA467)=0,\"\",COUNTA(H467:AA467))","v":""},null,null,null,null,null,null,null,null,null,null,null,null,null,null,null,null,null,null,null,null,null,null,0,{"$f":"AB467-AB466","v":0}]
[null,null,null,null,null,null,null,null,null,null,null,null,null,null,null,null,null,null,null,null,null,null,null,null,null,null,null,0]
[47,null,null,null,{"$f":"IF(COUNTA(H469:AA469)=0,\"\",COUNTA(H469:AA469))","v":""},null,null,null,null,null,null,null,null,null,null,null,null,null,null,null,null,null,null,null,null,null,null,0,{"$f":"AB469-AB468","v":0}]
[null,null,null,null,null,null,null,null,null,null,null,null,null,null,null,null,null,null,null,null,null,null,null,null,null,null,null,0]
[47,null,null,null,{"$f":"IF(COUNTA(H471:AA471)=0,\"\",COUNTA(H471:AA471))","v":""},null,null,null,null,null,null,null,null,null,null,null,null,null,null,null,null,null,null,null,null,null,null,0,{"$f":"AB471-AB470","v":0}]
[null,null,null,null,null,null,null,null,null,null,null,null,null,null,null,null,null,null,null,null,null,null,null,null,null,null,null,0]
[47,null,null,null,{"$f":"IF(COUNTA(H473:AA473)=0,\"\",COUNTA(H473:AA473))","v":""},null,null,null,null,null,null,null,null,null,null,null,null,null,null,null,null,null,null,null,null,null,null,0,{"$f":"AB473-AB472","v":0}]
[null,null,null,null,null,null,null,null,null,null,null,null,null,null,null,null,null,null,null,null,null,null,null,null,null,null,null,0]
[48,null,{"$f":"IF(G956=\"\",\"\",G956)","v":""},null,{"$f":"IF(COUNTA(H475:AA475)=0,\"\",COUNTA(H475:AA475))","v":""},null,null,null,null,null,null,null,null,null,null,null,null,null,null,null,null,null,null,null,null,null,null,0,{"$f":"AB475-AB474","v":0}]
[null,null,null,null,null,null,null,null,null,null,null,null,null,null,null,null,null,null,null,null,null,null,null,null,null,null,null,0]
[48,null,null,null,{"$f":"IF(COUNTA(H477:AA477)=0,\"\",COUNTA(H477:AA477))","v":""},null,null,null,null,null,null,null,null,null,null,null,null,null,null,null,null,null,null,null,null,null,null,0,{"$f":"AB477-AB476","v":0}]
[null,null,null,null,null,null,null,null,null,null,null,null,null,null,null,null,null,null,null,null,null,null,null,null,null,null,null,0]
[48,null,null,null,{"$f":"IF(COUNTA(H479:AA479)=0,\"\",COUNTA(H479:AA479))","v":""},null,null,null,null,null,null,null,null,null,null,null,null,null,null,null,null,null,null,null,null,null,null,0,{"$f":"AB479-AB478","v":0}]
[null,null,null,null,null,null,null,null,null,null,null,null,null,null,null,null,null,null,null,null,null,null,null,null,null,null,null,0]
[48,null,null,null,{"$f":"IF(COUNTA(H481:AA481)=0,\"\",COUNTA(H481:AA481))","v":""},null,null,null,null,null,null,null,null,null,null,null,null,null,null,null,null,null,null,null,null,null,null,0,{"$f":"AB481-AB480","v":0}]
[null,null,null,null,null,null,null,null,null,null,null,null,null,null,null,null,null,null,null,null,null,null,null,null,null,null,null,0]
[48,null,null,null,{"$f":"IF(COUNTA(H483:AA483)=0,\"\",COUNTA(H483:AA483))","v":""},null,null,null,null,null,null,null,null,null,null,null,null,null,null,null,null,null,null,null,null,null,null,0,{"$f":"AB483-AB482","v":0}]
[null,null,null,null,null,null,null,11,34,24,51,null,null,null,null,null,null,null,null,null,null,null,null,null,null,null,null,4]
[49,null,{"$f":"IF(G958=\"\",\"\",G958)","v":"名児耶"},null,{"$f":"IF(COUNTA(H485:AA485)=0,\"\",COUNTA(H485:AA485))","v":4},"体育","名児耶国延",11,11,13,13,null,null,null,null,null,null,null,null,null,null,null,null,null,null,null,null,4,{"$f":"AB485-AB484","v":0}]
[null,null,null,null,null,null,null,26,12,null,null,null,null,null,null,null,null,null,null,null,null,null,null,null,null,null,null,2]
[49,null,null,null,{"$f":"IF(COUNTA(H487:AA487)=0,\"\",COUNTA(H487:AA487))","v":2},"体育","名児耶大徳",11,13,null,null,null,null,null,null,null,null,null,null,null,null,null,null,null,null,null,null,2,{"$f":"AB487-AB486","v":0}]
[null,null,null,null,null,null,null,15,25,31,null,null,null,null,null,null,null,null,null,null,null,null,null,null,null,null,null,3]
[49,null,null,null,{"$f":"IF(COUNTA(H489:AA489)=0,\"\",COUNTA(H489:AA489))","v":3},"体育","名児耶仙徳",27,27,27,null,null,null,null,null,null,null,null,null,null,null,null,null,null,null,null,null,3,{"$f":"AB489-AB488","v":0}]
[null,null,null,null,null,null,null,52,13,55,null,null,null,null,null,null,null,null,null,null,null,null,null,null,null,null,null,3]
[49,null,null,null,{"$f":"IF(COUNTA(H491:AA491)=0,\"\",COUNTA(H491:AA491))","v":3},"体育","名児耶大徳 山崎  井上",31,32,33,null,null,null,null,null,null,null,null,null,null,null,null,null,null,null,null,null,3,{"$f":"AB491-AB490","v":0}]
[null,null,null,null,null,null,null,35,36,null,null,null,null,null,null,null,null,null,null,null,null,null,null,null,null,null,null,2]
[49,null,null,null,{"$f":"IF(COUNTA(H493:AA493)=0,\"\",COUNTA(H493:AA493))","v":2},"選体","名 国 八 仙 大 山 井",34,34,null,null,null,null,null,null,null,null,null,null,null,null,null,null,null,null,null,null,2,{"$f":"AB493-AB492","v":0}]
[null,null,null,null,null,null,null,23,54,null,null,null,null,null,null,null,null,null,null,null,null,null,null,null,null,null,null,2]
[49,null,null,null,{"$f":"IF(COUNTA(H495:AA495)=0,\"\",COUNTA(H495:AA495))","v":2},"保健","名児耶",14,15,null,null,null,null,null,null,null,null,null,null,null,null,null,null,null,null,null,null,2,{"$f":"AB495-AB494","v":0}]
[null,null,null,null,null,null,null,null,null,null,null,null,null,null,null,null,null,null,null,null,null,null,null,null,null,null,null,0]
[49,null,null,null,{"$f":"IF(COUNTA(H497:AA497)=0,\"\",COUNTA(H497:AA497))","v":""},null,null,null,null,null,null,null,null,null,null,null,null,null,null,null,null,null,null,null,null,null,null,0,{"$f":"AB497-AB496","v":0}]
[null,null,null,null,null,null,null,46,null,null,null,null,null,null,null,null,null,null,null,null,null,null,null,null,null,null,null,1]
[49,null,null,null,{"$f":"IF(COUNTA(H499:AA499)=0,\"\",COUNTA(H499:AA499))","v":1},"LHR","名児耶",14,null,null,null,null,null,null,null,null,null,null,null,null,null,null,null,null,null,null,null,1,{"$f":"AB499-AB498","v":0}]
[null,null,null,null,null,null,null,11,34,24,51,null,null,null,null,null,null,null,null,null,null,null,null,null,null,null,null,4]
[50,"体",{"$f":"IF(G960=\"\",\"\",G960)","v":"国延"},null,{"$f":"IF(COUNTA(H501:AA501)=0,\"\",COUNTA(H501:AA501))","v":4},"体育","名児耶国延",12,12,14,14,null,null,null,null,null,null,null,null,null,null,null,null,null,null,null,null,4,{"$f":"AB501-AB500","v":0}]
[null,null,null,null,null,null,null,12,31,null,null,null,null,null,null,null,null,null,null,null,null,null,null,null,null,null,null,2]
[50," ",null,null,{"$f":"IF(COUNTA(H503:AA503)=0,\"\",COUNTA(H503:AA503))","v":2},"体育","国延  八木",15,15,null,null,null,null,null,null,null,null,null,null,null,null,null,null,null,null,null,null,2,{"$f":"AB503-AB502","v":0}]
[null,null,null,null,null,null,null,53,21,null,null,null,null,null,null,null,null,null,null,null,null,null,null,null,null,null,null,2]
[50,null,null,null,{"$f":"IF(COUNTA(H505:AA505)=0,\"\",COUNTA(H505:AA505))","v":2},"体育","国延  大徳",15,17,null,null,null,null,null,null,null,null,null,null,null,null,null,null,null,null,null,null,2,{"$f":"AB505-AB504","v":0}]
[null,null,null,null,null,null,null,15,43,null,null,null,null,null,null,null,null,null,null,null,null,null,null,null,null,null,null,2]
[50,null,null,null,{"$f":"IF(COUNTA(H507:AA507)=0,\"\",COUNTA(H507:AA507))","v":2},"体育","国延  山崎",17,17,null,null,null,null,null,null,null,null,null,null,null,null,null,null,null,null,null,null,2,{"$f":"AB507-AB506","v":0}]
[null,null,null,null,null,null,null,14,42,null,null,null,null,null,null,null,null,null,null,null,null,null,null,null,null,null,null,2]
[50," ",null,null,{"$f":"IF(COUNTA(H509:AA509)=0,\"\",COUNTA(H509:AA509))","v":2},"体育","国延  仙徳  山崎  井上",31,31,null,null,null,null,null,null,null,null,null,null,null,null,null,null,null,null,null,null,2,{"$f":"AB509-AB508","v":0}]
[null,null,null,null,null,null,null,35,36,null,null,null,null,null,null,null,null,null,null,null,null,null,null,null,null,null,null,2]
[50,null,null,null,{"$f":"IF(COUNTA(H511:AA511)=0,\"\",COUNTA(H511:AA511))","v":2},"選体","名 国 八 仙 大 山 井",34,34,null,null,null,null,null,null,null,null,null,null,null,null,null,null,null,null,null,null,2,{"$f":"AB511-AB510","v":0}]
[null,null,null,null,null,null,null,25,55,33,null,null,null,null,null,null,null,null,null,null,null,null,null,null,null,null,null,3]
[50,null,null,null,{"$f":"IF(COUNTA(H513:AA513)=0,\"\",COUNTA(H513:AA513))","v":3},"保健","国延",16,17,18,null,null,null,null,null,null,null,null,null,null,null,null,null,null,null,null,null,3,{"$f":"AB513-AB512","v":0}]
[null,null,null,null,null,null,null,null,null,null,null,null,null,null,null,null,null,null,null,null,null,null,null,null,null,null,null,0]
[50,null,null,null,{"$f":"IF(COUNTA(H515:AA515)=0,\"\",COUNTA(H515:AA515))","v":""},null,null,null,null,null,null,null,null,null,null,null,null,null,null,null,null,null,null,null,null,null,null,0,{"$f":"AB515-AB514","v":0}]
[null,null,null,null,null,null,null,12,31,null,null,null,null,null,null,null,null,null,null,null,null,null,null,null,null,null,null,{"$f":"COUNTA(H516:AA516)","v":2}]
[51,null,{"$f":"IF(G962=\"\",\"\",G962)","v":"八木"},null,{"$f":"IF(COUNTA(H517:AA517)=0,\"\",COUNTA(H517:AA517))","v":2},"体育","国延  八木",16,16,null,null,null,null,null,null,null,null,null,null,null,null,null,null,null,null,null,null,2,{"$f":"AB517-AB516","v":0}]
[null,null,null,null,null,null,null,26,44,53,null,null,null,null,null,null,null,null,null,null,null,null,null,null,null,null,null,3]
[51,null,null,null,{"$f":"IF(COUNTA(H519:AA519)=0,\"\",COUNTA(H519:AA519))","v":3},"体育","八木  井上",21,21,21,null,null,null,null,null,null,null,null,null,null,null,null,null,null,null,null,null,3,{"$f":"AB519-AB518","v":0}]
[null,null,null,null,null,null,null,33,45,51,null,null,null,null,null,null,null,null,null,null,null,null,null,null,null,null,null,3]
[51,null,null,null,{"$f":"IF(COUNTA(H521:AA521)=0,\"\",COUNTA(H521:AA521))","v":3},"体育","八木  大徳",25,25,25,null,null,null,null,null,null,null,null,null,null,null,null,null,null,null,null,null,3,{"$f":"AB521-AB520","v":0}]
[null,null,null,null,null,null,null,22,54,16,32,null,null,null,null,null,null,null,null,null,null,null,null,null,null,null,null,4]
[51,null,null,null,{"$f":"IF(COUNTA(H523:AA523)=0,\"\",COUNTA(H523:AA523))","v":4},"体育","八木  仙徳  山崎  井上",32,32,33,33,null,null,null,null,null,null,null,null,null,null,null,null,null,null,null,null,4,{"$f":"AB523-AB522","v":0}]
[null,null,null,null,null,null,null,35,36,null,null,null,null,null,null,null,null,null,null,null,null,null,null,null,null,null,null,2]
[51,null,null,null,{"$f":"IF(COUNTA(H525:AA525)=0,\"\",COUNTA(H525:AA525))","v":2},"選体","名 国 八 仙 大 山 井",34,34,null,null,null,null,null,null,null,null,null,null,null,null,null,null,null,null,null,null,2,{"$f":"AB525-AB524","v":0}]
[null,null,null,null,null,null,null,55,21,null,null,null,null,null,null,null,null,null,null,null,null,null,null,null,null,null,null,2]
[51,null,null,null,{"$f":"IF(COUNTA(H527:AA527)=0,\"\",COUNTA(H527:AA527))","v":2},"保健","八木",21,22,null,null,null,null,null,null,null,null,null,null,null,null,null,null,null,null,null,null,2,{"$f":"AB527-AB526","v":0}]
[null,null,null,null,null,null,null,null,null,null,null,null,null,null,null,null,null,null,null,null,null,null,null,null,null,null,null,0]
[51,null,null,null,{"$f":"IF(COUNTA(H529:AA529)=0,\"\",COUNTA(H529:AA529))","v":""},null,null,null,null,null,null,null,null,null,null,null,null,null,null,null,null,null,null,null,null,null,null,0,{"$f":"AB529-AB528","v":0}]
[null,null,null,null,null,null,null,46,null,null,null,null,null,null,null,null,null,null,null,null,null,null,null,null,null,null,null,1]
[51," ",null,null,{"$f":"IF(COUNTA(H531:AA531)=0,\"\",COUNTA(H531:AA531))","v":1},"LHR","八木",21,null,null,null,null,null,null,null,null,null,null,null,null,null,null,null,null,null,null,null,1,{"$f":"AB531-AB530","v":0}]
[null,null,null,null,null,null,null,11,23,41,null,null,null,null,null,null,null,null,null,null,null,null,null,null,null,null,null,3]
[52,null,{"$f":"IF(G964=\"\",\"\",G964)","v":"仙徳"},null,{"$f":"IF(COUNTA(H533:AA533)=0,\"\",COUNTA(H533:AA533))","v":3},"体育","仙徳  大徳",23,23,23,null,null,null,null,null,null,null,null,null,null,null,null,null,null,null,null,null,3,{"$f":"AB533-AB532","v":0}]
[null,null,null,null,null,null,null,15,25,31,null,null,null,null,null,null,null,null,null,null,null,null,null,null,null,null,null,3]
[52,null,null,null,{"$f":"IF(COUNTA(H535:AA535)=0,\"\",COUNTA(H535:AA535))","v":3},"体育","名児耶仙徳",28,28,28,null,null,null,null,null,null,null,null,null,null,null,null,null,null,null,null,null,3,{"$f":"AB535-AB534","v":0}]
[null,null,null,null,null,null,null,14,42,null,null,null,null,null,null,null,null,null,null,null,null,null,null,null,null,null,null,2]
[52,null,null,null,{"$f":"IF(COUNTA(H537:AA537)=0,\"\",COUNTA(H537:AA537))","v":2},"体育","国延  仙徳  山崎  井上",34,34,null,null,null,null,null,null,null,null,null,null,null,null,null,null,null,null,null,null,2,{"$f":"AB537-AB536","v":0}]
[null,null,null,null,null,null,null,22,54,16,32,null,null,null,null,null,null,null,null,null,null,null,null,null,null,null,null,4]
[52,null,null,null,{"$f":"IF(COUNTA(H539:AA539)=0,\"\",COUNTA(H539:AA539))","v":4},"体育","八木  仙徳  山崎  井上",35,35,36,36,null,null,null,null,null,null,null,null,null,null,null,null,null,null,null,null,4,{"$f":"AB539-AB538","v":0}]
[null,null,null,null,null,null,null,35,36,null,null,null,null,null,null,null,null,null,null,null,null,null,null,null,null,null,null,2]
[52,null,null,null,{"$f":"IF(COUNTA(H541:AA541)=0,\"\",COUNTA(H541:AA541))","v":2},"選体","名 国 八 仙 大 山 井",34,34,null,null,null,null,null,null,null,null,null,null,null,null,null,null,null,null,null,null,2,{"$f":"AB541-AB540","v":0}]
[null,null,null,null,null,null,null,34,52,null,null,null,null,null,null,null,null,null,null,null,null,null,null,null,null,null,null,2]
[52,null,null,null,{"$f":"IF(COUNTA(H543:AA543)=0,\"\",COUNTA(H543:AA543))","v":2},"保健","仙徳",27,28,null,null,null,null,null,null,null,null,null,null,null,null,null,null,null,null,null,null,2,{"$f":"AB543-AB542","v":0}]
[null,null,null,null,null,null,null,null,null,null,null,null,null,null,null,null,null,null,null,null,null,null,null,null,null,null,null,0]
[52,null,null,null,{"$f":"IF(COUNTA(H545:AA545)=0,\"\",COUNTA(H545:AA545))","v":""},null,null,null,null,null,null,null,null,null,null,null,null,null,null,null,null,null,null,null,null,null,null,0,{"$f":"AB545-AB544","v":0}]
[null,null,null,null,null,null,null,46,null,null,null,null,null,null,null,null,null,null,null,null,null,null,null,null,null,null,null,1]
[52,null,null,null,{"$f":"IF(COUNTA(H547:AA547)=0,\"\",COUNTA(H547:AA547))","v":1},"LHR","仙徳",27,null,null,null,null,null,null,null,null,null,null,null,null,null,null,null,null,null,null,null,1,{"$f":"AB547-AB546","v":0}]
[null,null,null,null,null,null,null,26,12,null,null,null,null,null,null,null,null,null,null,null,null,null,null,null,null,null,null,2]
[53,null,{"$f":"IF(G966=\"\",\"\",G966)","v":"大徳"},null,{"$f":"IF(COUNTA(H549:AA549)=0,\"\",COUNTA(H549:AA549))","v":2},"体育","名児耶大徳",12,14,null,null,null,null,null,null,null,null,null,null,null,null,null,null,null,null,null,null,2,{"$f":"AB549-AB548","v":0}]
[null,null,null,null,null,null,null,53,21,null,null,null,null,null,null,null,null,null,null,null,null,null,null,null,null,null,null,2]
[53,null,null,null,{"$f":"IF(COUNTA(H551:AA551)=0,\"\",COUNTA(H551:AA551))","v":2},"体育","国延  大徳",16,18,null,null,null,null,null,null,null,null,null,null,null,null,null,null,null,null,null,null,2,{"$f":"AB551-AB550","v":0}]
[null,null,null,null,null,null,null,11,23,41,null,null,null,null,null,null,null,null,null,null,null,null,null,null,null,null,null,3]
[53,null,null,null,{"$f":"IF(COUNTA(H553:AA553)=0,\"\",COUNTA(H553:AA553))","v":3},"体育","仙徳  大徳",24,24,24,null,null,null,null,null,null,null,null,null,null,null,null,null,null,null,null,null,3,{"$f":"AB553-AB552","v":0}]
[null,null,null,null,null,null,null,33,45,51,null,null,null,null,null,null,null,null,null,null,null,null,null,null,null,null,null,3]
[53,null,null,null,{"$f":"IF(COUNTA(H555:AA555)=0,\"\",COUNTA(H555:AA555))","v":3},"体育","八木  大徳",26,26,26,null,null,null,null,null,null,null,null,null,null,null,null,null,null,null,null,null,3,{"$f":"AB555-AB554","v":0}]
[null,null,null,null,null,null,null,52,13,55,null,null,null,null,null,null,null,null,null,null,null,null,null,null,null,null,null,3]
[53,null,null,null,{"$f":"IF(COUNTA(H557:AA557)=0,\"\",COUNTA(H557:AA557))","v":3},"体育","名児耶大徳 山崎  井上",34,35,36,null,null,null,null,null,null,null,null,null,null,null,null,null,null,null,null,null,3,{"$f":"AB557-AB556","v":0}]
[null,null,null,null,null,null,null,35,36,null,null,null,null,null,null,null,null,null,null,null,null,null,null,null,null,null,null,2]
[53," ",null,null,{"$f":"IF(COUNTA(H559:AA559)=0,\"\",COUNTA(H559:AA559))","v":2},"選体","名 国 八 仙 大 山 井",34,34,null,null,null,null,null,null,null,null,null,null,null,null,null,null,null,null,null,null,2,{"$f":"AB559-AB558","v":0}]
[null,null,null,null,null,null,null,15,32,null,null,null,null,null,null,null,null,null,null,null,null,null,null,null,null,null,null,2]
[53," ",null,null,{"$f":"IF(COUNTA(H561:AA561)=0,\"\",COUNTA(H561:AA561))","v":2},"保健","大徳",25,26,null,null,null,null,null,null,null,null,null,null,null,null,null,null,null,null,null,null,2,{"$f":"AB561-AB560","v":0}]
[null,null,null,null,null,null,null,null,null,null,null,null,null,null,null,null,null,null,null,null,null,null,null,null,null,null,null,0]
[53,null,null,null,{"$f":"IF(COUNTA(H563:AA563)=0,\"\",COUNTA(H563:AA563))","v":""},null,null,null,null,null,null,null,null,null,null,null,null,null,null,null,null,null,null,null,null,null,null,0,{"$f":"AB563-AB562","v":0}]
[null,null,null,null,null,null,null,15,43,null,null,null,null,null,null,null,null,null,null,null,null,null,null,null,null,null,null,2]
[54,null,{"$f":"IF(G968=\"\",\"\",G968)","v":"山崎"},null,{"$f":"IF(COUNTA(H565:AA565)=0,\"\",COUNTA(H565:AA565))","v":2},"体育","国延  山崎",18,18,null,null,null,null,null,null,null,null,null,null,null,null,null,null,null,null,null,null,2,{"$f":"AB565-AB564","v":0}]
[null,null,null,null,null,null,null,52,13,55,null,null,null,null,null,null,null,null,null,null,null,null,null,null,null,null,null,3]
[54,null,null,null,{"$f":"IF(COUNTA(H567:AA567)=0,\"\",COUNTA(H567:AA567))","v":3},"体育","名児耶大徳 山崎  井上",314,38,37,null,null,null,null,null,null,null,null,null,null,null,null,null,null,null,null,null,3,{"$f":"AB567-AB566","v":0}]
[null,null,null,null,null,null,null,14,42,null,null,null,null,null,null,null,null,null,null,null,null,null,null,null,null,null,null,2]
[54,null,null,null,{"$f":"IF(COUNTA(H569:AA569)=0,\"\",COUNTA(H569:AA569))","v":2},"体育","国延  仙徳  山崎  井上",314,314,null,null,null,null,null,null,null,null,null,null,null,null,null,null,null,null,null,null,2,{"$f":"AB569-AB568","v":0}]
[null,null,null,null,null,null,null,22,54,16,32,null,null,null,null,null,null,null,null,null,null,null,null,null,null,null,null,4]
[54,null,null,null,{"$f":"IF(COUNTA(H571:AA571)=0,\"\",COUNTA(H571:AA571))","v":4},"体育","八木  仙徳  山崎  井上",38,38,37,37,null,null,null,null,null,null,null,null,null,null,null,null,null,null,null,null,4,{"$f":"AB571-AB570","v":0}]
[null,null,null,null,null,null,null,35,36,null,null,null,null,null,null,null,null,null,null,null,null,null,null,null,null,null,null,2]
[54,null,null,null,{"$f":"IF(COUNTA(H573:AA573)=0,\"\",COUNTA(H573:AA573))","v":2},"選体","名 国 八 仙 大 山 井",34,34,null,null,null,null,null,null,null,null,null,null,null,null,null,null,null,null,null,null,2,{"$f":"AB573-AB572","v":0}]
[null,null,null,null,null,null,null,25,41,45,null,null,null,null,null,null,null,null,null,null,null,null,null,null,null,null,null,3]
[54,null,null,null,{"$f":"IF(COUNTA(H575:AA575)=0,\"\",COUNTA(H575:AA575))","v":3},"保健","山崎",11,12,13,null,null,null,null,null,null,null,null,null,null,null,null,null,null,null,null,null,3,{"$f":"AB575-AB574","v":0}]
[null,null,null,null,null,null,null,null,null,null,null,null,null,null,null,null,null,null,null,null,null,null,null,null,null,null,null,0]
[54,null,null,null,{"$f":"IF(COUNTA(H577:AA577)=0,\"\",COUNTA(H577:AA577))","v":""},null,null,null,null,null,null,null,null,null,null,null,null,null,null,null,null,null,null,null,null,null,null,0,{"$f":"AB577-AB576","v":0}]
[null,null,null,null,null,null,null,46,null,null,null,null,null,null,null,null,null,null,null,null,null,null,null,null,null,null,null,1]
[54," ",null,null,{"$f":"IF(COUNTA(H579:AA579)=0,\"\",COUNTA(H579:AA579))","v":1},"LHR","山崎",32,null,null,null,null,null,null,null,null,null,null,null,null,null,null,null,null,null,null,null,1,{"$f":"AB579-AB578","v":0}]
[null,null,null,null,null,null,null,26,44,53,null,null,null,null,null,null,null,null,null,null,null,null,null,null,null,null,null,{"$f":"COUNTA(H580:AA580)","v":3}]
[55,null,{"$f":"IF(G970=\"\",\"\",G970)","v":"井上"},null,{"$f":"IF(COUNTA(H581:AA581)=0,\"\",COUNTA(H581:AA581))","v":3},"体育","八木  井上",22,22,22,null,null,null,null,null,null,null,null,null,null,null,null,null,null,null,null,null,3,{"$f":"AB581-AB580","v":0}]
[null,null,null,null,null,null,null,52,13,55,null,null,null,null,null,null,null,null,null,null,null,null,null,null,null,null,null,3]
[55,null,null,null,{"$f":"IF(COUNTA(H583:AA583)=0,\"\",COUNTA(H583:AA583))","v":3},"体育","名児耶大徳 山崎  井上",314,3258,3367,null,null,null,null,null,null,null,null,null,null,null,null,null,null,null,null,null,3,{"$f":"AB583-AB582","v":0}]
[null,null,null,null,null,null,null,14,42,null,null,null,null,null,null,null,null,null,null,null,null,null,null,null,null,null,null,2]
[55,null,null,null,{"$f":"IF(COUNTA(H585:AA585)=0,\"\",COUNTA(H585:AA585))","v":2},"体育","国延  仙徳  山崎  井上",314,314,null,null,null,null,null,null,null,null,null,null,null,null,null,null,null,null,null,null,2,{"$f":"AB585-AB584","v":0}]
[null,null,null,null,null,null,null,22,54,16,32,null,null,null,null,null,null,null,null,null,null,null,null,null,null,null,null,4]
[55,null,null,null,{"$f":"IF(COUNTA(H587:AA587)=0,\"\",COUNTA(H587:AA587))","v":4},"体育","八木  仙徳  山崎  井上",3258,3258,3367,3367,null,null,null,null,null,null,null,null,null,null,null,null,null,null,null,null,4,{"$f":"AB587-AB586","v":0}]
[null,null,null,null,null,null,null,35,36,null,null,null,null,null,null,null,null,null,null,null,null,null,null,null,null,null,null,2]
[55,null,null,null,{"$f":"IF(COUNTA(H589:AA589)=0,\"\",COUNTA(H589:AA589))","v":2},"選体","名 国 八 仙 大 山 井",34,34,null,null,null,null,null,null,null,null,null,null,null,null,null,null,null,null,null,null,2,{"$f":"AB589-AB588","v":0}]
[null,null,null,null,null,null,null,34,24,null,null,null,null,null,null,null,null,null,null,null,null,null,null,null,null,null,null,2]
[55,null,null,null,{"$f":"IF(COUNTA(H591:AA591)=0,\"\",COUNTA(H591:AA591))","v":2},"保健","井上",23,24,null,null,null,null,null,null,null,null,null,null,null,null,null,null,null,null,null,null,2,{"$f":"AB591-AB590","v":0}]
[null,null,null,null,null,null,null,null,null,null,null,null,null,null,null,null,null,null,null,null,null,null,null,null,null,null,null,0]
[55,null,null,null,{"$f":"IF(COUNTA(H593:AA593)=0,\"\",COUNTA(H593:AA593))","v":""},null,null,null,null,null,null,null,null,null,null,null,null,null,null,null,null,null,null,null,null,null,null,0,{"$f":"AB593-AB592","v":0}]
[null,null,null,null,null,null,null,46,null,null,null,null,null,null,null,null,null,null,null,null,null,null,null,null,null,null,null,1]
[55," ",null,null,{"$f":"IF(COUNTA(H595:AA595)=0,\"\",COUNTA(H595:AA595))","v":1},"LHR","井上",37,null,null,null,null,null,null,null,null,null,null,null,null,null,null,null,null,null,null,null,1,{"$f":"AB595-AB594","v":0}]
[null,null,null,null,null,null,null,null,null,null,null,null,null,null,null,null,null,null,null,null,null,null,null,null,null,null,null,0]
[56,null,{"$f":"IF(G972=\"\",\"\",G972)","v":""},null,{"$f":"IF(COUNTA(H597:AA597)=0,\"\",COUNTA(H597:AA597))","v":""},null,null,null,null,null,null,null,null,null,null,null,null,null,null,null,null,null,null,null,null,null,null,0,{"$f":"AB597-AB596","v":0}]
[null,null,null,null,null,null,null,null,null,null,null,null,null,null,null,null,null,null,null,null,null,null,null,null,null,null,null,0]
[56,null,null,null,{"$f":"IF(COUNTA(H599:AA599)=0,\"\",COUNTA(H599:AA599))","v":""},null,null,null,null,null,null,null,null,null,null,null,null,null,null,null,null,null,null,null,null,null,null,0,{"$f":"AB599-AB598","v":0}]
[null,null,null,null,null,null,null,null,null,null,null,null,null,null,null,null,null,null,null,null,null,null,null,null,null,null,null,0]
[56,null,null,null,{"$f":"IF(COUNTA(H601:AA601)=0,\"\",COUNTA(H601:AA601))","v":""},null,null,null,null,null,null,null,null,null,null,null,null,null,null,null,null,null,null,null,null,null,null,0,{"$f":"AB601-AB600","v":0}]
[null,null,null,null,null,null,null,null,null,null,null,null,null,null,null,null,null,null,null,null,null,null,null,null,null,null,null,0]
[56,null,null,null,{"$f":"IF(COUNTA(H603:AA603)=0,\"\",COUNTA(H603:AA603))","v":""},null,null,null,null,null,null,null,null,null,null,null,null,null,null,null,null,null,null,null,null,null,null,0,{"$f":"AB603-AB602","v":0}]
[null,null,null,null,null,null,null,null,null,null,null,null,null,null,null,null,null,null,null,null,null,null,null,null,null,null,null,0]
[56,null,null,null,{"$f":"IF(COUNTA(H605:AA605)=0,\"\",COUNTA(H605:AA605))","v":""},null,null,null,null,null,null,null,null,null,null,null,null,null,null,null,null,null,null,null,null,null,null,0,{"$f":"AB605-AB604","v":0}]
[null,null,null,null,null,null,null,null,null,null,null,null,null,null,null,null,null,null,null,null,null,null,null,null,null,null,null,0]
[56," ",null,null,{"$f":"IF(COUNTA(H607:AA607)=0,\"\",COUNTA(H607:AA607))","v":""},null,null,null,null,null,null,null,null,null,null,null,null,null,null,null,null,null,null,null,null,null,null,0,{"$f":"AB607-AB606","v":0}]
[null,null,null,null,null,null,null,null,null,null,null,null,null,null,null,null,null,null,null,null,null,null,null,null,null,null,null,0]
[56,null,null,null,{"$f":"IF(COUNTA(H609:AA609)=0,\"\",COUNTA(H609:AA609))","v":""},null,null,null,null,null,null,null,null,null,null,null,null,null,null,null,null,null,null,null,null,null,null,0,{"$f":"AB609-AB608","v":0}]
[null,null,null,null,null,null,null,null,null,null,null,null,null,null,null,null,null,null,null,null,null,null,null,null,null,null,null,0]
[56,"育",null,null,{"$f":"IF(COUNTA(H611:AA611)=0,\"\",COUNTA(H611:AA611))","v":""},null,null,null,null,null,null,null,null,null,null,null,null,null,null,null,null,null,null,null,null,null,null,0,{"$f":"AB611-AB610","v":0}]
[null,null,null,null,null,null,null,null,null,null,null,null,null,null,null,null,null,null,null,null,null,null,null,null,null,null,null,0]
[57,null,{"$f":"IF(G974=\"\",\"\",G974)","v":""},null,{"$f":"IF(COUNTA(H613:AA613)=0,\"\",COUNTA(H613:AA613))","v":""},null,null,null,null,null,null,null,null,null,null,null,null,null,null,null,null,null,null,null,null,null,null,0,{"$f":"AB613-AB612","v":0}]
[null,null,null,null,null,null,null,null,null,null,null,null,null,null,null,null,null,null,null,null,null,null,null,null,null,null,null,0]
[57,null,null,null,{"$f":"IF(COUNTA(H615:AA615)=0,\"\",COUNTA(H615:AA615))","v":""},null,null,null,null,null,null,null,null,null,null,null,null,null,null,null,null,null,null,null,null,null,null,0,{"$f":"AB615-AB614","v":0}]
[null,null,null,null,null,null,null,null,null,null,null,null,null,null,null,null,null,null,null,null,null,null,null,null,null,null,null,0]
[57,null,null,null,{"$f":"IF(COUNTA(H617:AA617)=0,\"\",COUNTA(H617:AA617))","v":""},null,null,null,null,null,null,null,null,null,null,null,null,null,null,null,null,null,null,null,null,null,null,0,{"$f":"AB617-AB616","v":0}]
[null,null,null,null,null,null,null,null,null,null,null,null,null,null,null,null,null,null,null,null,null,null,null,null,null,null,null,0]
[57,null,null,null,{"$f":"IF(COUNTA(H619:AA619)=0,\"\",COUNTA(H619:AA619))","v":""},null,null,null,null,null,null,null,null,null,null,null,null,null,null,null,null,null,null,null,null,null,null,0,{"$f":"AB619-AB618","v":0}]
[null,null,null,null,null,null,null,null,null,null,null,null,null,null,null,null,null,null,null,null,null,null,null,null,null,null,null,0]
[57,null,null,null,{"$f":"IF(COUNTA(H621:AA621)=0,\"\",COUNTA(H621:AA621))","v":""},null,null,null,null,null,null,null,null,null,null,null,null,null,null,null,null,null,null,null,null,null,null,0,{"$f":"AB621-AB620","v":0}]
[null,null,null,null,null,null,null,null,null,null,null,null,null,null,null,null,null,null,null,null,null,null,null,null,null,null,null,0]
[57,null,null,null,{"$f":"IF(COUNTA(H623:AA623)=0,\"\",COUNTA(H623:AA623))","v":""},null,null,null,null,null,null,null,null,null,null,null,null,null,null,null,null,null,null,null,null,null,null,0,{"$f":"AB623-AB622","v":0}]
[null,null,null,null,null,null,null,null,null,null,null,null,null,null,null,null,null,null,null,null,null,null,null,null,null,null,null,0]
[57,null,null,null,{"$f":"IF(COUNTA(H625:AA625)=0,\"\",COUNTA(H625:AA625))","v":""},null,null,null,null,null,null,null,null,null,null,null,null,null,null,null,null,null,null,null,null,null,null,0,{"$f":"AB625-AB624","v":0}]
[null,null,null,null,null,null,null,null,null,null,null,null,null,null,null,null,null,null,null,null,null,null,null,null,null,null,null,0]
[57,null,null,null,{"$f":"IF(COUNTA(H627:AA627)=0,\"\",COUNTA(H627:AA627))","v":""},null,null,null,null,null,null,null,null,null,null,null,null,null,null,null,null,null,null,null,null,null,null,0,{"$f":"AB627-AB626","v":0}]
[null,null,null,null,null,null,null,35,36,21,22,53,54,null,null,null,null,null,null,null,null,null,null,null,null,null,null,6]
[58,null,{"$f":"IF(G976=\"\",\"\",G976)","v":"杉山"},null,{"$f":"IF(COUNTA(H629:AA629)=0,\"\",COUNTA(H629:AA629))","v":6},"美術","杉山",12,12,15,15,17,17,null,null,null,null,null,null,null,null,null,null,null,null,null,null,6,{"$f":"AB629-AB628","v":0}]
[null,null,null,null,null,null,null,13,14,11,12,31,32,25,26,null,null,null,null,null,null,null,null,null,null,null,null,8]
[58,null,null,null,{"$f":"IF(COUNTA(H631:AA631)=0,\"\",COUNTA(H631:AA631))","v":8},"芸術","杉山  高橋  後藤",21,21,31,31,32,32,33,33,null,null,null,null,null,null,null,null,null,null,null,null,8,{"$f":"AB631-AB630","v":0}]
[null,null,null,null,null,null,null,51,52,null,null,null,null,null,null,null,null,null,null,null,null,null,null,null,null,null,null,2]
[58,null,null,null,{"$f":"IF(COUNTA(H633:AA633)=0,\"\",COUNTA(H633:AA633))","v":2},"選芸","杉山  高橋  後藤",37,37,null,null,null,null,null,null,null,null,null,null,null,null,null,null,null,null,null,null,2,{"$f":"AB633-AB632","v":0}]
[null,null,null,null,null,null,null,null,null,null,null,null,null,null,null,null,null,null,null,null,null,null,null,null,null,null,null,0]
[58,null,null,null,{"$f":"IF(COUNTA(H635:AA635)=0,\"\",COUNTA(H635:AA635))","v":""},null,null,null,null,null,null,null,null,null,null,null,null,null,null,null,null,null,null,null,null,null,null,0,{"$f":"AB635-AB634","v":0}]
[null,null,null,null,null,null,null,46,null,null,null,null,null,null,null,null,null,null,null,null,null,null,null,null,null,null,null,1]
[58," ",null,null,{"$f":"IF(COUNTA(H637:AA637)=0,\"\",COUNTA(H637:AA637))","v":1},"LHR","杉山",17,null,null,null,null,null,null,null,null,null,null,null,null,null,null,null,null,null,null,null,1,{"$f":"AB637-AB636","v":0}]
[null,null,null,null,null,null,null,35,36,53,54,null,null,null,null,null,null,null,null,null,null,null,null,null,null,null,null,4]
[59,"芸",{"$f":"IF(G978=\"\",\"\",G978)","v":"高橋"},null,{"$f":"IF(COUNTA(H639:AA639)=0,\"\",COUNTA(H639:AA639))","v":4},"書道","高橋",13,13,18,18,null,null,null,null,null,null,null,null,null,null,null,null,null,null,null,null,4,{"$f":"AB639-AB638","v":0}]
[null,null,null,null,null,null,null,13,14,11,12,31,32,25,26,null,null,null,null,null,null,null,null,null,null,null,null,8]
[59,null,null,null,{"$f":"IF(COUNTA(H641:AA641)=0,\"\",COUNTA(H641:AA641))","v":8},"芸術","杉山  高橋  後藤",22,22,36,36,34,34,35,35,null,null,null,null,null,null,null,null,null,null,null,null,8,{"$f":"AB641-AB640","v":0}]
[null,null,null,null,null,null,null,43,44,null,null,null,null,null,null,null,null,null,null,null,null,null,null,null,null,null,null,2]
[59,null,null,null,{"$f":"IF(COUNTA(H643:AA643)=0,\"\",COUNTA(H643:AA643))","v":2},"芸術","高橋  後藤  秦",24,24,null,null,null,null,null,null,null,null,null,null,null,null,null,null,null,null,null,null,2,{"$f":"AB643-AB642","v":0}]
[null,null,null,null,null,null,null,51,52,null,null,null,null,null,null,null,null,null,null,null,null,null,null,null,null,null,null,{"$f":"COUNTA(H644:AA644)","v":2}]
[59,null,null,null,{"$f":"IF(COUNTA(H645:AA645)=0,\"\",COUNTA(H645:AA645))","v":2},"選芸","杉山  高橋  後藤",37,37,null,null,null,null,null,null,null,null,null,null,null,null,null,null,null,null,null,null,2,{"$f":"AB645-AB644","v":0}]
[null,null,null,null,null,null,null,null,null,null,null,null,null,null,null,null,null,null,null,null,null,null,null,null,null,null,null,0]
[59,null,null,null,{"$f":"IF(COUNTA(H647:AA647)=0,\"\",COUNTA(H647:AA647))","v":""},null,null,null,null,null,null,null,null,null,null,null,null,null,null,null,null,null,null,null,null,null,null,0,{"$f":"AB647-AB646","v":0}]
[null,null,null,null,null,null,null,53,54,null,null,null,null,null,null,null,null,null,null,null,null,null,null,null,null,null,null,2]
[60," ",{"$f":"IF(G980=\"\",\"\",G980)","v":"後藤"},null,{"$f":"IF(COUNTA(H649:AA649)=0,\"\",COUNTA(H649:AA649))","v":2},"音楽","後藤",11,11,null,null,null,null,null,null,null,null,null,null,null,null,null,null,null,null,null,null,2,{"$f":"AB649-AB648","v":0}]
[null,null,null,null,null,null,null,13,14,11,12,31,32,25,26,null,null,null,null,null,null,null,null,null,null,null,null,8]
[60,null,null,null,{"$f":"IF(COUNTA(H651:AA651)=0,\"\",COUNTA(H651:AA651))","v":8},"芸術","杉山  高橋  後藤",23,23,38,38,324,324,37,37,null,null,null,null,null,null,null,null,null,null,null,null,8,{"$f":"AB651-AB650","v":0}]
[null,null,null,null,null,null,null,43,44,null,null,null,null,null,null,null,null,null,null,null,null,null,null,null,null,null,null,2]
[60,null,null,null,{"$f":"IF(COUNTA(H653:AA653)=0,\"\",COUNTA(H653:AA653))","v":2},"芸術","高橋  後藤  秦",25,25,null,null,null,null,null,null,null,null,null,null,null,null,null,null,null,null,null,null,2,{"$f":"AB653-AB652","v":0}]
[null,null,null,null,null,null,null,51,52,null,null,null,null,null,null,null,null,null,null,null,null,null,null,null,null,null,null,2]
[60,null,null,null,{"$f":"IF(COUNTA(H655:AA655)=0,\"\",COUNTA(H655:AA655))","v":2},"選芸","杉山  高橋  後藤",37,37,null,null,null,null,null,null,null,null,null,null,null,null,null,null,null,null,null,null,2,{"$f":"AB655-AB654","v":0}]
[null,null,null,null,null,null,null,41,42,null,null,null,null,null,null,null,null,null,null,null,null,null,null,null,null,null,null,2]
[60," ",null,null,{"$f":"IF(COUNTA(H657:AA657)=0,\"\",COUNTA(H657:AA657))","v":2},"音美","後藤    秦",27,27,null,null,null,null,null,null,null,null,null,null,null,null,null,null,null,null,null,null,2,{"$f":"AB657-AB656","v":0}]
[null,null,null,null,null,null,null,15,16,21,22,null,null,null,null,null,null,null,null,null,null,null,null,null,null,null,null,4]
[61,null,{"$f":"IF(G982=\"\",\"\",G982)","v":"上原"},null,{"$f":"IF(COUNTA(H659:AA659)=0,\"\",COUNTA(H659:AA659))","v":4},"音楽","上原",14,14,16,16,null,null,null,null,null,null,null,null,null,null,null,null,null,null,null,null,4,{"$f":"AB659-AB658","v":0}]
[null,null,null,null,null,null,null,null,null,null,null,null,null,null,null,null,null,null,null,null,null,null,null,null,null,null,null,0]
[61,null,null,null,{"$f":"IF(COUNTA(H661:AA661)=0,\"\",COUNTA(H661:AA661))","v":""},null,null,null,null,null,null,null,null,null,null,null,null,null,null,null,null,null,null,null,null,null,null,0,{"$f":"AB661-AB660","v":0}]
[null,null,null,null,null,null,null,null,null,null,null,null,null,null,null,null,null,null,null,null,null,null,null,null,null,null,null,0]
[61,null,null,null,{"$f":"IF(COUNTA(H663:AA663)=0,\"\",COUNTA(H663:AA663))","v":""},null,null,null,null,null,null,null,null,null,null,null,null,null,null,null,null,null,null,null,null,null,null,0,{"$f":"AB663-AB662","v":0}]
[null,null,null,null,null,null,null,null,null,null,null,null,null,null,null,null,null,null,null,null,null,null,null,null,null,null,null,0]
[61,null,null,null,{"$f":"IF(COUNTA(H665:AA665)=0,\"\",COUNTA(H665:AA665))","v":""},null,null,null,null,null,null,null,null,null,null,null,null,null,null,null,null,null,null,null,null,null,null,0,{"$f":"AB665-AB664","v":0}]
[null,null,null,null,null,null,null,null,null,null,null,null,null,null,null,null,null,null,null,null,null,null,null,null,null,null,null,0]
[61,null,null,null,{"$f":"IF(COUNTA(H667:AA667)=0,\"\",COUNTA(H667:AA667))","v":""},null,null,null,null,null,null,null,null,null,null,null,null,null,null,null,null,null,null,null,null,null,null,0,{"$f":"AB667-AB666","v":0}]
[null,null,null,null,null,null,null,43,44,null,null,null,null,null,null,null,null,null,null,null,null,null,null,null,null,null,null,2]
[62,null,{"$f":"IF(G984=\"\",\"\",G984)","v":"秦"},null,{"$f":"IF(COUNTA(H669:AA669)=0,\"\",COUNTA(H669:AA669))","v":2},"芸術","高橋  後藤  秦",26,26,null,null,null,null,null,null,null,null,null,null,null,null,null,null,null,null,null,null,2,{"$f":"AB669-AB668","v":0}]
[null,null,null,null,null,null,null,41,42,null,null,null,null,null,null,null,null,null,null,null,null,null,null,null,null,null,null,2]
[62,null,null,null,{"$f":"IF(COUNTA(H671:AA671)=0,\"\",COUNTA(H671:AA671))","v":2},"音美","後藤    秦",28,28,null,null,null,null,null,null,null,null,null,null,null,null,null,null,null,null,null,null,2,{"$f":"AB671-AB670","v":0}]
[null,null,null,null,null,null,null,null,null,null,null,null,null,null,null,null,null,null,null,null,null,null,null,null,null,null,null,0]
[62,null,null,null,{"$f":"IF(COUNTA(H673:AA673)=0,\"\",COUNTA(H673:AA673))","v":""},null,null,null,null,null,null,null,null,null,null,null,null,null,null,null,null,null,null,null,null,null,null,0,{"$f":"AB673-AB672","v":0}]
[null,null,null,null,null,null,null,null,null,null,null,null,null,null,null,null,null,null,null,null,null,null,null,null,null,null,null,0]
[62,null,null,null,{"$f":"IF(COUNTA(H675:AA675)=0,\"\",COUNTA(H675:AA675))","v":""},null,null,null,null,null,null,null,null,null,null,null,null,null,null,null,null,null,null,null,null,null,null,0,{"$f":"AB675-AB674","v":0}]
[null,null,null,null,null,null,null,null,null,null,null,null,null,null,null,null,null,null,null,null,null,null,null,null,null,null,null,0]
[62,"術",null,null,{"$f":"IF(COUNTA(H677:AA677)=0,\"\",COUNTA(H677:AA677))","v":""},null,null,null,null,null,null,null,null,null,null,null,null,null,null,null,null,null,null,null,null,null,null,0,{"$f":"AB677-AB676","v":0}]
[null,null,null,null,null,null,null,null,null,null,null,null,null,null,null,null,null,null,null,null,null,null,null,null,null,null,null,0]
[63,null,{"$f":"IF(G986=\"\",\"\",G986)","v":""},null,{"$f":"IF(COUNTA(H679:AA679)=0,\"\",COUNTA(H679:AA679))","v":""},null,null,null,null,null,null,null,null,null,null,null,null,null,null,null,null,null,null,null,null,null,null,0,{"$f":"AB679-AB678","v":0}]
[null,null,null,null,null,null,null,null,null,null,null,null,null,null,null,null,null,null,null,null,null,null,null,null,null,null,null,0]
[63,null,null,null,{"$f":"IF(COUNTA(H681:AA681)=0,\"\",COUNTA(H681:AA681))","v":""},null,null,null,null,null,null,null,null,null,null,null,null,null,null,null,null,null,null,null,null,null,null,0,{"$f":"AB681-AB680","v":0}]
[null,null,null,null,null,null,null,null,null,null,null,null,null,null,null,null,null,null,null,null,null,null,null,null,null,null,null,0]
[63,null,null,null,{"$f":"IF(COUNTA(H683:AA683)=0,\"\",COUNTA(H683:AA683))","v":""},null,null,null,null,null,null,null,null,null,null,null,null,null,null,null,null,null,null,null,null,null,null,0,{"$f":"AB683-AB682","v":0}]
[null,null,null,null,null,null,null,null,null,null,null,null,null,null,null,null,null,null,null,null,null,null,null,null,null,null,null,0]
[63,null,null,null,{"$f":"IF(COUNTA(H685:AA685)=0,\"\",COUNTA(H685:AA685))","v":""},null,null,null,null,null,null,null,null,null,null,null,null,null,null,null,null,null,null,null,null,null,null,0,{"$f":"AB685-AB684","v":0}]
[null,null,null,null,null,null,null,null,null,null,null,null,null,null,null,null,null,null,null,null,null,null,null,null,null,null,null,0]
[63,null,null,null,{"$f":"IF(COUNTA(H687:AA687)=0,\"\",COUNTA(H687:AA687))","v":""},null,null,null,null,null,null,null,null,null,null,null,null,null,null,null,null,null,null,null,null,null,null,0,{"$f":"AB687-AB686","v":0}]
[null,null,null,null,null,null,null,null,null,null,null,null,null,null,null,null,null,null,null,null,null,null,null,null,null,null,null,0]
[64," ",{"$f":"IF(G988=\"\",\"\",G988)","v":"木島"},4,{"$f":"IF(COUNTA(H689:AA689)=0,\"\",COUNTA(H689:AA689))","v":12},"英Ⅰ","木島",11,11,11,11,12,12,12,12,13,13,13,13,null,null,null,null,null,null,null,null,12,{"$f":"AB689-AB688","v":12}]
[null,null,null,null,null,null,null,null,null,null,null,null,null,null,null,null,null,null,null,null,null,null,null,null,null,null,null,0]
[64,null,null,2,{"$f":"IF(COUNTA(H691:AA691)=0,\"\",COUNTA(H691:AA691))","v":4},"ＯＣ","木島",15,15,16,16,null,null,null,null,null,null,null,null,null,null,null,null,null,null,null,null,4,{"$f":"AB691-AB690","v":4}]
[null,null,null,null,null,null,null,null,null,null,null,null,null,null,null,null,null,null,null,null,null,null,null,null,null,null,null,0]
[64,null,null,null,{"$f":"IF(COUNTA(H693:AA693)=0,\"\",COUNTA(H693:AA693))","v":""},null,null,null,null,null,null,null,null,null,null,null,null,null,null,null,null,null,null,null,null,null,null,0,{"$f":"AB693-AB692","v":0}]
[null,null,null,null,null,null,null,null,null,null,null,null,null,null,null,null,null,null,null,null,null,null,null,null,null,null,null,0]
[64,null,null,null,{"$f":"IF(COUNTA(H695:AA695)=0,\"\",COUNTA(H695:AA695))","v":""},null,null,null,null,null,null,null,null,null,null,null,null,null,null,null,null,null,null,null,null,null,null,0,{"$f":"AB695-AB694","v":0}]
[null,null,null,null,null,null,null,46,null,null,null,null,null,null,null,null,null,null,null,null,null,null,null,null,null,null,null,1]
[64,null,null,null,{"$f":"IF(COUNTA(H697:AA697)=0,\"\",COUNTA(H697:AA697))","v":1},"LHR","木島",13,null,null,null,null,null,null,null,null,null,null,null,null,null,null,null,null,null,null,null,1,{"$f":"AB697-AB696","v":0}]
[null,null,null,null,null,null,null,null,null,null,null,null,null,null,null,null,null,null,null,null,null,null,null,null,null,null,null,0]
[65,null,{"$f":"IF(G990=\"\",\"\",G990)","v":"安藤"},4,{"$f":"IF(COUNTA(H699:AA699)=0,\"\",COUNTA(H699:AA699))","v":12},"英Ⅰ","安藤",14,14,14,14,15,15,15,15,16,16,16,16,null,null,null,null,null,null,null,null,12,{"$f":"AB699-AB698","v":12}]
[null,null,null,null,null,null,null,null,null,null,null,null,null,null,null,null,null,null,null,null,null,null,null,null,null,null,null,0]
[65,null,null,2,{"$f":"IF(COUNTA(H701:AA701)=0,\"\",COUNTA(H701:AA701))","v":4},"ＯＣ","安藤",17,17,18,18,null,null,null,null,null,null,null,null,null,null,null,null,null,null,null,null,4,{"$f":"AB701-AB700","v":4}]
[null,null,null,null,null,null,null,null,null,null,null,null,null,null,null,null,null,null,null,null,null,null,null,null,null,null,null,0]
[65,null,null,null,{"$f":"IF(COUNTA(H703:AA703)=0,\"\",COUNTA(H703:AA703))","v":""},null,null,null,null,null,null,null,null,null,null,null,null,null,null,null,null,null,null,null,null,null,null,0,{"$f":"AB703-AB702","v":0}]
[null,null,null,null,null,null,null,null,null,null,null,null,null,null,null,null,null,null,null,null,null,null,null,null,null,null,null,0]
[65,null,null,null,{"$f":"IF(COUNTA(H705:AA705)=0,\"\",COUNTA(H705:AA705))","v":""},null,null,null,null,null,null,null,null,null,null,null,null,null,null,null,null,null,null,null,null,null,null,0,{"$f":"AB705-AB704","v":0}]
[null,null,null,null,null,null,null,null,null,null,null,null,null,null,null,null,null,null,null,null,null,null,null,null,null,null,null,0]
[65,null,null,null,{"$f":"IF(COUNTA(H707:AA707)=0,\"\",COUNTA(H707:AA707))","v":""},null,null,null,null,null,null,null,null,null,null,null,null,null,null,null,null,null,null,null,null,null,null,0,{"$f":"AB707-AB706","v":0}]
[null,null,null,null,null,null,null,16,25,31,54,null,null,null,null,null,null,null,null,null,null,null,null,null,null,null,null,{"$f":"COUNTA(H708:AA708)","v":4}]
[66,"英",{"$f":"IF(G992=\"\",\"\",G992)","v":"小井川"},null,{"$f":"IF(COUNTA(H709:AA709)=0,\"\",COUNTA(H709:AA709))","v":4},"英Ⅱ","小井川",212,212,212,212,null,null,null,null,null,null,null,null,null,null,null,null,null,null,null,null,4,{"$f":"AB709-AB708","v":0}]
[null,null,null,null,null,null,null,12,23,36,62,null,null,null,null,null,null,null,null,null,null,null,null,null,null,null,null,4]
[66,null,null,null,{"$f":"IF(COUNTA(H711:AA711)=0,\"\",COUNTA(H711:AA711))","v":4},"英Ⅱ","小井川 清水ﾀ",26,26,26,26,null,null,null,null,null,null,null,null,null,null,null,null,null,null,null,null,4,{"$f":"AB711-AB710","v":0}]
[null,null,null,null,null,null,null,null,null,null,null,null,null,null,null,null,null,null,null,null,null,null,null,null,null,null,null,0]
[66,null,null,4,{"$f":"IF(COUNTA(H713:AA713)=0,\"\",COUNTA(H713:AA713))","v":8},"Ｗ","小井川",33,33,33,33,36,36,36,36,null,null,null,null,null,null,null,null,null,null,null,null,8,{"$f":"AB713-AB712","v":8}]
[null,null,null,null,null,null,null,null,null,null,null,null,null,null,null,null,null,null,null,null,null,null,null,null,null,null,null,0]
[66,null,null,null,{"$f":"IF(COUNTA(H715:AA715)=0,\"\",COUNTA(H715:AA715))","v":""},null,null,null,null,null,null,null,null,null,null,null,null,null,null,null,null,null,null,null,null,null,null,0,{"$f":"AB715-AB714","v":0}]
[null,null,null,null,null,null,null,null,null,null,null,null,null,null,null,null,null,null,null,null,null,null,null,null,null,null,null,0]
[66,null,null,null,{"$f":"IF(COUNTA(H717:AA717)=0,\"\",COUNTA(H717:AA717))","v":""},null,null,null,null,null,null,null,null,null,null,null,null,null,null,null,null,null,null,null,null,null,null,0,{"$f":"AB717-AB716","v":0}]
[null,null,null,null,null,null,null,null,null,null,null,null,null,null,null,null,null,null,null,null,null,null,null,null,null,null,null,0]
[67,null,{"$f":"IF(G994=\"\",\"\",G994)","v":"清水ﾀ"},4,{"$f":"IF(COUNTA(H719:AA719)=0,\"\",COUNTA(H719:AA719))","v":8},"英Ⅰ","清水ﾀ",17,17,17,17,18,18,18,18,null,null,null,null,null,null,null,null,null,null,null,null,8,{"$f":"AB719-AB718","v":8}]
[null,null,null,null,null,null,null,12,23,36,62,null,null,null,null,null,null,null,null,null,null,null,null,null,null,null,null,4]
[67,null,null,null,{"$f":"IF(COUNTA(H721:AA721)=0,\"\",COUNTA(H721:AA721))","v":4},"英Ⅱ","清水ﾀ",256,256,256,256,null,null,null,null,null,null,null,null,null,null,null,null,null,null,null,null,4,{"$f":"AB721-AB720","v":0}]
[null,null,null,null,null,null,null,16,25,31,54,null,null,null,null,null,null,null,null,null,null,null,null,null,null,null,null,4]
[67,null,null,null,{"$f":"IF(COUNTA(H723:AA723)=0,\"\",COUNTA(H723:AA723))","v":4},"英Ⅱ","小井川 清水ﾀ",22,22,22,22,null,null,null,null,null,null,null,null,null,null,null,null,null,null,null,null,4,{"$f":"AB723-AB722","v":0}]
[null,null,null,null,null,null,null,null,null,null,null,null,null,null,null,null,null,null,null,null,null,null,null,null,null,null,null,0]
[67,null,null,null,{"$f":"IF(COUNTA(H725:AA725)=0,\"\",COUNTA(H725:AA725))","v":""},null,null,null,null,null,null,null,null,null,null,null,null,null,null,null,null,null,null,null,null,null,null,0,{"$f":"AB725-AB724","v":0}]
[null,null,null,null,null,null,null,null,null,null,null,null,null,null,null,null,null,null,null,null,null,null,null,null,null,null,null,0]
[67,null,null,null,{"$f":"IF(COUNTA(H727:AA727)=0,\"\",COUNTA(H727:AA727))","v":""},null,null,null,null,null,null,null,null,null,null,null,null,null,null,null,null,null,null,null,null,null,null,0,{"$f":"AB727-AB726","v":0}]
[null,null,null,null,null,null,null,12,26,33,52,null,null,null,null,null,null,null,null,null,null,null,null,null,null,null,null,4]
[68,null,{"$f":"IF(G996=\"\",\"\",G996)","v":"清水ﾖ"},null,{"$f":"IF(COUNTA(H729:AA729)=0,\"\",COUNTA(H729:AA729))","v":4},"英Ⅱ","清水ﾖ",234,234,234,234,null,null,null,null,null,null,null,null,null,null,null,null,null,null,null,null,4,{"$f":"AB729-AB728","v":0}]
[null,null,null,null,null,null,null,16,25,31,54,null,null,null,null,null,null,null,null,null,null,null,null,null,null,null,null,4]
[68,null,null,null,{"$f":"IF(COUNTA(H731:AA731)=0,\"\",COUNTA(H731:AA731))","v":4},"英Ⅱ","小井川 清水ﾖ",21,21,21,21,null,null,null,null,null,null,null,null,null,null,null,null,null,null,null,null,4,{"$f":"AB731-AB730","v":0}]
[null,null,null,null,null,null,null,null,null,null,null,null,null,null,null,null,null,null,null,null,null,null,null,null,null,null,null,0]
[68,null,null,4,{"$f":"IF(COUNTA(H733:AA733)=0,\"\",COUNTA(H733:AA733))","v":8},"Ｒ","清水ﾖ",34,34,34,34,35,35,35,35,null,null,null,null,null,null,null,null,null,null,null,null,8,{"$f":"AB733-AB732","v":8}]
[null,null,null,null,null,null,null,null,null,null,null,null,null,null,null,null,null,null,null,null,null,null,null,null,null,null,null,0]
[68,null,null,null,{"$f":"IF(COUNTA(H735:AA735)=0,\"\",COUNTA(H735:AA735))","v":""},null,null,null,null,null,null,null,null,null,null,null,null,null,null,null,null,null,null,null,null,null,null,0,{"$f":"AB735-AB734","v":0}]
[null,null,null,null,null,null,null,null,null,null,null,null,null,null,null,null,null,null,null,null,null,null,null,null,null,null,null,0]
[68,null,null,null,{"$f":"IF(COUNTA(H737:AA737)=0,\"\",COUNTA(H737:AA737))","v":""},null,null,null,null,null,null,null,null,null,null,null,null,null,null,null,null,null,null,null,null,null,null,0,{"$f":"AB737-AB736","v":0}]
[null,null,null,null,null,null,null,12,26,33,52,null,null,null,null,null,null,null,null,null,null,null,null,null,null,null,null,4]
[69,null,{"$f":"IF(G998=\"\",\"\",G998)","v":"加藤"},null,{"$f":"IF(COUNTA(H739:AA739)=0,\"\",COUNTA(H739:AA739))","v":4},"英Ⅱ","清水ﾖ   加藤",24,24,24,24,null,null,null,null,null,null,null,null,null,null,null,null,null,null,null,null,4,{"$f":"AB739-AB738","v":0}]
[null,null,null,null,null,null,null,14,24,32,55,null,null,null,null,null,null,null,null,null,null,null,null,null,null,null,null,4]
[69,null,null,null,{"$f":"IF(COUNTA(H741:AA741)=0,\"\",COUNTA(H741:AA741))","v":4},"英Ⅱ","加藤         舘",28,28,28,28,null,null,null,null,null,null,null,null,null,null,null,null,null,null,null,null,4,{"$f":"AB741-AB740","v":0}]
[null,null,null,null,null,null,null,null,null,null,null,null,null,null,null,null,null,null,null,null,null,null,null,null,null,null,null,0]
[69,null,null,4,{"$f":"IF(COUNTA(H743:AA743)=0,\"\",COUNTA(H743:AA743))","v":8},"Ｒ","加藤",32,32,32,32,33,33,33,33,null,null,null,null,null,null,null,null,null,null,null,null,8,{"$f":"AB743-AB742","v":8}]
[null,null,null,null,null,null,null,null,null,null,null,null,null,null,null,null,null,null,null,null,null,null,null,null,null,null,null,0]
[69,null,null,null,{"$f":"IF(COUNTA(H745:AA745)=0,\"\",COUNTA(H745:AA745))","v":""},null,null,null,null,null,null,null,null,null,null,null,null,null,null,null,null,null,null,null,null,null,null,0,{"$f":"AB745-AB744","v":0}]
[null,null,null,null,null,null,null,46,null,null,null,null,null,null,null,null,null,null,null,null,null,null,null,null,null,null,null,1]
[69,null,null,null,{"$f":"IF(COUNTA(H747:AA747)=0,\"\",COUNTA(H747:AA747))","v":1},"LHR","加藤",33,null,null,null,null,null,null,null,null,null,null,null,null,null,null,null,null,null,null,null,1,{"$f":"AB747-AB746","v":0}]
[null,null,null,null,null,null,null,12,26,33,52,null,null,null,null,null,null,null,null,null,null,null,null,null,null,null,null,4]
[70,null,{"$f":"IF(G1000=\"\",\"\",G1000)","v":"松田"},null,{"$f":"IF(COUNTA(H749:AA749)=0,\"\",COUNTA(H749:AA749))","v":4},"英Ⅱ","清水ﾖ   松田",23,23,23,23,null,null,null,null,null,null,null,null,null,null,null,null,null,null,null,null,4,{"$f":"AB749-AB748","v":0}]
[null,null,null,null,null,null,null,14,24,32,55,null,null,null,null,null,null,null,null,null,null,null,null,null,null,null,null,4]
[70,null,null,null,{"$f":"IF(COUNTA(H751:AA751)=0,\"\",COUNTA(H751:AA751))","v":4},"英Ⅱ","松田         舘",27,27,27,27,null,null,null,null,null,null,null,null,null,null,null,null,null,null,null,null,4,{"$f":"AB751-AB750","v":0}]
[null,null,null,null,null,null,null,null,null,null,null,null,null,null,null,null,null,null,null,null,null,null,null,null,null,null,null,0]
[70,null,null,4,{"$f":"IF(COUNTA(H753:AA753)=0,\"\",COUNTA(H753:AA753))","v":8},"Ｒ","松田",36,36,36,36,38,38,38,38,null,null,null,null,null,null,null,null,null,null,null,null,8,{"$f":"AB753-AB752","v":8}]
[null,null,null,null,null,null,null,null,null,null,null,null,null,null,null,null,null,null,null,null,null,null,null,null,null,null,null,0]
[70,null,null,null,{"$f":"IF(COUNTA(H755:AA755)=0,\"\",COUNTA(H755:AA755))","v":""},null,null,null,null,null,null,null,null,null,null,null,null,null,null,null,null,null,null,null,null,null,null,0,{"$f":"AB755-AB754","v":0}]
[null,null,null,null,null,null,null,46,null,null,null,null,null,null,null,null,null,null,null,null,null,null,null,null,null,null,null,1]
[70," ",null,null,{"$f":"IF(COUNTA(H757:AA757)=0,\"\",COUNTA(H757:AA757))","v":1},"LHR","松田",36,null,null,null,null,null,null,null,null,null,null,null,null,null,null,null,null,null,null,null,1,{"$f":"AB757-AB756","v":0}]
[null,null,null,null,null,null,null,null,null,null,null,null,null,null,null,null,null,null,null,null,null,null,null,null,null,null,null,0]
[71,null,{"$f":"IF(G1002=\"\",\"\",G1002)","v":"小林"},2,{"$f":"IF(COUNTA(H759:AA759)=0,\"\",COUNTA(H759:AA759))","v":8},"ＯＣ","小林",11,11,12,12,13,13,14,14,null,null,null,null,null,null,null,null,null,null,null,null,8,{"$f":"AB759-AB758","v":8}]
[null,null,null,null,null,null,null,null,null,null,null,null,null,null,null,null,null,null,null,null,null,null,null,null,null,null,null,0]
[71," ",null,4,{"$f":"IF(COUNTA(H761:AA761)=0,\"\",COUNTA(H761:AA761))","v":8},"Ｒ","小林",31,31,31,31,37,37,37,37,null,null,null,null,null,null,null,null,null,null,null,null,8,{"$f":"AB761-AB760","v":8}]
[null,null,null,null,null,null,null,null,null,null,null,null,null,null,null,null,null,null,null,null,null,null,null,null,null,null,null,0]
[71,null,null,null,{"$f":"IF(COUNTA(H763:AA763)=0,\"\",COUNTA(H763:AA763))","v":""},null,null,null,null,null,null,null,null,null,null,null,null,null,null,null,null,null,null,null,null,null,null,0,{"$f":"AB763-AB762","v":0}]
[null,null,null,null,null,null,null,null,null,null,null,null,null,null,null,null,null,null,null,null,null,null,null,null,null,null,null,0]
[71,null,null,null,{"$f":"IF(COUNTA(H765:AA765)=0,\"\",COUNTA(H765:AA765))","v":""},null,null,null,null,null,null,null,null,null,null,null,null,null,null,null,null,null,null,null,null,null,null,0,{"$f":"AB765-AB764","v":0}]
[null,null,null,null,null,null,null,null,null,null,null,null,null,null,null,null,null,null,null,null,null,null,null,null,null,null,null,0]
[71," ",null,null,{"$f":"IF(COUNTA(H767:AA767)=0,\"\",COUNTA(H767:AA767))","v":""},null,null,null,null,null,null,null,null,null,null,null,null,null,null,null,null,null,null,null,null,null,null,0,{"$f":"AB767-AB766","v":0}]
[null,null,null,null,null,null,null,14,24,32,55,null,null,null,null,null,null,null,null,null,null,null,null,null,null,null,null,4]
[72,null,{"$f":"IF(G1004=\"\",\"\",G1004)","v":"舘"},null,{"$f":"IF(COUNTA(H769:AA769)=0,\"\",COUNTA(H769:AA769))","v":4},"英Ⅱ","舘",278,278,278,278,null,null,null,null,null,null,null,null,null,null,null,null,null,null,null,null,4,{"$f":"AB769-AB768","v":0}]
[null,null,null,null,null,null,null,12,23,36,62,null,null,null,null,null,null,null,null,null,null,null,null,null,null,null,null,4]
[72,null,null,null,{"$f":"IF(COUNTA(H771:AA771)=0,\"\",COUNTA(H771:AA771))","v":4},"英Ⅱ","清水ﾀ        舘",25,25,25,25,null,null,null,null,null,null,null,null,null,null,null,null,null,null,null,null,4,{"$f":"AB771-AB770","v":0}]
[null,null,null,null,null,null,null,null,null,null,null,null,null,null,null,null,null,null,null,null,null,null,null,null,null,null,null,{"$f":"COUNTA(H772:AA772)","v":0}]
[72,null,null,4,{"$f":"IF(COUNTA(H773:AA773)=0,\"\",COUNTA(H773:AA773))","v":4},"Ｗ","舘",38,38,38,38,null,null,null,null,null,null,null,null,null,null,null,null,null,null,null,null,4,{"$f":"AB773-AB772","v":4}]
[null,null,null,null,null,null,null,null,null,null,null,null,null,null,null,null,null,null,null,null,null,null,null,null,null,null,null,0]
[72," ",null,null,{"$f":"IF(COUNTA(H775:AA775)=0,\"\",COUNTA(H775:AA775))","v":""},null,null,null,null,null,null,null,null,null,null,null,null,null,null,null,null,null,null,null,null,null,null,0,{"$f":"AB775-AB774","v":0}]
[null,null,null,null,null,null,null,null,null,null,null,null,null,null,null,null,null,null,null,null,null,null,null,null,null,null,null,0]
[72,null,null,null,{"$f":"IF(COUNTA(H777:AA777)=0,\"\",COUNTA(H777:AA777))","v":""},null,null,null,null,null,null,null,null,null,null,null,null,null,null,null,null,null,null,null,null,null,null,0,{"$f":"AB777-AB776","v":0}]
[null,null,null,null,null,null,null,null,null,null,null,null,null,null,null,null,null,null,null,null,null,null,null,null,null,null,null,0]
[73,null,{"$f":"IF(G1006=\"\",\"\",G1006)","v":""},null,{"$f":"IF(COUNTA(H779:AA779)=0,\"\",COUNTA(H779:AA779))","v":""},null,null,null,null,null,null,null,null,null,null,null,null,null,null,null,null,null,null,null,null,null,null,0,{"$f":"AB779-AB778","v":0}]
[null,null,null,null,null,null,null,null,null,null,null,null,null,null,null,null,null,null,null,null,null,null,null,null,null,null,null,0]
[73,null,null,null,{"$f":"IF(COUNTA(H781:AA781)=0,\"\",COUNTA(H781:AA781))","v":""},null,null,null,null,null,null,null,null,null,null,null,null,null,null,null,null,null,null,null,null,null,null,0,{"$f":"AB781-AB780","v":0}]
[null,null,null,null,null,null,null,null,null,null,null,null,null,null,null,null,null,null,null,null,null,null,null,null,null,null,null,0]
[73,null,null,null,{"$f":"IF(COUNTA(H783:AA783)=0,\"\",COUNTA(H783:AA783))","v":""},null,null,null,null,null,null,null,null,null,null,null,null,null,null,null,null,null,null,null,null,null,null,0,{"$f":"AB783-AB782","v":0}]
[null,null,null,null,null,null,null,null,null,null,null,null,null,null,null,null,null,null,null,null,null,null,null,null,null,null,null,0]
[73,null,null,null,{"$f":"IF(COUNTA(H785:AA785)=0,\"\",COUNTA(H785:AA785))","v":""},null,null,null,null,null,null,null,null,null,null,null,null,null,null,null,null,null,null,null,null,null,null,0,{"$f":"AB785-AB784","v":0}]
[null,null,null,null,null,null,null,null,null,null,null,null,null,null,null,null,null,null,null,null,null,null,null,null,null,null,null,0]
[73,"語",null,null,{"$f":"IF(COUNTA(H787:AA787)=0,\"\",COUNTA(H787:AA787))","v":""},null,null,null,null,null,null,null,null,null,null,null,null,null,null,null,null,null,null,null,null,null,null,0,{"$f":"AB787-AB786","v":0}]
[null,null,null,null,null,null,null,null,null,null,null,null,null,null,null,null,null,null,null,null,null,null,null,null,null,null,null,0]
[74," ",{"$f":"IF(G1008=\"\",\"\",G1008)","v":""},null,{"$f":"IF(COUNTA(H789:AA789)=0,\"\",COUNTA(H789:AA789))","v":""},null,null,null,null,null,null,null,null,null,null,null,null,null,null,null,null,null,null,null,null,null,null,0,{"$f":"AB789-AB788","v":0}]
[null,null,null,null,null,null,null,null,null,null,null,null,null,null,null,null,null,null,null,null,null,null,null,null,null,null,null,0]
[74,null,null,null,{"$f":"IF(COUNTA(H791:AA791)=0,\"\",COUNTA(H791:AA791))","v":""},null,null,null,null,null,null,null,null,null,null,null,null,null,null,null,null,null,null,null,null,null,null,0,{"$f":"AB791-AB790","v":0}]
[null,null,null,null,null,null,null,null,null,null,null,null,null,null,null,null,null,null,null,null,null,null,null,null,null,null,null,0]
[74," ",null,null,{"$f":"IF(COUNTA(H793:AA793)=0,\"\",COUNTA(H793:AA793))","v":""},null,null,null,null,null,null,null,null,null,null,null,null,null,null,null,null,null,null,null,null,null,null,0,{"$f":"AB793-AB792","v":0}]
[null,null,null,null,null,null,null,null,null,null,null,null,null,null,null,null,null,null,null,null,null,null,null,null,null,null,null,0]
[74,null,null,null,{"$f":"IF(COUNTA(H795:AA795)=0,\"\",COUNTA(H795:AA795))","v":""},null,null,null,null,null,null,null,null,null,null,null,null,null,null,null,null,null,null,null,null,null,null,0,{"$f":"AB795-AB794","v":0}]
[null,null,null,null,null,null,null,null,null,null,null,null,null,null,null,null,null,null,null,null,null,null,null,null,null,null,null,0]
[74," ",null,null,{"$f":"IF(COUNTA(H797:AA797)=0,\"\",COUNTA(H797:AA797))","v":""},null,null,null,null,null,null,null,null,null,null,null,null,null,null,null,null,null,null,null,null,null,null,0,{"$f":"AB797-AB796","v":0}]
[null,null,null,null,null,null,null,null,null,null,null,null,null,null,null,null,null,null,null,null,null,null,null,null,null,null,null,0]
[75,null,{"$f":"IF(G1010=\"\",\"\",G1010)","v":""},null,{"$f":"IF(COUNTA(H799:AA799)=0,\"\",COUNTA(H799:AA799))","v":""},null,null,null,null,null,null,null,null,null,null,null,null,null,null,null,null,null,null,null,null,null,null,0,{"$f":"AB799-AB798","v":0}]
[null,null,null,null,null,null,null,null,null,null,null,null,null,null,null,null,null,null,null,null,null,null,null,null,null,null,null,0]
[75,null,null,null,{"$f":"IF(COUNTA(H801:AA801)=0,\"\",COUNTA(H801:AA801))","v":""},null,null,null,null,null,null,null,null,null,null,null,null,null,null,null,null,null,null,null,null,null,null,0,{"$f":"AB801-AB800","v":0}]
[null,null,null,null,null,null,null,null,null,null,null,null,null,null,null,null,null,null,null,null,null,null,null,null,null,null,null,0]
[75,null,null,null,{"$f":"IF(COUNTA(H803:AA803)=0,\"\",COUNTA(H803:AA803))","v":""},null,null,null,null,null,null,null,null,null,null,null,null,null,null,null,null,null,null,null,null,null,null,0,{"$f":"AB803-AB802","v":0}]
[null,null,null,null,null,null,null,null,null,null,null,null,null,null,null,null,null,null,null,null,null,null,null,null,null,null,null,0]
[75,null,null,null,{"$f":"IF(COUNTA(H805:AA805)=0,\"\",COUNTA(H805:AA805))","v":""},null,null,null,null,null,null,null,null,null,null,null,null,null,null,null,null,null,null,null,null,null,null,0,{"$f":"AB805-AB804","v":0}]
[null,null,null,null,null,null,null,null,null,null,null,null,null,null,null,null,null,null,null,null,null,null,null,null,null,null,null,0]
[75,null,null,null,{"$f":"IF(COUNTA(H807:AA807)=0,\"\",COUNTA(H807:AA807))","v":""},null,null,null,null,null,null,null,null,null,null,null,null,null,null,null,null,null,null,null,null,null,null,0,{"$f":"AB807-AB806","v":0}]
[null,null,null,null,null,null,null,43,44,21,22,15,16,53,54,33,34,23,24,31,32,13,14,null,null,null,null,16]
[76,null,{"$f":"IF(G1012=\"\",\"\",G1012)","v":"村山"},null,{"$f":"IF(COUNTA(H809:AA809)=0,\"\",COUNTA(H809:AA809))","v":16},"家庭","村山",11,11,12,12,13,13,14,14,21,21,22,22,23,23,24,24,null,null,null,null,16,{"$f":"AB809-AB808","v":0}]
[null,null,null,null,null,null,null,null,null,null,null,null,null,null,null,null,null,null,null,null,null,null,null,null,null,null,null,0]
[76,null,null,null,{"$f":"IF(COUNTA(H811:AA811)=0,\"\",COUNTA(H811:AA811))","v":""},null,null,null,null,null,null,null,null,null,null,null,null,null,null,null,null,null,null,null,null,null,null,0,{"$f":"AB811-AB810","v":0}]
[null,null,null,null,null,null,null,null,null,null,null,null,null,null,null,null,null,null,null,null,null,null,null,null,null,null,null,0]
[76,null,null,null,{"$f":"IF(COUNTA(H813:AA813)=0,\"\",COUNTA(H813:AA813))","v":""},null,null,null,null,null,null,null,null,null,null,null,null,null,null,null,null,null,null,null,null,null,null,0,{"$f":"AB813-AB812","v":0}]
[null,null,null,null,null,null,null,null,null,null,null,null,null,null,null,null,null,null,null,null,null,null,null,null,null,null,null,0]
[76,null,null,null,{"$f":"IF(COUNTA(H815:AA815)=0,\"\",COUNTA(H815:AA815))","v":""},null,null,null,null,null,null,null,null,null,null,null,null,null,null,null,null,null,null,null,null,null,null,0,{"$f":"AB815-AB814","v":0}]
[null,null,null,null,null,null,null,null,null,null,null,null,null,null,null,null,null,null,null,null,null,null,null,null,null,null,null,0]
[76,null,null,null,{"$f":"IF(COUNTA(H817:AA817)=0,\"\",COUNTA(H817:AA817))","v":""},null,null,null,null,null,null,null,null,null,null,null,null,null,null,null,null,null,null,null,null,null,null,0,{"$f":"AB817-AB816","v":0}]
[null,null,null,null,null,null,null,13,14,41,42,25,26,23,24,53,54,51,52,35,36,null,null,null,null,null,null,14]
[77,"家",{"$f":"IF(G1014=\"\",\"\",G1014)","v":"川崎"},null,{"$f":"IF(COUNTA(H819:AA819)=0,\"\",COUNTA(H819:AA819))","v":14},"家庭","川崎",15,15,16,16,17,17,18,18,26,26,27,27,28,28,null,null,null,null,null,null,14,{"$f":"AB819-AB818","v":0}]
[null,null,null,null,null,null,null,33,34,null,null,null,null,null,null,null,null,null,null,null,null,null,null,null,null,null,null,2]
[77,null,null,null,{"$f":"IF(COUNTA(H821:AA821)=0,\"\",COUNTA(H821:AA821))","v":2},"食物","川崎",32,32,null,null,null,null,null,null,null,null,null,null,null,null,null,null,null,null,null,null,2,{"$f":"AB821-AB820","v":0}]
[null,null,null,null,null,null,null,null,null,null,null,null,null,null,null,null,null,null,null,null,null,null,null,null,null,null,null,0]
[77,null,null,null,{"$f":"IF(COUNTA(H823:AA823)=0,\"\",COUNTA(H823:AA823))","v":""},null,null,null,null,null,null,null,null,null,null,null,null,null,null,null,null,null,null,null,null,null,null,0,{"$f":"AB823-AB822","v":0}]
[null,null,null,null,null,null,null,null,null,null,null,null,null,null,null,null,null,null,null,null,null,null,null,null,null,null,null,0]
[77,null,null,null,{"$f":"IF(COUNTA(H825:AA825)=0,\"\",COUNTA(H825:AA825))","v":""},null,null,null,null,null,null,null,null,null,null,null,null,null,null,null,null,null,null,null,null,null,null,0,{"$f":"AB825-AB824","v":0}]
[null,null,null,null,null,null,null,46,null,null,null,null,null,null,null,null,null,null,null,null,null,null,null,null,null,null,null,1]
[77,null,null,null,{"$f":"IF(COUNTA(H827:AA827)=0,\"\",COUNTA(H827:AA827))","v":1},"LHR","川崎",31,null,null,null,null,null,null,null,null,null,null,null,null,null,null,null,null,null,null,null,1,{"$f":"AB827-AB826","v":0}]
[null,null,null,null,null,null,null,21,22,null,null,null,null,null,null,null,null,null,null,null,null,null,null,null,null,null,null,2]
[78,null,{"$f":"IF(G1016=\"\",\"\",G1016)","v":"寺西"},null,{"$f":"IF(COUNTA(H829:AA829)=0,\"\",COUNTA(H829:AA829))","v":2},"家庭","寺西",25,25,null,null,null,null,null,null,null,null,null,null,null,null,null,null,null,null,null,null,2,{"$f":"AB829-AB828","v":0}]
[null,null,null,null,null,null,null,null,null,null,null,null,null,null,null,null,null,null,null,null,null,null,null,null,null,null,null,0]
[78,null,null,null,{"$f":"IF(COUNTA(H831:AA831)=0,\"\",COUNTA(H831:AA831))","v":""},null,null,null,null,null,null,null,null,null,null,null,null,null,null,null,null,null,null,null,null,null,null,0,{"$f":"AB831-AB830","v":0}]
[null,null,null,null,null,null,null,null,null,null,null,null,null,null,null,null,null,null,null,null,null,null,null,null,null,null,null,0]
[78,null,null,null,{"$f":"IF(COUNTA(H833:AA833)=0,\"\",COUNTA(H833:AA833))","v":""},null,null,null,null,null,null,null,null,null,null,null,null,null,null,null,null,null,null,null,null,null,null,0,{"$f":"AB833-AB832","v":0}]
[null,null,null,null,null,null,null,null,null,null,null,null,null,null,null,null,null,null,null,null,null,null,null,null,null,null,null,0]
[78,null,null,null,{"$f":"IF(COUNTA(H835:AA835)=0,\"\",COUNTA(H835:AA835))","v":""},null,null,null,null,null,null,null,null,null,null,null,null,null,null,null,null,null,null,null,null,null,null,0,{"$f":"AB835-AB834","v":0}]
[null,null,null,null,null,null,null,null,null,null,null,null,null,null,null,null,null,null,null,null,null,null,null,null,null,null,null,{"$f":"COUNTA(H836:AA836)","v":0}]
[78,"庭",null,null,{"$f":"IF(COUNTA(H837:AA837)=0,\"\",COUNTA(H837:AA837))","v":""},null,null,null,null,null,null,null,null,null,null,null,null,null,null,null,null,null,null,null,null,null,null,0,{"$f":"AB837-AB836","v":0}]
[null,null,null,null,null,null,null,null,null,null,null,null,null,null,null,null,null,null,null,null,null,null,null,null,null,null,null,0]
[79,null,{"$f":"IF(G1018=\"\",\"\",G1018)","v":"宮木"},2,{"$f":"IF(COUNTA(H839:AA839)=0,\"\",COUNTA(H839:AA839))","v":16},"情報","宮木",11,11,12,12,13,13,14,14,15,15,16,16,17,17,18,18,null,null,null,null,16,{"$f":"AB839-AB838","v":16}]
[null,null,null,null,null,null,null,null,null,null,null,null,null,null,null,null,null,null,null,null,null,null,null,null,null,null,null,0]
[79,null,null,null,{"$f":"IF(COUNTA(H841:AA841)=0,\"\",COUNTA(H841:AA841))","v":""},null,null,null,null,null,null,null,null,null,null,null,null,null,null,null,null,null,null,null,null,null,null,0,{"$f":"AB841-AB840","v":0}]
[null,null,null,null,null,null,null,null,null,null,null,null,null,null,null,null,null,null,null,null,null,null,null,null,null,null,null,0]
[79," ",null,null,{"$f":"IF(COUNTA(H843:AA843)=0,\"\",COUNTA(H843:AA843))","v":""},null,null,null,null,null,null,null,null,null,null,null,null,null,null,null,null,null,null,null,null,null,null,0,{"$f":"AB843-AB842","v":0}]
[null,null,null,null,null,null,null,null,null,null,null,null,null,null,null,null,null,null,null,null,null,null,null,null,null,null,null,0]
[79,null,null,null,{"$f":"IF(COUNTA(H845:AA845)=0,\"\",COUNTA(H845:AA845))","v":""},null,null,null,null,null,null,null,null,null,null,null,null,null,null,null,null,null,null,null,null,null,null,0,{"$f":"AB845-AB844","v":0}]
[null,null,null,null,null,null,null,null,null,null,null,null,null,null,null,null,null,null,null,null,null,null,null,null,null,null,null,0]
[79,null,null,null,{"$f":"IF(COUNTA(H847:AA847)=0,\"\",COUNTA(H847:AA847))","v":""},null,null,null,null,null,null,null,null,null,null,null,null,null,null,null,null,null,null,null,null,null,null,0,{"$f":"AB847-AB846","v":0}]
[null,null,"授業コマ数",null,{"$f":"SUM(E4:E847)","v":798},null,null,null,null,null,null,null,null,null,null,null,null,null,null,null,null,null,null,null,null,null,"未入力セル合計",null,{"$f":"SUM(AC4:AC847)","v":500}]
[]
[]
[null,null,null,null,null,null,null,"全職員曜日"]
[null,null,null,null,null,null,null,null,null,"  月",null,null,null,null,null,"  火",null,null,null,null,null,"  水",null,null,null,null,null,"  木",null,null,null,null,null,"  金",null,null,null,null,"  土"]
[null,null,null,null,null,null,null,1,2,3,4,5,6,1,2,3,4,5,6,1,2,3,4,5,6,1,2,3,4,5,6,1,2,3,4,5,6,1,2,3,4]
[null,null,null,null,null,null,null,1,2,3,4,5,6,7,8,9,10,11,12,13,14,15,16,17,18,19,20,21,22,23,24,25,26,27,28,29,30,31,32,33,34]
[null,null,null,null,null,null,"*.-",null,null,null,null,null,null,null,null,null,null,null,null,null,null,null,null,null,null,null,null,null,null,null,null,null,null,null,null,null,"土1,2",null,null,"必修ク","必修ク"]
[null,null,null,null,null,null,"ｺﾒﾝﾄ",null,null,null,null,null,null,null,null,null,null,null,null,null,null,null,null,null,null,null,null,null,null,null,null,null,null,null,null,null,"-",null,null,"-","-"]
[]
[null,"個別職員一週間に入れる場合ここに＊・ーを入力"]
[null,null,null,"↓",null,"個別職員"]
[null,null,null,"*.-",null,null,null,null,null,"  月",null,null,null,null,null,"  火",null,null,null,null,null,"  水",null,null,null,null,null,"  木",null,null,null,null,null,"  金",null,null,null,null,"  土",null,null,"入力"]
[null,null,null,"ｺﾒﾝﾄ","職員NO","教科","担当",1,2,3,4,5,6,1,2,3,4,5,6,1,2,3,4,5,6,1,2,3,4,5,6,1,2,3,4,5,6,1,2,3,4,"コマ数"]
[null,null,null,null,1,null,"小杉",null,"研修","校務",null,null,"研修",null,null,null,null,null,null,null,null,"教務",null,null,null,"学年会",null,null,null,null,null,null,null,"研修","教科会","教育課",null,null,null,null,null,{"$f":"COUNTA(H862:AO862)","v":8}]
[null,null,null,null,null,null,"1年主"]
[null,null,null,null,2," ","桜井",null,null,null,null,"進路",null,null,null,null,null,null,null,null,null,null,null,null,null,"学年会",null,null,null,null,null,null,null,null,"教科会",null,null,null,null,null,null,{"$f":"COUNTA(H864:AO864)","v":3}]
[null,null,null,null,null,null,"1-6担"]
[null,null,null,null,3,"国","小野島",null,null,null,"教科外",null,null,null,null,null,null,null,null,null,null,null,null,null,null,"学年会",null,null,null,null,null,null,null,null,"教科会",null,null,null,null,null,null,{"$f":"COUNTA(H866:AO866)","v":3}]
[null,null,null,null,null,null,"1-3副"]
[null,null,null,null,4,null,"榎本",null,null,null,null,null,null,null,null,null,"学年会",null,null,null,null,null,null,null,null,null,null,null,null,null,null,null,null,null,"教科会",null,null,null,null,null,null,{"$f":"COUNTA(H868:AO868)","v":2}]
[null,null,null,null,null,null,"2-5担"]
[null,null,null,null,5,null,"矢島",null,"研修","研修","教科外",null,"研修",null,null,null,"学年会",null,null,"研修","研修","研修","研修","研修","研修",null,null,null,null,"研修",null,null,null,"研修","教科会",null,null,null,null,null,null,{"$f":"COUNTA(H870:AO870)","v":14}]
[null,null,null,null,null,null,"2-12副"]
[null,null,null,null,6,null,"関根",null,null,null,null,null,null,"学年会",null,null,null,null,null,null,null,null,null,null,null,null,null,null,"生徒指",null,null,null,null,null,"教科会",null,null,null,null,null,null,{"$f":"COUNTA(H872:AO872)","v":3}]
[null,null,null,null,null,null,"3-5担"]
[null,null,null,null,7," ","松本ﾔ",null,null,"研修","教科外",null,null,"学年会",null,null,null,null,null,null,null,null,null,null,null,null,null,null,null,"研修",null,null,null,null,"教科会",null,null,null,null,null,null,{"$f":"COUNTA(H874:AO874)","v":5}]
[null,null,null,null,null,null,"3-48副"]
[null,null,null,null,8," ","千田",null,null,null,null,null,null,null,null,null,null,null,null,null,null,null,null,null,null,null,null,null,null,null,null,null,null,null,null,null,null,null,null,null,null,{"$f":"COUNTA(H876:AO876)","v":0}]
[]
[null,null,null,null,9,null,"山田",null,null,null,null,null,null,null,null,null,null,null,null,null,null,null,null,null,null,null,null,null,null,null,null,null,null,null,null,null,null,null,null,null,null,{"$f":"COUNTA(H878:AO878)","v":0}]
[]
[null,null,null,null,10,"語",null,null,null,null,null,null,null,null,null,null,null,null,null,null,null,null,null,null,null,null,null,null,null,null,null,null,null,null,null,null,null,null,null,null,null,{"$f":"COUNTA(H880:AO880)","v":0}]
[]
[null,null,null,null,11," ",null,null,null,null,null,null,null,null,null,null,null,null,null,null,null,null,null,null,null,null,null,null,null,null,null,null,null,null,null,null,null,null,null,null,null,{"$f":"COUNTA(H882:AO882)","v":0}]
[]
[null,null,null,null,12," ",null,null,null,null,null,null,null,null,null,null,null,null,null,null,null,null,null,null,null,null,null,null,null,null,null,null,null,null,null,null,null,null,null,null,null,{"$f":"COUNTA(H884:AO884)","v":0}]
[]
[null,null,null,null,13," ","新井",null,null,null,null,null,null,null,null,null,null,"教科会",null,null,null,null,null,null,null,"学年会",null,null,null,null,null,null,null,null,null,null,null,null,null,null,null,{"$f":"COUNTA(H886:AO886)","v":2}]
[null,null,null,null,null,null,"1-2担"]
[null,null,null,null,14,"地","福田",null,null,null,"教科外",null,null,null,null,null,null,"教科会",null,null,null,null,null,null,null,"学年会",null,null,null,null,null,null,null,null,null,null,null,null,null,null,null,{"$f":"COUNTA(H888:AO888)","v":3}]
[null,null,null,null,null,null,"1-5担 "]
[null,null,null,null,15," ","鶴巻",null,null,null,null,null,null,null,null,null,null,"教科会",null,null,null,"教務",null,null,null,"学年会",null,null,null,null,null,null,null,null,null,"教育課",null,null,null,null,null,{"$f":"COUNTA(H890:AO890)","v":4}]
[null,null,null,null,null,null,"1-57副"]
[null,null,null,null,16,"歴","小栗",null,null,null,null,"進路",null,null,null,null,"学年会","教科会","研修",null,null,null,null,null,null,null,"研修",null,null,null,null,null,null,null,null,null,null,null,null,null,null,{"$f":"COUNTA(H892:AO892)","v":5}]
[null,null,null,null,null,null,"2-4担"]
[null,null,null,null,17,null,"程田",null,null,null,null,null,null,"学年会",null,null,null,"教科会",null,null,null,"教務",null,null,null,null,null,null,null,null,null,null,null,null,null,"教育課",null,null,null,null,null,{"$f":"COUNTA(H894:AO894)","v":4}]
[null,null,null,null,null,null,"3年主"]
[null,null,null,null,18,"  ・","長澤",null,"研修",null,null,null,null,"学年会",null,null,null,"教科会","研修","研修","研修","研修","研修","研修","研修",null,"研修",null,"生徒指",null,null,null,null,"研修",null,null,null,null,null,null,null,{"$f":"COUNTA(H896:AO896)","v":13}]
[null,null,null,null,null,null,"3年付"]
[null,null,null,null,19," ","松本ﾀ",null,null,"校務",null,null,null,null,null,null,null,"*","*",null,null,null,null,"*","*",null,null,null,"生徒指",null,null,null,null,null,null,null,null,null,null,null,null,{"$f":"COUNTA(H898:AO898)","v":6}]
[null,null,null,null,null,null,"生徒主"]
[null,null,null,null,20,"公","高橋",null,null,null,null,null,null,null,null,null,null,null,null,null,null,null,null,null,null,null,null,null,null,null,null,null,null,null,null,null,null,null,null,null,null,{"$f":"COUNTA(H900:AO900)","v":0}]
[]
[null,null,null,null,21," ",null,null,null,null,null,null,null,null,null,null,null,null,null,null,null,null,null,null,null,null,null,null,null,null,null,null,null,null,null,null,null,null,null,null,null,{"$f":"COUNTA(H902:AO902)","v":0}]
[]
[null,null,null,null,22,"民",null,null,null,null,null,null,null,null,null,null,null,null,null,null,null,null,null,null,null,null,null,null,null,null,null,null,null,null,null,null,null,null,null,null,null,{"$f":"COUNTA(H904:AO904)","v":0}]
[]
[null,null,null,null,23," ",null,null,null,null,null,null,null,null,null,null,null,null,null,null,null,null,null,null,null,null,null,null,null,null,null,null,null,null,null,null,null,null,null,null,null,{"$f":"COUNTA(H906:AO906)","v":0}]
[]
[null,null,null,null,24,null,null,null,null,null,null,null,null,null,null,null,null,null,null,null,null,null,null,null,null,null,null,null,null,null,null,null,null,null,null,null,null,null,null,null,null,{"$f":"COUNTA(H908:AO908)","v":0}]
[]
[null,null,null,null,25,null,"金子",null,null,null,null,null,null,null,null,null,null,"*","*",null,null,null,null,null,null,"学年会",null,null,null,null,null,null,null,"教科会",null,null,null,null,null,null,null,{"$f":"COUNTA(H910:AO910)","v":4}]
[null,null,null,null,null,null,"1-8担"]
[null,null,null,null,26,null,"山根ﾀ",null,null,null,null,null,null,null,null,null,null,null,null,null,null,null,null,null,null,"学年会",null,null,null,null,null,null,null,"教科会",null,null,null,null,null,null,null,{"$f":"COUNTA(H912:AO912)","v":2}]
[null,null,null,null,null,null,"1-2副"]
[null,null,null,null,27,"数","斉藤ﾄ",null,null,null,"教科外",null,null,null,null,null,"学年会",null,null,null,null,null,null,null,null,null,null,null,null,null,null,null,null,"教科会",null,"教育課",null,null,null,null,null,{"$f":"COUNTA(H914:AO914)","v":4}]
[null,null,null,null,null,null,"2-3担"]
[null,null,null,null,28," ","市ノ川",null,null,null,null,null,null,null,null,null,"学年会",null,null,null,null,null,null,null,null,null,null,null,"生徒指",null,null,"*","*","*","*","*","*",null,null,null,null,{"$f":"COUNTA(H916:AO916)","v":8}]
[null,null,null,null,null,null,"2-8担"]
[null,null,null,null,29,null,"多田",null,null,null,null,null,null,"学年会",null,null,null,null,null,null,null,null,null,null,null,null,null,null,null,null,null,null,null,"教科会",null,null,null,null,null,null,null,{"$f":"COUNTA(H918:AO918)","v":2}]
[null,null,null,null,null,null,"3-4担"]
[null,null,null,null,30,null,"菊川",null,null,"校務",null,"進路",null,null,null,null,null,"*","*",null,null,null,"*","*","*",null,null,null,null,null,null,null,null,"教科会",null,null,null,null,null,null,null,{"$f":"COUNTA(H920:AO920)","v":8}]
[null,null,null,null,null,null,"進路主"]
[null,null,null,null,31," ",null,null,null,null,null,null,null,null,null,null,null,null,null,null,null,null,null,null,null,null,null,null,null,null,null,null,null,null,null,null,null,null,null,null,null,{"$f":"COUNTA(H922:AO922)","v":0}]
[]
[null,null,null,null,32,null,null,null,null,null,null,null,null,null,null,null,null,null,null,null,null,null,null,null,null,null,null,null,null,null,null,null,null,null,null,null,null,null,null,null,null,{"$f":"COUNTA(H924:AO924)","v":0}]
[]
[null,null,null,null,33," ",null,null,null,null,null,null,null,null,null,null,null,null,null,null,null,null,null,null,null,null,null,null,null,null,null,null,null,null,null,null,null,null,null,null,null,{"$f":"COUNTA(H926:AO926)","v":0}]
[]
[null,null,null,null,34,"学",null,null,null,null,null,null,null,null,null,null,null,null,null,null,null,null,null,null,null,null,null,null,null,null,null,null,null,null,null,null,null,null,null,null,null,{"$f":"COUNTA(H928:AO928)","v":0}]
[]
[null,null,null,null,35,null,null,null,null,null,null,null,null,null,null,null,null,null,null,null,null,null,null,null,null,null,null,null,null,null,null,null,null,null,null,null,null,null,null,null,null,{"$f":"COUNTA(H930:AO930)","v":0}]
[]
[null,null,null,null,36,null,null,null,null,null,null,null,null,null,null,null,null,null,null,null,null,null,null,null,null,null,null,null,null,null,null,null,null,null,null,null,null,null,null,null,null,{"$f":"COUNTA(H932:AO932)","v":0}]
[]
[null,null,null,null,37,null,"関",null,null,null,null,"進路",null,null,null,null,null,null,null,null,null,null,null,null,null,"学年会",null,null,null,null,null,null,"教科会",null,null,null,null,null,null,null,null,{"$f":"COUNTA(H934:AO934)","v":3}]
[null,null,null,null,null,null,"1-1担"]
[null,null,null,null,38," ","上村",null,null,"校務",null,"進路",null,null,null,null,"学年会",null,null,null,null,null,null,null,null,null,null,null,null,null,null,null,"教科会",null,null,null,null,null,null,null,null,{"$f":"COUNTA(H936:AO936)","v":4}]
[null,null,null,null,null,null,"2-2担"]
[null,null,null,null,39,"理","中田",null,null,null,null,null,null,null,null,null,"学年会","*","*",null,null,null,null,null,null,null,null,null,null,null,null,null,"教科会",null,null,null,null,null,null,null,null,{"$f":"COUNTA(H938:AO938)","v":4}]
[null,null,null,null,null,null,"2-6担"]
[null,null,null,null,40,null,"金室",null,null,null,null,null,null,null,null,null,"学年会",null,null,null,null,"教務",null,null,null,null,null,null,null,null,null,null,"教科会",null,null,"教育課",null,null,null,null,null,{"$f":"COUNTA(H940:AO940)","v":4}]
[null,null,null,null,null,null,"2-8副"]
[null,null,null,null,41,null,"成谷",null,null,null,null,null,null,"学年会",null,null,null,null,null,null,null,null,null,null,null,null,null,null,null,null,null,null,"教科会",null,null,null,null,null,null,null,null,{"$f":"COUNTA(H942:AO942)","v":2}]
[null,null,null,null,null,null,"3-8担"]
[null,null,null,null,42," ","斉藤ｻ",null,null,"校務",null,"進路",null,"学年会",null,null,null,null,null,null,null,null,null,null,null,null,null,null,null,null,null,null,"教科会",null,null,null,null,null,null,null,null,{"$f":"COUNTA(H944:AO944)","v":4}]
[null,null,null,null,null,null,"3-25副"]
[null,null,null,null,43," ","涌井",null,null,null,null,"進路",null,"学年会",null,null,null,null,null,null,null,null,null,null,null,null,null,null,null,null,null,null,"教科会",null,null,null,null,null,null,null,null,{"$f":"COUNTA(H946:AO946)","v":3}]
[null,null,null,null,null,null,"3-3副"]
[null,null,null,null,44,null,null,null,null,null,null,null,null,null,null,null,null,null,null,null,null,null,null,null,null,null,null,null,null,null,null,null,null,null,null,null,null,null,null,null,null,{"$f":"COUNTA(H948:AO948)","v":0}]
[]
[null,null,null,null,45,null,null,null,null,null,null,null,null,null,null,null,null,null,null,null,null,null,null,null,null,null,null,null,null,null,null,null,null,null,null,null,null,null,null,null,null,{"$f":"COUNTA(H950:AO950)","v":0}]
[]
[null,null,null,null,46,"科",null,null,null,null,null,null,null,null,null,null,null,null,null,null,null,null,null,null,null,null,null,null,null,null,null,null,null,null,null,null,null,null,null,null,null,{"$f":"COUNTA(H952:AO952)","v":0}]
[]
[null,null,null,null,47," ",null,null,null,null,null,null,null,null,null,null,null,null,null,null,null,null,null,null,null,null,null,null,null,null,null,null,null,null,null,null,null,null,null,null,null,{"$f":"COUNTA(H954:AO954)","v":0}]
[]
[null,null,null,null,48,null,null,null,null,null,null,null,null,null,null,null,null,null,null,null,null,null,null,null,null,null,null,null,null,null,null,null,null,null,null,null,null,null,null,null,null,{"$f":"COUNTA(H956:AO956)","v":0}]
[]
[null,null,null,null,49,null,"名児耶",null,null,null,null,null,null,null,null,null,null,null,null,null,null,null,null,null,null,"学年会",null,null,null,null,null,null,null,null,null,null,null,null,null,null,null,{"$f":"COUNTA(H958:AO958)","v":1}]
[null,null,null,null,null,null,"1-4担"]
[null,null,null,null,50," ","国延",null,null,null,null,null,null,null,null,null,null,null,null,null,null,null,null,null,null,"学年会",null,null,"生徒指",null,null,null,null,null,null,null,null,null,null,null,null,{"$f":"COUNTA(H960:AO960)","v":2}]
[null,null,null,null,null,null,"1年付"]
[null,null,null,null,51,"体","八木",null,null,null,"教科外",null,null,null,null,null,"学年会",null,null,null,null,null,null,null,null,null,null,null,null,null,null,null,null,null,null,null,null,null,null,null,null,{"$f":"COUNTA(H962:AO962)","v":2}]
[null,null,null,null,null,null,"2-1担"]
[null,null,null,null,52,null,"仙徳",null,null,null,null,null,null,null,null,null,"学年会",null,null,null,null,null,null,null,null,null,null,null,"生徒指",null,null,null,null,null,null,"教育課",null,null,null,null,null,{"$f":"COUNTA(H964:AO964)","v":3}]
[null,null,null,null,null,null,"2-7担"]
[null,null,null,null,53,null,"大徳",null,null,null,null,null,null,null,null,null,"学年会",null,null,null,null,null,null,null,null,null,null,null,"生徒指",null,null,null,null,null,null,null,null,null,null,null,null,{"$f":"COUNTA(H966:AO966)","v":2}]
[null,null,null,null,null,null,"2-6副"]
[null,null,null,null,54," ","山崎",null,null,null,null,null,null,"学年会",null,null,null,null,null,null,null,null,null,null,null,null,null,null,null,null,null,null,null,null,null,null,null,null,null,null,null,{"$f":"COUNTA(H968:AO968)","v":1}]
[null,null,null,null,null,null,"3-2担"]
[null,null,null,null,55," 育","井上",null,null,null,null,null,null,"学年会",null,null,null,null,null,null,null,null,null,null,null,null,null,null,null,null,null,null,null,null,null,null,null,null,null,null,null,{"$f":"COUNTA(H970:AO970)","v":1}]
[null,null,null,null,null,null,"3-7担"]
[null,null,null,null,56,null,null,null,null,null,null,null,null,null,null,null,null,null,null,null,null,null,null,null,null,null,null,null,null,null,null,null,null,null,null,null,null,null,null,null,null,{"$f":"COUNTA(H972:AO972)","v":0}]
[]
[null,null,null,null,57," ",null,null,null,null,null,null,null,null,null,null,null,null,null,null,null,null,null,null,null,null,null,null,null,null,null,null,null,null,null,null,null,null,null,null,null,{"$f":"COUNTA(H974:AO974)","v":0}]
[]
[null,null,null,null,58," ","杉山",null,null,null,null,null,null,null,null,null,null,null,null,null,null,"教務",null,null,null,"学年会",null,null,null,null,null,null,null,null,null,"教育課",null,null,null,null,null,{"$f":"COUNTA(H976:AO976)","v":3}]
[null,null,null,null,null,null,"1-7担"]
[null,null,null,null,59,"芸","高橋",null,null,null,null,"進路",null,null,null,null,"学年会",null,null,null,null,null,null,null,null,null,null,null,null,null,null,null,null,null,null,null,null,null,null,null,null,{"$f":"COUNTA(H978:AO978)","v":2}]
[null,null,null,null,null,null,"2-34副"]
[null,null,null,null,60," ","後藤",null,null,null,null,null,null,"学年会",null,null,null,null,null,null,null,null,null,null,null,null,null,null,null,null,null,null,null,null,null,null,null,null,null,null,null,{"$f":"COUNTA(H980:AO980)","v":1}]
[null,null,null,null,null,null,"3-6副"]
[null,null,null,null,61," ","上原",null,null,null,null,null,null,null,null,null,null,null,null,null,null,null,null,null,null,null,null,null,null,null,null,null,null,null,null,null,null,null,null,null,null,{"$f":"COUNTA(H982:AO982)","v":0}]
[]
[null,null,null,null,62,"術","秦",null,null,null,null,null,null,null,null,null,null,null,null,null,null,null,null,null,null,null,null,null,null,null,null,null,null,null,null,null,null,null,null,null,null,{"$f":"COUNTA(H984:AO984)","v":0}]
[]
[null,null,null,null,63," ",null,null,null,null,null,null,null,null,null,null,null,null,null,null,null,null,null,null,null,null,null,null,null,null,null,null,null,null,null,null,null,null,null,null,null,{"$f":"COUNTA(H986:AO986)","v":0}]
[]
[null,null,null,null,64," ","木島",null,null,null,null,null,null,null,null,null,null,null,null,null,null,null,null,null,null,"学年会",null,"教科会","生徒指",null,null,null,null,null,null,null,null,null,null,null,null,{"$f":"COUNTA(H988:AO988)","v":3}]
[null,null,null,null,null,null,"1-3担"]
[null,null,null,null,65,null,"安藤",null,null,null,null,null,null,null,null,null,null,null,null,null,null,"教務",null,null,null,"学年会",null,"教科会",null,null,null,null,null,null,null,"教育課",null,null,null,null,null,{"$f":"COUNTA(H990:AO990)","v":4}]
[null,null,null,null,null,null,"1-56副"]
[null,null,null,null,66,"英","小井川",null,null,"校務",null,null,null,null,null,null,"学年会",null,null,null,null,null,null,null,null,null,null,"教科会",null,null,null,null,null,null,null,null,null,null,null,null,null,{"$f":"COUNTA(H992:AO992)","v":3}]
[null,null,null,null,null,null,"2年主"]
[null,null,null,null,67," ","清水ﾀ",null,null,null,null,null,null,null,null,null,"学年会",null,null,null,null,"教務",null,null,null,null,null,"教科会",null,null,null,null,null,null,null,null,null,null,null,null,null,{"$f":"COUNTA(H994:AO994)","v":3}]
[null,null,null,null,null,null,"2-57副"]
[null,null,null,null,68," ","清水ﾖ",null,null,null,null,null,null,null,null,null,"学年会",null,null,null,null,null,null,null,null,null,null,"教科会","生徒指",null,null,null,null,null,null,null,null,null,null,null,null,{"$f":"COUNTA(H996:AO996)","v":3}]
[null,null,null,null,null,null,"2年付"]
[null,null,null,null,69,null,"加藤",null,null,null,null,"進路",null,"学年会",null,null,null,null,null,null,null,null,null,null,null,null,null,"教科会",null,null,null,null,null,null,null,null,null,null,null,null,null,{"$f":"COUNTA(H998:AO998)","v":3}]
[null,null,null,null,null,null,"3-3担"]
[null,null,null,null,70," ","松田",null,null,null,null,null,null,"学年会",null,null,null,null,null,null,null,null,null,null,null,null,null,"教科会",null,null,null,null,null,null,null,null,null,null,null,null,null,{"$f":"COUNTA(H1000:AO1000)","v":2}]
[null,null,null,null,null,null,"3-6担"]
[null,null,null,null,71," ","小林",null,null,null,null,null,null,"学年会",null,null,null,null,null,null,null,null,null,null,null,null,null,"教科会",null,null,null,null,null,null,null,null,null,null,null,null,null,{"$f":"COUNTA(H1002:AO1002)","v":2}]
[null,null,null,null,null,null,"3-7副"]
[null,null,null,null,72,null,"舘",null,null,"校務",null,null,null,null,null,null,null,null,null,null,null,"教務",null,null,null,null,null,"教科会",null,null,null,null,null,null,null,null,null,null,null,null,null,{"$f":"COUNTA(H1004:AO1004)","v":3}]
[null,null,null,null,null,null,"教務主"]
[null,null,null,null,73,"語",null,null,null,null,null,null,null,null,null,null,null,null,null,null,null,null,null,null,null,null,null,null,null,null,null,null,null,null,null,null,null,null,null,null,null,{"$f":"COUNTA(H1006:AO1006)","v":0}]
[]
[null,null,null,null,74," ",null,null,null,null,null,null,null,null,null,null,null,null,null,null,null,null,null,null,null,null,null,null,null,null,null,null,null,null,null,null,null,null,null,null,null,{"$f":"COUNTA(H1008:AO1008)","v":0}]
[]
[null,null,null,null,75,null,null,null,null,null,null,null,null,null,null,null,null,null,null,null,null,null,null,null,null,null,null,null,null,null,null,null,null,null,null,null,null,null,null,null,null,{"$f":"COUNTA(H1010:AO1010)","v":0}]
[]
[null,null,null,null,76,null,"村山",null,null,null,null,null,null,null,null,null,null,null,null,null,null,null,null,null,null,"学年会",null,null,null,null,null,null,null,null,null,"教育課",null,null,null,null,null,{"$f":"COUNTA(H1012:AO1012)","v":2}]
[null,null,null,null,null,null,"1-1副"]
[null,null,null,null,77,"家","川崎",null,null,null,null,"進路",null,"学年会",null,null,null,null,null,null,null,null,null,null,null,null,null,null,null,null,null,null,null,null,null,null,null,null,null,null,null,{"$f":"COUNTA(H1014:AO1014)","v":2}]
[null,null,null,null,null,null,"3-1担"]
[null,null,null,null,78,"庭","寺西",null,null,null,null,null,null,null,null,null,null,null,null,null,null,null,null,null,null,null,null,null,null,null,null,null,null,null,null,null,null,null,null,null,null,{"$f":"COUNTA(H1016:AO1016)","v":0}]
[]
[null,null,null,null,79," ","宮木",null,null,null,null,null,null,"*","*","*","*","*",null,"*","*","*","*",null,null,"学年会",null,null,null,null,null,null,null,null,null,"教育課",null,null,null,null,null,{"$f":"COUNTA(H1018:AO1018)","v":11}]
[null,null,null,null,null,null,"1-8副"]
[null,null,null,null,null,null,null,null,null,null,null,null,null,null,null,null,null,null,null,null,null,null,null,null,null,null,null,null,null,null,null,null,null,null,null,null,null,null,null,null,null,{"$f":"SUM(AP862:AP1019)","v":186}]
[]
[]
[null,null,null,null,null,null,"時間割〔ｸﾗｽ別1〕中間入力"]
[null,null,null,null,null,null,null,null,null,"    月",null,null,null,null,null,"    火",null,null,null,null,null,"    水",null,null,null,null,null,"    木",null,null,null,null,null,"    金",null,null,null,null,"    土"]
[null,null,null,null,null,null,null,1,2,3,4,5,6,1,2,3,4,5,6,1,2,3,4,5,6,1,2,3,4,5,6,1,2,3,4,5,6,1,2,3,4]
[null,null,null,null,null,null,"ｺﾒﾝﾄ１",null,null,null,null,null,null,null,null,null,null,null,null,null,null,null,null,null,null,null,null,null,null,null,null,null,null,null,null,null,"土1.2",null,null,"必修ク","必修ク"]
[null,null,null,null,null,null,"ｺﾒﾝﾄ２",null,null,null,null,null,null,null,null,null,null,null,null,null,null,null,null,null,null,null,null,null,null,null,null,null,null,null,null,null,"-",null,null,"-","-"]
[]
[]
[]
[null,null,null,null,null,null,"時間割〔ｸﾗｽ別2〕中間入力"]
[null,null,null,null,null,"ｺﾒﾝﾄ１",null,null,null,"    月",null,null,null,null,null,"    火",null,null,null,null,null,"    水",null,null,null,null,null,"    木",null,null,null,null,null,"    金",null,null,null,null,"    土"]
[null,null,null,null,null,"ｺﾒﾝﾄ２","ｸﾗｽ",1,2,3,4,5,6,1,2,3,4,5,6,1,2,3,4,5,6,1,2,3,4,5,6,1,2,3,4,5,6,1,2,3,4]
[null,null,null,null,null,null,"1-1"]
[]
[null,null,null,null,null,null,"1-2"]
[]
[null,null,null,null,null,null,"1-3"]
[]
[null,null,null,null,null,null,"1-4"]
[]
[null,null,null,null,null,null,"1-5"]
[]
[null,null,null,null,null,null,"1-6"]
[]
[null,null,null,null,null,null,"1-7"]
[]
[null,null,null,null,null,null,"1-8"]
[]
[null,null,null,null,null,null,"1-9"]
[]
[null,null,null,null,null,null,"1-10"]
[]
[null,null,null,null,null,null,"2-1"]
[]
[null,null,null,null,null,null,"2-2"]
[]
[null,null,null,null,null,null,"2-3"]
[]
[null,null,null,null,null,null,"2-4"]
[]
[null,null,null,null,null,null,"2-5"]
[]
[null,null,null,null,null,null,"2-6"]
[]
[null,null,null,null,null,null,"2-7"]
[]
[null,null,null,null,null,null,"2-8"]
[]
[null,null,null,null,null,null,"2-9"]
[]
[null,null,null,null,null,null,"2-10"]
[]
[null,null,null,null,null,null,"3-1"]
[]
[null,null,null,null,null,null,"3-2"]
[]
[null,null,null,null,null,null,"3-3"]
[]
[null,null,null,null,null,null,"3-4"]
[]
[null,null,null,null,null,null,"3-5"]
[]
[null,null,null,null,null,null,"3-6"]
[]
[null,null,null,null,null,null,"3-7"]
[]
[null,null,null,null,null,null,"3-8"]
[]
[null,null,null,null,null,null,"3-9"]
[]
[null,null,null,null,null,null,"3-10"]
[]
["最終行","最終行","最終行","最終行",null,"最終行","最終行","最終行","最終行","最終行","最終行","最終行","最終行","最終行","最終行","最終行","最終行","最終行","最終行","最終行","最終行","最終行","最終行","最終行","最終行","最終行","最終行","最終行","最終行","最終行","最終行","最終行","最終行","最終行","最終行","最終行","最終行","最終行","最終行","最終行","最終行"]

{"sheet":"インターフェース画面設定","index":2,"n_rows":7,"n_cols":3,"rows_kept":7,"cut":false,"hidden":false,"merged":[]}
[]
[null," インターフェース画面設定"]
[]
[null,"設定項目","設定値"]
[null,"画面高さ",810]
[null,"画面幅",1440]
[null,"画面Zoom",216]

{"sheet":"呼出ファイル","index":3,"n_rows":9,"n_cols":4,"rows_kept":9,"cut":false,"hidden":false,"merged":[]}
[]
[]
[null,"     呼出ファイルのドライブ・ディレクトリー位置及びファイル名"]
[]
[null,"変数区分","DriveDirectoryName","FileName"]
[null,"Jhs","D:\\時間割編成システム64ビット版漢字変換へ\\2010週34時間対応版明朝体\\１台登録用\\１台登録時間割編成2010週34時間対応版","79人30クラス時間割システム1台登録Ver1.xlsm"]
[null,"Jhsk","D:\\時間割編成システム64ビット版漢字変換へ\\2010週34時間対応版明朝体\\１台登録用\\１台登録時間割編成2010週34時間対応版","79人30クラス時間割システム簡易版1台登録Ver1.xlsm"]
[null,"Jkns","D:\\時間割編成システム64ビット版漢字変換へ\\2010週34時間対応版明朝体\\１台登録用\\１台登録時間割編成2010週34時間対応版","79人30クラスコマ入力システム1台登録Ver1.xlsm"]
[null,"Jhss","D:\\時間割編成システム64ビット版漢字変換へ\\2010週34時間対応版明朝体\\１台登録用\\１台登録時間割編成2010週34時間対応版","79人30クラス時間割システム制御1台登録Ver1.xlsm"]